Workbook

Sheet Eingabe
C1: MAP-FÖRDERMITTELRECHNER
AB2: UMT/TR v8.39
C7: Gebäudestandort
C9: Norm-Außentemperatur | I9: =Berechnung!C16&" °C" -> -14 °C
C11: Gebäudetyp
C13: Nutzungsart
C15: =IF(Berechnung!D6=Berechnung!D9,"Wohneinheiten","Gesamtfläche") -> Wohneinheiten
C17: Wärmedämmung
C19: Alte Heizungsanlage | I19: Angabe nicht erforderlich
C21: Neue Heizungsanlage
C27: Kosten für Optimierung | I27: Angabe nicht erforderlich
C53: Wärmequelle
C55: Wärmepumpen-Typ | I55: =Berechnung!R6&" x" -> 1 x
C57: Betrieb | Bivalenzpunkt | P57: ---
C59: Pufferspeicher
C61: Warmwasserbereitung
C63: Typ Warmwasser
C65: Anteil Warmwasser | I65: =IF(Berechnung!$M$54=FALSE,"---","") ->  | P65: =IF(Berechnung!$M$54=FALSE,"---","18 %") -> 18 %
C67: Heizsystem
C69: Vorlauftemperatur
C71: Komponenten Heizkreis
C73: =IF(OR(Berechnung!B34=Berechnung!B39,Berechnung!B34=Berechnung!B40),"Grundwassertemperatur","Wärmequellenanlage") -> Wärmequellenanlage | I73: Angabe nicht erforderlich
C75: Komponenten Quelle | I75: Angabe nicht erforderlich
C103: Kollektortyp
C105: Kollektoranzahl
C107: Nutzungsart
C109: Installationsart
C111: Wärmeerzeuger Heizung | I111: Wärmepumpe
C113: Austausch Heizkessel | I113: Angabe nicht erforderlich

Sheet Berechnung (hidden)
B1: Comoboxen Gebäudedaten
B2: Projektdaten | K2: HT' (% von EnEV) | M2: Zahlenwert | Q2: Ist gewählte WP | R2: Gewählte Anzahl
D3: Nutzungsart | E3: Energieeffizienz | F3: Anlagentechnik | G3: Gebäudetyp | H3: Wohneinheiten | I3: Gesamtfläche | J3: Heizung Alt | M3: Außentemperatur | N3: Heizgrentztemperatur | Q3: kaskadierbar ? | T3: Kosten Heizungsoptimierung | U3: Kosten Heizungsoptimierung
K4: Text Ausdruck | L4: Wert
D6: Wohngebäude | E6: Niedrigenergiehaus EnEV 2016 | G6: Bestandsgebäude | H6: Einfamilienhaus | I6: Unter 500 m² | J6: Gaskessel | K6: =IF(E6=E9,"EnEV 2009 Neubau - Niveau",VLOOKUP(E6,E8:K26,7,FALSE)&" "&L6&"% EnEV 2009 Neubau - Niveau") -> EnEV 2009 Neubau - Niveau | L6: =IF(E27=FALSE,150,VLOOKUP(E6,E8:L25,8,FALSE)) -> 100 | M6: =IF(ISERROR(C16*1),-14,C16*1) -> -14 | N6: =IF(G6=G10,N27,VLOOKUP(E6,E8:N27,10,FALSE)) -> 15 °C | O6: Checkbox | P6: wählbar ? | Q6: =VLOOKUP($C$34,Leistungsdaten!G:AC,23,FALSE) -> FALSE | R6: 1 | T6: 5000 € | U6: =IF(T6=T54,23000,LEFT(T6,FIND(" ",T6)-1)*1) -> 5000
D9: Wohngebäude | E9: Niedrigenergiehaus EnEV 2016 | F9: Auswahl Wärmepumpe | G9: Neubau | H9: Einfamilienhaus | I9: Unter 500 m² | J9: Gaskessel | L9: 100 | N9: 12 °C | O9: Projektdaten | P9: TRUE | T9: 500 €
D10: Nichtwohngebäude | E10: Passivhausstandard | F10: TRUE | G10: Bestandsgebäude | H10: Zweifamilienhaus | I10: Über 500 m² | J10: Ölkessel | K10: Max. | L10: 55 | N10: 10 °C | O10: Daten WP | Solar | P10: =IF(F27=0,FALSE,TRUE) -> TRUE | T10: 1000 €
E11: KfW Effizienzhaus 40 | F11: Auswahl Solar | H11: Dreifamilienhaus | J11: Gas-Brennwertkessel | K11: Max. | L11: 55 | N11: 12 °C | O11: JAZ Wärmepumpe | P11: =IF(OR(F27=0,F27=2),FALSE,TRUE) -> TRUE | T11: 1500 €
E12: KfW Effizienzhaus 55 | F12: FALSE | H12: Mehrfamilienhaus | J12: Öl-Brennwertkessel | K12: Max. | L12: 70 | N12: 12 °C | O12: Fördersummen | P12: TRUE | T12: 2000 €
B13: PLZ Gebäude | C13: =INDEX(Leistungsdaten!A:A,SUBSTITUTE(C17,"lstStadt",""),1) -> 04... | E13: KfW Effizienzhaus 70 | J13: Wärmepumpe | K13: Max. | L13: 85 | N13: 12 °C | O13: Herstellererklärungen | P13: FALSE | T13: 2500 €
B14: Standort Gebäude | C14: =INDEX(Leistungsdaten!A:B,SUBSTITUTE(C17,"lstStadt",""),2) -> Leipzig | E14: KfW Effizienzhaus 100 | J14: Sonstige Wärmeerzeuger | K14: Max. | L14: 115 | N14: 12 °C | O14: Ausfüllhilfe Basis | P14: =E224 -> TRUE | T14: 3000 €
E15: KfW Effizienzhaus 115 | K15: Max. | L15: 130 | N15: 12 °C | O15: Ausfüllhilfe Innovation WP? | P15: =E228 -> FALSE | T15: 3500 €
B16: Norm-Außentemp. | C16: =INDEX(Leistungsdaten!A:C,SUBSTITUTE(C17,"lstStadt",""),3) -> -14 | E16: Altbau (WSchVO 95) | K16: ≥ | L16: 150 | N16: 15 °C | T16: 4000 €
B17: Stadt Application.caller | C17: lstStadt4521 | T17: 4500 €
T18: 5000 €
T19: 5500 €
T20: 6000 €
F21: 0=Ohne | T21: 6500 €
F22: 1=WP | T22: 7000 €
F23: 2=Solar | T23: 7500 €
F24: 3=WP+Solar | T24: 8000 €
T25: 8500 €
D26: Wohngebäude ? | E26: Effizienzbonus möglich ? | F26: System | H26: Neubau ? | N26: Altbau immer HGT 15 °C | T26: 9000 €
B27: Angabe wird nicht benötigt | D27: =IF(D6=D9,TRUE,FALSE) -> TRUE | E27: =IF(D6=D10,FALSE,TRUE) -> TRUE | F27: =IF(AND(F10=TRUE,F12=TRUE),3,IF(F10=TRUE,1,IF(F12=TRUE,2,0))) -> 1 | H27: =IF(G6=G9,TRUE,FALSE) -> FALSE | N27: 15 °C | T27: 9500 €
T28: 10000 €
B29: Comoboxen Wärmepumpe | T29: 10500 € | U29: Auswahl Zusatzkomponenten
H30: Wärmequellentemperatur | K30: Komponenten Sole | O30: Zahlenwert | P30: Zahlenwert | Q30: Zahlenwert | R30: Zahlenwert | T30: 11000 €
B31: Wärmequelle | C31: WP-Typ | D31: Betriebsweise | E31: Bivalenzpunkt | F31: Vorlauftemperatur | G31: Heizsystem | H31: Sole | I31: Wasser | J31: Komponenten Heizung | L31: Warmwasserbereitung | M31: Anteil WWB | N31: % WWB | O31: Temp. Quelle | P31: Temp. Quelle | Q31: Deckungsanteil | R31: Anteil WWB | T31: 11500 € | W31: Auswahl | X31: =$B$37 -> Außenluft | Y31: =$B$38 -> Erdreich | Z31: =$B$39 -> Grundwasser
O32: Sole-Wasser | P32: Sole oder Wasser | Q32: Bivalenzpunkt | T32: 12000 €
T33: 12500 € | U33: WMZ eingebaut ? | W33: =HLOOKUP($B$34,$X$31:$Z$37,3,FALSE) -> TRUE | X33: =VLOOKUP($C$34,Leistungsdaten!G:W,10,FALSE) -> TRUE | Y33: =X33 -> TRUE | Z33: =X33 -> TRUE
B34: Außenluft | C34: WPL 25 A | D34: Monoenergetisch | E34: -5 °C | F34: 55 °C | G34: Radiatorenheizung | H34: Erdwärmesonde (Neuerrichtung) | J34: EC-Pumpe Heizung | K34: Keine | L34: Mit Heizungs-Wärmepumpe | M34: Vorgabewert | N34: 18 | O34: =IF(OR(K34=K39,K34=K40),VLOOKUP(H34,H36:O53,8,FALSE)+2,VLOOKUP(H34,H36:O53,8,FALSE)) -> 2 | P34: =IF(OR(B34=B38,B34=B37),O34,IF(B54=FALSE,(VLOOKUP(H34,I36:P54,8,FALSE)-3),VLOOKUP(H34,I36:P54,8,FALSE))) -> 2 | Q34: =IF(D34=D38,VLOOKUP(E34,E36:Q53,13,FALSE),1) -> 0.98 | R34: =IF(M54=FALSE,0,N34/100) -> 0.18 | T34: 13000 € | U34: EC-Pumpe Heizung eingebaut ? | W34: =HLOOKUP($B$34,$X$31:$Z$37,4,FALSE) -> FALSE | X34: =VLOOKUP($C$34,Leistungsdaten!G:W,9,FALSE) -> FALSE | Y34: =X34 -> FALSE | Z34: =X34 -> FALSE
T35: 13500 € | U35: EC-Pumpe Sole eingebaut ? | W35: =IF(R6>1,FALSE,HLOOKUP($B$34,$X$31:$Z$37,5,FALSE)) -> TRUE | X35: TRUE | Y35: =VLOOKUP($C$34,Leistungsdaten!G:W,11,FALSE) -> FALSE | Z35: =Y35 -> FALSE
N36: Typ WWB für Ausdruck | T36: 14000 € | U36: LWM 250 einsetzbar ? | W36: =HLOOKUP($B$34,$X$31:$Z$37,6,FALSE) -> FALSE | X36: FALSE | Y36: =VLOOKUP($C$34,Leistungsdaten!G:W,13,FALSE) -> FALSE | Z36: FALSE
B37: Außenluft | C37: Luft/Wasser-Wärmepumpe | D37: Monovalent | E37: -10 °C | F37: 30 °C | G37: Radiatorenheizung | H37: Erdwärmesonde (Neuerrichtung) | I37: Standardwert (10 °C) | J37: Keine | K37: Keine | L37: Mit Heizungs-Wärmepumpe | M37: Vorgabewert | O37: 2 | P37: 10 | Q37: 1 | T37: 14500 € | U37: EC-Pumpe Brunnen einsetzbar ? | W37: =HLOOKUP($B$34,$X$31:$Z$37,7,FALSE) -> FALSE | X37: FALSE | Y37: FALSE | Z37: =VLOOKUP($C$34,Leistungsdaten!G:Z,18,FALSE) -> FALSE
B38: Erdreich | C38: Sole/Wasser-Wärmepumpe | D38: Monoenergetisch | E38: -9 °C | F38: 35 °C | G38: Gebläsekonvektor AUK | H38: Erdwärmesonde (bereits vorhanden) | I38: 5 °C | J38: Wärmemengenzähler | K38: EC-Pumpe Sole | L38: Mit Warmwasser-Wärmepumpe | M38: Eingabe in % | O38: 2 | P38: 5 | Q38: 0.99 | T38: 15000 € | U38: WMZ gewählt/eingebaut (Fördervoraussetzung) ? | W38: =IF(OR(W33=TRUE,J34=J38,J34=J40),TRUE,FALSE) -> TRUE
B39: Grundwasser | C39: =IF(B54=FALSE,"Wasser/Wasser (Zwischenwärmetauscher)","Wasser/Wasser-Wärmepumpe") -> Wasser/Wasser (Zwischenwärmetauscher) | D39: Bivalent-Parallel | E39: -8 °C | F39: 40 °C | G39: Fußbodenheizung | H39: Erdreichkollektor | I39: 6 °C | J39: EC-Pumpe Heizung | K39: =$G$276 -> Abluftmodul LWM 250 | L39: Mit Abluft-Wärmepumpe | O39: 0 | P39: 6 | Q39: 0.99 | T39: 15500 €
E40: -7 °C | F40: 45 °C | G40: Wandheizung | H40: Erdwärmekorb | I40: 7 °C | J40: EC-Pumpe | Wärmemengenzähler | K40: =$G$277 -> EC-Pumpe-Sole | LWM 250 | L40: Durchlauferhitzer mit Ökostrom | O40: 0 | P40: 7 | Q40: 0.99 | T40: 16000 €
E41: -6 °C | F41: 50 °C | G41: Deckenheizung | I41: 8 °C | K41: EC-Pumpe Brunnen | L41: Durchlauferhitzer mit PV-Strom | P41: 8 | Q41: 0.99 | T41: 16500 €
E42: -5 °C | F42: 55 °C | G42: FBH und Radiatoren (FBH > 50%) | I42: 9 °C | K42: EC-Pumpe Sole + Brunnen | L42: Sonstige Wärmeerzeuger | P42: 9 | Q42: 0.98 | T42: 17000 €
E43: -4 °C | G43: FBH und Radiatoren (FBH < 50%) | I43: 10 °C | L43: =IF(D6=D10,"Angabe wird nicht benötigt","Keine Warmwasserbereitung") -> Keine Warmwasserbereitung | P43: 10 | Q43: 0.97 | T43: 17500 €
E44: -3 °C | I44: 11 °C | P44: 11 | Q44: 0.96 | T44: 18000 €
E45: -2 °C | I45: 12 °C | P45: 12 | Q45: 0.95 | T45: 18500 €
E46: -1 °C | I46: 13 °C | L46: !! Bei Hinzufügen/Löschen im VBA ListIndex und ListFillRange cboWarmwasserbereitung anpassen!! | P46: 13 | Q46: 0.93 | T46: 19000 €
E47: 0 °C | I47: 14 °C | P47: 14 | Q47: 0.9 | T47: 19500 €
E48: 1 °C | I48: 15 °C | P48: 15 | Q48: 0.87 | T48: 20000 €
E49: 2 °C | Q49: 0.83 | T49: 20500 €
E50: 3 °C | M50: WWB mit DE? | Q50: 0.77 | T50: 21000 €
E51: 4 °C | M51: =IF(OR(L34=L40,L34=L41),TRUE,FALSE) -> FALSE | Q51: 0.7 | T51: 21500 €
E52: 5 °C | Q52: 0.61 | T52: 22000 €
B53: WPW gewählt ? | C53: WP-Set ? | D53: Inverter ? | E53: Qualitätscheck gewählt ? | F53: SG-ready ? | G53: Produktbild | H53: Link Webseite WP | I53: Link WP-Datenblatt | J53: EC-Pumpe HK gewählt ? | K53: EC-Pumpe Eingebaut ? | L53: WWB integriert ? | M53: WWB mit EE? | N53: WWB Separat ? | O53: Heizungsoptimierung gewählt? | P53: Sonderbauform nach Bafa ? | T53: 22500 €
B54: =VLOOKUP(C34,Leistungsdaten!G:AA,21,FALSE) -> FALSE | C54: =VLOOKUP(C34,Leistungsdaten!G:M,7,FALSE) -> FALSE | D54: =VLOOKUP(C34,Leistungsdaten!G:W,14,FALSE) -> TRUE | E54: TRUE | F54: =VLOOKUP(C34,Leistungsdaten!G:AH,26,FALSE) -> TRUE | G54: =IF(ISERROR(VLOOKUP(C34,Leistungsdaten!G:AE,25,FALSE)),FALSE,VLOOKUP(C34,Leistungsdaten!G:AE,25,FALSE)) -> PIC00003555-00.jpg | H54: =$G$272 -> http://apps.stiebel-eltron.de/produktdaten/?article=232493 | I54: =$G$273 -> http://www.stiebel-eltron.de/services/productproxy.product.pdf?productnr=232493 | J54: =IF(OR(W34=TRUE,J34=J39,J34=J40),TRUE,FALSE) -> TRUE | K54: =VLOOKUP(C34,Leistungsdaten!G:AD,24,FALSE) -> FALSE | L54: =VLOOKUP(C34,Leistungsdaten!G:N,8,FALSE) -> FALSE | M54: =IF(OR(L34=L42,L34=L43),FALSE,TRUE) -> TRUE | N54: =IF(OR(L34=L38,L34=L39,L34=L40,L34=L41),TRUE,FALSE) -> FALSE | O54: FALSE | P54: =VLOOKUP(C34,Leistungsdaten!G:U,15,FALSE) -> FALSE | T54: 23000 € und mehr
B56: Comoboxen Solar
B58: Kollektortyp | C58: Kollektoranzahl | D58: Wärmeerzeuger | E58: Kesseltausch | G58: Installationsart | H58: Nutzungsart | I58: Kollektorfläche (m²) | K58: Basisförderung | L58: Innovation | M58: Puffervolumen min
B61: SOL 27 premium S | C61: 4 | D61: Förderfähiger Biomassekessel | E61: Alter Kessel wird getauscht | G61: Erstinstallation | H61: Warmwasser und Heizung | I61: =VLOOKUP(B61,Leistungsdaten!G:O,2,FALSE)*C61 -> 10.2 | K61: =IF(H61=H64,K64,K65) -> 2000 | L61: =IF(V181=FALSE,0,IF(H61=H64,L64,L65)) -> 0 | M61: =ROUNDUP(I61*40,-1)&" Liter" -> 410 Liter
B64: =Leistungsdaten!G205 -> SOL 27 premium S | C64: 1 | D64: Gas-Brennwertkessel | E64: Alter Kessel wird getauscht | G64: Erstinstallation | H64: Warmwasser und Heizung | K64: =IF(G61=G64,MAX(ROUNDDOWN(I61,0)*140,2000),IF(AND(G61=G65,I61>4),ROUNDDOWN(I61,0)*50,0)) -> 2000 | L64: =IF(G6=G9,ROUNDDOWN(I61,0)*150,ROUNDDOWN(I61,0)*200) -> 2000
B65: =Leistungsdaten!G206 -> SOL 27 premium W | C65: 2 | D65: Öl-Brennwertkessel | E65: Alter Kessel wird nicht getauscht | G65: Erweiterung bestehende Anlage | H65: Nur Warmwasserbereitung | K65: =IF(AND(G61=G64,I61<3),0,IF(AND(G61=G65,I61<4),0,MAX(ROUNDDOWN(I61,0)*50,500))) -> 500 | L65: =IF(G6=G9,ROUNDDOWN(I61,0)*75,ROUNDDOWN(I61,0)*100) -> 1000
B66: =Leistungsdaten!G207 -> SOL 27 basic S | C66: 3 | D66: Förderfähiger Biomassekessel
B67: =Leistungsdaten!G208 -> SOL 27 basic W | C67: 4 | D67: Sonstiger Wärmeerzeuger
B68: =Leistungsdaten!G209 -> SOL 23 premium | C68: 5
C69: 6
C70: 7
C71: 8
C72: 9
C73: 10
C74: 11
C75: 12
C76: 13
C77: 14
C78: 15 | D78: Abfrage Kesseltausch ? | E78: Produktbild Kollektor | F78: Link Datenblatt | G78: Link Web
D79: =IF(G6=G9,FALSE,IF(F27<>2,FALSE,IF(D61=D64,TRUE,IF(D61=D65,TRUE,FALSE)))) -> FALSE | E79: =IF(ISERROR(VLOOKUP(B61,Leistungsdaten!G:AE,25,FALSE)),FALSE,VLOOKUP(B61,Leistungsdaten!G:AE,25,FALSE)) -> PIC00001016-00.jpg | F79: =G275 -> http://www.stiebel-eltron.de/services/productproxy.product.pdf?productnr=230016 | G79: =G274 -> http://apps.stiebel-eltron.de/produktdaten/?article=230016
B129: JAZ - Korrekturfaktor Verflüssiger | G129: JAZ - Korrekturfaktor Quellenpumpe
C130: Luft-Wasser | D130: Sole-Wasser | E130: Wasser-Wasser | H130: Luft-Wasser | I130: Sole-Wasser | J130: Zwischen-WT | K130: Wasser-Wasser
B131: DeltaT Prüfstand: | C131: =VLOOKUP($C$34,Leistungsdaten!G:H,2,FALSE) -> 5 | D131: =C131 -> 5 | E131: =C131 -> 5 | G131: Heizleistung WP | I131: =VLOOKUP($C$34,Leistungsdaten!G:L,6,FALSE)*R6 -> 8.33 | J131: =VLOOKUP($C$34,Leistungsdaten!G:AC,22,FALSE)*R6 -> 0 | K131: =J131 -> 0
B132: Fußbodenheizung | C132: =-0.0102*$C$131+1.0716 -> 1.0206 | D132: =C132 -> 1.0206 | E132: =C132 -> 1.0206 | G132: Leistungsaufnahme WP | I132: =VLOOKUP($C$34,Leistungsdaten!G:J,4,FALSE)*R6 -> 4.17 | J132: =I132 -> 4.17 | K132: =I132 -> 4.17
B133: Radiatorenheizung | C133: =-0.0102*$C$131+1.1025 -> 1.0515 | D133: =C133 -> 1.0515 | E133: =C133 -> 1.0515 | G133: EC-Pumpe Sole eingesetzt? | I133: =IF(OR(W35=TRUE,K34=K38,K34=K40,K34=K42),TRUE,FALSE) -> TRUE | J133: =I133 -> TRUE | K133: -
B134: Warmwasserbereitung | C134: =C132 -> 1.0206 | D134: =C133 -> 1.0515 | E134: =C133 -> 1.0515 | G134: Leistung EC-Solepumpe | I134: =VLOOKUP($C$34,Leistungsdaten!G:O,5,FALSE) -> 5.16 | J134: =IF(J133=TRUE,I134,0.075*J132) -> 5.16 | K134: -
G135: Bezeichnung EC-Pumpe | I135: =VLOOKUP($C$34,Leistungsdaten!G:R,12,FALSE) -> - | J135: =I135 -> - | K135: -
G136: Ausgabe Druck | I136: =IF(OR(I133=FALSE,I141=I142),H143,"Typ: "&I135&" | Leistung: "&I134*1000&" W") -> Standard nach VDI 4650 | J136: =IF(J133=FALSE,H143,"Typ: "&I135&" | Leistung: "&I134*1000&" W") -> Typ: - | Leistung: 5160 W | K136: -
G137: EC-Pumpe Brunnen eigesetzt ? | I137: - | J137: =IF(OR(K34=K41,K34=K42),TRUE,FALSE) -> FALSE | K137: =J137 -> FALSE
G138: Leistung EC-Brunnenpumpe | I138: - | J138: =IF(J137=TRUE,VLOOKUP($C$34,Leistungsdaten!G:Z,20,FALSE),IF(J131<10,0.25*J132,IF(J131>20,0.14*J132,0.2*J132))) -> 1.0425 | K138: =VLOOKUP($C$34,Leistungsdaten!G:Z,20,FALSE) -> -
G139: Bezeichnung EC-Pumpe | I139: - | J139: =VLOOKUP($C$34,Leistungsdaten!G:Z,19,FALSE) -> - | K139: =J139 -> -
G140: Ausgabe Druck | I140: - | J140: =IF(J137=FALSE,H143,"Typ: "&J139&" | Leistungsaufnahme: "&J138*1000&" W") -> Standard nach VDI 4650 | K140: =IF(OR(K137=FALSE,K141=K142),H143,"Typ: "&K139&" | Leistungsaufnahme: "&K138*1000&" W") -> Standard nach VDI 4650
G141: Korrekturfaktor Standard | I141: 1.075 | J141: =IF(J131<10,1.325,IF(J131>20,1.215,1.275)) -> 1.325 | K141: =IF(K131<10,1.25,IF(K131>20,1.14,1.2)) -> 1.25
G142: Korrekturfaktor Fp | I142: =IF(I133=FALSE,I141,MIN(I141,1+I134/I132)) -> 1.075 | J142: =IF(AND(J133=FALSE,J137=FALSE),J141,MIN(J141,1+((J134+J138)/J132))) -> 1.325 | K142: =IF(K137=FALSE,K141,MIN(K141,1+(K138/K132))) -> 1.25
G143: Text Standard | H143: Standard nach VDI 4650
B145: JAZ-Berechnung
B146: Luft-Wasser-WP | E146: Sole-Wasser-WP | H146: Wasser-Wasser | K146: Warmwasser-WP
B147: Heizleistung A2/W35 | D147: =VLOOKUP($C$34,Leistungsdaten!G:Q,6,FALSE)*R6 -> 8.33 | E147: Heizleistung B0/W35 | G147: =D147 -> 8.33 | H147: Heizleistung B0/W35 | J147: =D147 -> 8.33
B148: Leistungszahl A-7/W35 | C148: Leistungszahl B0/W35: | D148: =VLOOKUP($C$34,Leistungsdaten!G:O,3,FALSE) -> 2.93 | E148: Leistungszahl B0/W35: | F148: Leistungszahl B0/W35: | G148: =D148 -> 2.93 | H148: Leistungszahl B0/W35: | I148: Leistungszahl B0/W35: | J148: =D148 -> 2.93 | K148: Leistungszahl | M148: =VLOOKUP($E$240,Leistungsdaten!$G$155:$W$200,2,FALSE) -> 
B149: Leistungszahl A2/W35 | C149: Leistungszahl B0/W35: | D149: =VLOOKUP($C$34,Leistungsdaten!G:O,4,FALSE) -> 4.17 | E149: Korrektur Verdampfer: | G149: ='Tabellen VDI4650'!J112 -> 0.917 | H149: Korrektur Verdampfer: | J149: =IF(B54=FALSE,'Tabellen VDI4650'!J112,'Tabellen VDI4650'!J150) -> 0.917 | K149: Korrekturfaktor Prüfstand | M149: =VLOOKUP($E$240,Leistungsdaten!$G$155:$W$200,4,FALSE) -> 
B150: Leistungszahl A10/W35 | C150: Leistungszahl B0/W35: | D150: =VLOOKUP($C$34,Leistungsdaten!G:O,5,FALSE) -> 5.16 | E150: Korrektur Verflüssiger: | G150: =IF(OR(G34=G39,G34=G40,G34=G41,G34=G42),D132,D133) -> 1.0515 | H150: Korrektur Verflüssiger: | J150: =IF(OR(G34=G39,G34=G40,G34=G41,G34=G42),E132,E133) -> 1.0515 | K150: Korrekturfaktor WP-Art | M150: =VLOOKUP($E$240,Leistungsdaten!$G$155:$W$200,5,FALSE) -> 
B151: Korrekturfaktor F1 | D151: =VLOOKUP($N$6,'Tabellen VDI4650'!B7:K33,10,FALSE) -> 0.109 | E151: Korrektur Quellenpumpe | G151: =I142 -> 1.075 | H151: Korrektur Quellenpumpe | J151: =IF(B54=FALSE,J142,K142) -> 1.325
B152: Korrekturfaktor F2 | D152: =VLOOKUP($N$6,'Tabellen VDI4650'!B37:K63,10,FALSE) -> 0.626
B153: Korrekturfaktor F3 | D153: =VLOOKUP($N$6,'Tabellen VDI4650'!B67:K93,10,FALSE) -> 0.16
B154: Korrektur Verflüssiger | D154: =IF(OR(G34=G39,G34=G40,G34=G41,G34=G42),C132,C133) -> 1.0515
B155: Jahresarbeitszahl HZG (monovalent): | D155: =D154*(D148*D151+D149*D152+D150*D153) -> 3.948792585 | E155: Jahresarbeitszahl HZG (monovalent): | G155: =G148*G149*G150/G151 -> 2.628075084 | H155: Jahresarbeitszahl HZG (monovalent): | J155: =J148*J149*J150/J151 -> 2.13221186
B156: Jahresarbeitszahl WWB | D156: =($D$148*0.103+$D$149*0.903+$D$150*0.061)*$C$134 -> 4.472330436 | E156: Jahresarbeitszahl WWB | G156: =$G$148*VLOOKUP($P$34,'Tabellen VDI4650'!$B$112:$J$137,8,FALSE)*$D$134/$G$151 -> 2.628075084 | H156: Jahresarbeitszahl WWB | J156: =IF(B54=FALSE,$J$148*VLOOKUP($P$34,'Tabellen VDI4650'!$B$112:$J$137,8,FALSE)*$E$134/$J$151,$J$148*VLOOKUP($P$34,'Tabellen VDI4650'!B150:I163,8,FALSE)*$E$134/$J$151) -> 2.13221186 | K156: Jahresarbeitszahl WWB | M156: =M148*M149*M150 -> 
B158: JAZ-Heizung (monovalent) | E158: =IF(B34=B37,D155,IF(B34=B38,G155,J155)) -> 3.948792585
B159: JAZ-Heizung (mit Deckungsanteil) | E159: =1/((Q34/E158)+1-Q34) -> 3.728878783
B160: JAZ-Warmwasserbereitung | E160: =IF(OR(L34=L40,L34=L41,L34=L42,L34=L43,D6=D10),1,IF(L34=L37,IF(B34=B37,D156,IF(B34=B38,G156,J156)),M156)) -> 4.472330436
B161: JAZ-Gesamt | E161: =IF(OR(L34=L40,L34=L41,L34=L42,L34=L43,D6=D10),E159,ROUND(1/(((1-R34)*Q34/E158+R34*Q34/E160+1-Q34)),2)) -> 3.8
B165: Basisförderung WP | D165: Wahr/falsch | E165: Ausgabetext wenn falsch | H165: Basisförderung Solar | J165: Wahr/falsch | K165: Ausgabetext wenn falsch | N165: Kombibonus Solar | P165: Wahr/falsch | Q165: Ausgabetext wenn falsch | T165: Innovationsförderung Solar | V165: Wahr/falsch | W165: Ausgabetext wenn falsch | Z165: Innovationsförderung Wärmepumpe | AB165: Wahr/falsch | AC165: Ausgabetext wenn falsch | AF165: Effizienzbonus | AH165: Wahr/falsch | AI165: Ausgabetext wenn falsch | AL165: Bonus Lastmanagementfähigkeit | AN165: Wahr/falsch | AO165: Ausgabetext wenn falsch | AR165: Bonus Qualitätscheck | AT165: Wahr/falsch | AU165: Ausgabetext wenn falsch | AX165: Bonus Optimierung Heizung | AZ165: Wahr/falsch | BA165: Ausgabetext wenn falsch | BD165: Bonus Austausch Heizung APEE | BF165: Wahr/falsch | BG165: Ausgabetext wenn falsch
B166: Altbau ? | D166: =IF($H$27=TRUE,FALSE,TRUE) -> TRUE | E166: Als Gebäudetyp wurde 'Neubau' angegeben. Die Wärmepumpen-Basisförderung wird nur für Bestandsgebäude gewährt. | H166: Altbau gewählt ? | J166: =IF(G6=G10,TRUE,FALSE) -> TRUE | K166: Die Basisförderung für Solaranlagen wird nur für Bestandsgebäude gewährt. Der Neubaubereich ist von der Förderung ausgeschlossen. | N166: Neubau Brennwertkessel ? | P166: =IF(AND(F27=2,OR(D61=D64,D61=D65)),IF(H27=TRUE,FALSE,TRUE),TRUE) -> TRUE | Q166: Der Kombinationsbonus für Brennwertkessel wird nur gewährt, wenn in Bestandsgebäuden ein Altgerät ohne Brennwertnutzung getauscht wird. | AF166: Bestandsgebäude gewählt ? | AH166: =IF($H$27=TRUE,FALSE,TRUE) -> TRUE | AI166: Als Gebäudetyp wurde 'Neubau' angegeben. Der Effizienzbonus wird nur für Bestandsgebäude gewährt.
B167: Wärmepumpe gewählt ? | D167: =IF(OR($F$27=2,$F$27=0),FALSE,TRUE) -> TRUE | E167: Es wurde keine Wärmepumpe im Menüpunkt 'Gebäude' ausgewählt. | H167: Solar gewählt ? | J167: =IF(OR($F$27=1,F27=0),FALSE,TRUE) -> FALSE | K167: Es wurde keine Solaranlage im Menüpunkt 'Gebäude' ausgewählt. | N167: Solar gewählt ? | P167: =IF(OR($F$27=1,F27=0),FALSE,TRUE) -> FALSE | Q167: Der Kombinationsbonus Solar wird nur in Verbindung mit einer Thermischen Solaranlage gewährt. Es wurde keine Solaranlage im Menüpunkt 'Gebäude' ausgewählt. | T167: Solar gewählt ? | V167: =IF(OR($F$27=1,F27=0),FALSE,TRUE) -> FALSE | W167: Der Innovationsförderung wird nur in Verbindung mit einer Thermischen Solaranlage gewährt. Es wurde keine Solaranlage im Menüpunkt 'Gebäude' ausgewählt. | Z167: Wärmepumpe gewählt ? | AB167: =IF(OR($F$27=2,$F$27=0),FALSE,TRUE) -> TRUE | AC167: Es wurde keine Wärmepumpe im Menüpunkt 'Gebäude' ausgewählt. | AF167: Wohngebäude gewählt? | AH167: =IF(D6=D9,TRUE,FALSE) -> TRUE | AI167: Der Effizienzbonus wird nur für Wohngebäude gewährt. | AL167: Wärmepumpe gewählt? | AN167: =IF(OR(F27=2,F27=0),FALSE,TRUE) -> TRUE | AO167: Es wurde keine Wärmepumpe im Menüpunkt 'Gebäude' ausgewählt. | AR167: Wärmepumpe gewählt? | AT167: =IF(OR(F27=2,F27=0),FALSE,TRUE) -> TRUE | AU167: Es wurde keine Wärmepumpe im Menüpunkt 'Gebäude' ausgewählt. | AX167: Wärmepumpe gewählt? | AZ167: =IF(OR(F27=2,F27=0),FALSE,TRUE) -> TRUE | BA167: Es wurde keine Wärmepumpe im Menüpunkt 'Gebäude' ausgewählt. | BD167: Öl-Gaskessel alt gewählt? | BF167: =IF(OR(J6=J9,J6=J10),TRUE,FALSE) -> TRUE | BG167: Die alte Heizungsanlage muss auf Basis fossiler Energien (z. B. Gas oder Öl) betrieben worden sein und diese darf keine Brennwerttechnik genutzt haben.
B168: JAZ-Min erreicht ? | D168: =IF(ROUND($D$205,1)>=$D$206,TRUE,FALSE) -> TRUE | E168: ="Als Fördervoraussetzung ist eine Mindest-Jahresarbeitszahl von "&D206&" festgesetzt. Diese wird mit dem gewählten System nicht erreicht." -> Als Fördervoraussetzung ist eine Mindest-Jahresarbeitszahl von 3,5 festgesetzt. Diese wird mit dem gewählten System nicht erreicht. | H168: Fläche Erstinstallation WWB erreicht ? | J168: =IF(G61=G65,TRUE,IF(H61=H64,TRUE,IF(I61>=3,TRUE,FALSE))) -> TRUE | K168: Die Basisförderung für die Erstinstallation einer Thermischen Solaranlagen zur Warmwasserbereitung wird erst ab einer Mindest-Kollektorfläche von 3,0 m² gewährt. | N168: Kesseltausch ? | P168: =IF(AND(D79=TRUE,E61=E65),FALSE,TRUE) -> TRUE | Q168: Es wurde kein Kesseltausch vorgenommen. Der Kombinationsbonus ist nur bei Austausch eines Heizkessels ohne Brennwertnutzung gegen einen Brennwertkessel möglich. | T168: 20 - 100 m² Kollektorfläche ? | V168: =IF(I61>20,TRUE,FALSE) -> FALSE | W168: Die Innovationsförderung wird nur für Solaranlagen > 20 m² Kollektorfläche gewährt. | Z168: JAZ-Min erreicht ? | AB168: =IF(ROUND($P$205,1)>=$P$206,TRUE,FALSE) -> FALSE | AC168: ="Als Fördervoraussetzung ist eine Mindest-Jahresarbeitszahl von "&P206&" festgesetzt. Diese wird mit dem gewählten System nicht erreicht." -> Als Fördervoraussetzung ist eine Mindest-Jahresarbeitszahl von 4,5 festgesetzt. Diese wird mit dem gewählten System nicht erreicht. | AF168: HT 30% unter EnEV? | AH168: =IF(L6>70,FALSE,TRUE) -> FALSE | AI168: Zur Gewährung des Effizienzbonus muss der Transmissionswärmeverlust des Gebäudes min. 30% unter den Vorgaben der EnEV 2014 liegen. Für den unter 'Gebäude' gewählten Dämmstandard trifft dies nicht zu. | AL168: Wärmepumpe förderfähig? | AN168: =IF(OR(D181=TRUE,AB181=TRUE),TRUE,FALSE) -> TRUE | AO168: Der Bonus für Lastmanagementfähigkeit kann nicht gewährt werden, da für die gewählte Wärmepumpe keine Basisförderung gewährt wird. | AR168: Wärmepumpe förderfähig? | AT168: =IF(AND(D181=FALSE,AB181=FALSE),FALSE,TRUE) -> TRUE | AU168: Der Optimierungsbonus kann nicht gewährt werden, da die gewählte Wärmepumpe nicht förderfähig ist. | AX168: Wärmepumpe förderfähig? | AZ168: =IF(AND(D181=FALSE,AB181=FALSE),FALSE,TRUE) -> TRUE | BA168: Der Optimierungsbonus kann nicht gewährt werden, da die gewählte Wärmepumpe nicht förderfähig ist. | BD168: Heizungsoptimierung gewählt) | BF168: =O54 -> FALSE | BG168: Zur Gewährung des Bonus müssen zusätzlich zum Austausch des alten Heizkessels Optimieriungen am Heizungssystem vorgenommen werden.
H169: Fläche Erstinstallation WWB erreicht ? | J169: =IF(G61=G65,TRUE,IF(H61=H65,TRUE,IF(I61>=9,TRUE,FALSE))) -> TRUE | K169: Die Basisförderung für die Erstinstallation einer Thermischen Solaranlagen zur kombinierten Warmwasserbereitung und Heizungsunterstützung wird erst ab einer Mindest-Kollektorfläche von 9,0 m² gewährt. | N169: Biomasse/WP gewählt ? | P169: =IF(F27=3,TRUE,IF(AND(F27=2,D61=D66),TRUE,FALSE)) -> FALSE | Q169: Für die Gewährung des Kombinationsbonus muss neben der Solaranlage auch ein förderfähiger Biomassekessel oder eine Wärmepumpe installiert werden. | T169: Neusinstalltion Solaranlage ? | V169: =IF(G61=G65,FALSE,TRUE) -> TRUE | W169: Der Innovationsbonus wird nur bei Erstinstallation einer Solaranlage gewährt. Die Erweiterung bereits bestehender Anlagen wird nicht gefördert. | AF169: Basisförderung Solar/WP/Pellets erreicht ? | AH169: =IF(D181=TRUE,TRUE,IF(J181=TRUE,TRUE,IF(AB181=TRUE,TRUE,IF(AND(F27=2,D61=D66),TRUE,FALSE)))) -> TRUE | AI169: Der Effizienzbonus kann nicht gewährt werden, da die gewählte Solaranlage/Wärmepumpe nicht förderfähig und auch kein förderfähiger Biomassekessel zum Einsatz kommt. | AL169: Wurde ein Puffer ausgewählt? | AN169: =IF(C240>0,TRUE,FALSE) -> TRUE | AO169: Es wurde kein neuer Pufferspeicher ausgewählt. Für den Bonus werden mind. 30 Liter/KW neu errichtetes Puffervolumen gefordert. | AR169: Qualitätscheck angehakt | AT169: =E54 -> TRUE | AU169: Die Durchführung des Qualitätschecks nach einem Betriebsjahr wurde nicht angewählt. | AX169: Heizungsoptimierung angehakt | AZ169: =O54 -> FALSE | BA169: Es wurden im Bereich 'Gebäude' keine Optimierungsmaßnahmen an der Heizungsanlage gewählt. | BD169: Förderfähige WP oder Solar? | BF169: =IF(SUM(F223:F230)=0,FALSE,TRUE) -> TRUE | BG169: Der Austauschbonus kann nicht gewährt werden, da keine förderfähige Wärmepumpe oder Solaranlage gewählt wurde.
B170: Leistung< 100 KW | D170: =IF($D$207>100,FALSE,TRUE) -> TRUE | E170: Die Heizleistung der gewählten Wärmepumpenanlage ist größer als 100 KW. Das Marktanreizprogramm ist auf Wärmepumpen-Anlagen bis 100 KW begrenzt. | H170: Mindestfläche Erweiterung erreicht ? | J170: =IF(G61=G64,TRUE,IF(I61>=4,TRUE,FALSE)) -> TRUE | K170: Die Basisförderung für die Erweiterung einer bestehenden Thermischen Solaranlagen wird erst ab einer Kollektorfläche von mind. 4,0 m² gewährt. | N170: Wärmepumpe förderfähig ? | P170: =IF(F27=2,TRUE,IF(OR(D181=TRUE,AB181=TRUE),TRUE,FALSE)) -> TRUE | Q170: Der Kombinationsbonus Solar kann nicht gewährt werden, da die gewählte Wärmepumpe nicht förderfähig ist. | T170: Nichtwohngebäude > 500 m² ? | V170: =IF(D27=TRUE,TRUE,IF(I6=I9,FALSE,TRUE)) -> TRUE | W170: Die Innovationsförderung wird bei Nichtwohngebäuden nur für Nutzflächen > 500 m² gewährt. | Z170: Leistung< 100 KW | AB170: =IF($D$207>100,FALSE,TRUE) -> TRUE | AC170: Die Heizleistung der gewählten Wärmepumpenanlage ist größer als 100 KW. Das Marktanreizprogramm ist auf Wärmepumpen-Anlagen bis 100 KW begrenzt. | AF170: Bonus Solar nur bei Neuanlage | AH170: =IF(AND(F27=2,G61=G65),FALSE,TRUE) -> TRUE | AI170: Der Effizienzbonus wird nur bei Erstinstallation einer Solaranlage gewährt. Die Erweiterung bereits bestehender Anlagen wird nicht gefördert. | AL170: Mind. 30 l/KW erreicht ? | AN170: =IF(H240<30,FALSE,TRUE) -> TRUE | AO170: Der Bonus für Lastmanagementfähigkeit kann nicht gewährt werden, da das geforderte Mindestvolumen von 30 Liter/KW nicht erreicht wird. | AR170: Keine Innovationsförderung? | AT170: TRUE | AU170: Der Wärmepumpen-Qualitätscheck nach einem Betriebsjahr ist Fördervoraussetzung für die Gewährung der Innovationsförderung und wird daher nicht extra vergütet. | AX170: Bestandsgebäude? | AZ170: =IF($H$27=TRUE,FALSE,TRUE) -> TRUE | BA170: Als Gebäudetyp wurde 'Neubau' angegeben. Optimierungsmaßnahmen an der Heizungsanlage sind nur in Bestandsgebäuden förderfähig. | BD170: Mehr als Optimierungsbonus? | BF170: =IF(MIN(D224/2,0.1*U6)>=D231,FALSE,TRUE) -> TRUE | BG170: Der Bonus für die Optimierung der Heizungsanlage fällt höher aus als der Bonus für den Heizkesseltausch, daher wird der Optimierungsbonus in Ansatz gebracht (beide sind nicht miteinander kumulierbar)
B171: WMZ eingebaut ? | D171: =$W$38 -> TRUE | E171: Fördervoraussetzung ist die Messung aller von der Wärmepumpe abgegebenen Wärmemengen. Bei der gewählten Anlage ist kein Wärmemengenzähler enthalten. | H171: Solare HU gewählt ? | J171: TRUE | K171: Die Basisförderung für Thermische Solaranlagen wird nur für die kombinierte solare Warmwasserbereitung und Heizungsunterstützung gewährt. | N171: Neuinstallation Solaranlage ? | P171: =IF(G61=G65,FALSE,TRUE) -> TRUE | Q171: Der Kombinationsbonus Solar wird nur bei Erstinstallation einer Solaranlage gewährt. Die Erweiterung bereits bestehender Anlagen wird nicht gefördert. | T171: Wohngebäude mit drei WE oder HAT' < 70 ? | V171: =IF(D27=FALSE,TRUE,IF(OR(H6=H11,H6=H12),TRUE,IF(L6>70,FALSE,TRUE))) -> FALSE | W171: Für Ein- und Zweifamilienhäuser wird die Innovationsförderung nur gewährt wenn der Transmissionswärmeverlust des Gebäudes mind. 30% unter dem Referenzwert nach Energieeinsparverordnung liegt (KfW55). | Z171: WMZ eingebaut ? | AB171: =$W$38 -> TRUE | AC171: Fördervoraussetzung ist die Messung aller von der Wärmepumpe abgegebenen Wärmemengen. Bei der gewählten Anlage ist kein Wärmemengenzähler enthalten. | AL171: Ist WP SG-ready ? | AN171: =F54 -> TRUE | AO171: Die gewählte Wärmepumpe ist nicht lastmanagementfähig, d.h. sie wurde bisher nicht als 'Smart Grid Ready'-zertifiziert. | AR171: Bestandsgebäude ? | AT171: =IF($H$27=TRUE,FALSE,TRUE) -> TRUE | AU171: Als Gebäudetyp wurde 'Neubau' angegeben. Optimierungsmaßnahmen an der Heizungsanlage sind nur in Bestandsgebäuden förderfähig. | AX171: Mehr als APEE-Bonus? | AZ171: =IF(BF181=FALSE,TRUE,IF(MIN(D224/2,0.1*U6)>D231,TRUE,FALSE)) -> TRUE | BA171: Der Bonus für den Heizkesseltausch fällt höher aus als der Bonus für die Optimierung der Heizungsanlage, daher wird der Heizungstauschbonus (APEE) in Ansatz gebracht (beide sind nicht miteinander kumulierbar)
B172: Platzhalter EC-Pumpe eingebaut ? | D172: =$J$54 -> TRUE | E172: Für die gewählte Heizungsanlage wurde keine Effizienzpumpe gewählt. Seit dem 01.09.2011 sind Wärmepumpen nur dann förderfähig, wenn mindestens eine Umwälzpumpe der Effizienzklasse A im Heizkreis eingebunden ist. | N172: Förderung Solar erreicht ? | P172: =IF(OR(J181=TRUE,V181=TRUE),TRUE,FALSE) -> FALSE | Q172: Der Kombinationsbonus Solar kann nicht gewährt werden, da die gewählte Solaranlage nicht förderfähig ist. | Z172: Platzhalter EC-Pumpe eingebaut ? | AB172: =$J$54 -> TRUE | AC172: Für die gewählte Heizungsanlage wurde keine Effizienzpumpe gewählt. Seit dem 01.09.2011 sind Wärmepumpen nur dann förderfähig, wenn mindestens eine Umwälzpumpe der Effizienzklasse A im Heizkreis eingebunden ist.
B173: Mit WWB ? | D173: =IF(OR($R$34=0,$L$34=$L$42,$L$34=$L$43),(IF($D$6=$D$9,FALSE,TRUE)),TRUE) -> TRUE | E173: In Wohngebäuden werden nur Wärmepumpenanlagen zur kombinierten Heizung und Warmwasserbereitung gefördert. Im gewählten System wird die Wärmepumpe ausschließlich zur Raumheizung eingesetzt. | Z173: Mit WWB ? | AB173: =IF(OR($R$34=0,$L$34=$L$42,$L$34=$L$43),(IF($D$6=$D$9,FALSE,TRUE)),TRUE) -> TRUE | AC173: In Wohngebäuden werden nur Wärmepumpenanlagen zur kombinierten Heizung und Warmwasserbereitung gefördert. Im gewählten System wird die Wärmepumpe ausschließlich zur Raumheizung eingesetzt.
B174: In Bafa-Liste vorhanden ? | D174: =VLOOKUP($C$34,Leistungsdaten!$G:$W,17,FALSE) -> TRUE | E174: Die gewählte Wärmepumpe ist bislang nicht in der BAFA-Liste förderfähiger Wärmepumpen aufgeführt. Daher kann keine Förderung gewährt werden. | Z174: In Bafa-Liste vorhanden ? | AB174: =VLOOKUP($C$34,Leistungsdaten!$G:$W,17,FALSE) -> TRUE | AC174: Die gewählte Wärmepumpe ist nicht in der BAFA-Liste förderfähiger Wärmepumpen aufgeführt. Daher kann keine Förderung gewährt werden.
Z175: Qualitätscheck mit ISG gewählt ? | AB175: =E54 -> TRUE | AC175: Fördervoraussetzung ist die Durchführung eines Qualitätschecks der Wärmepumpe nach Ablauf eines Jahres nach Inbetriebnahme. Bitte wählen Sie diese Option an.
Z176: FBH gewählt ? | AB176: =IF(OR(G34=G39,G34=G40,G34=G41,G34=G42),TRUE,FALSE) -> FALSE | AC176: Die Innovationsförderung wird nur in Verbindung mit Flächenheizsystemen (z.B. Fußbodenheizung) gewährt. Bei kombinierten Verteilsystemen (zb. Fußbodenheizung und Radiatoren) muss die Flächenheizung einen Anteil von über 50% haben.
B181: Basisförderung WP erreicht ? | D181: =IF(COUNTIF(D166:D180,FALSE)>0,FALSE,TRUE) -> TRUE | E181: =VLOOKUP(FALSE,D166:F180,2,FALSE) ->  | H181: Basisförderung erreicht ? | J181: =IF(COUNTIF(J166:J180,FALSE)>0,FALSE,TRUE) -> FALSE | K181: =VLOOKUP(FALSE,J166:L180,2,FALSE) -> Es wurde keine Solaranlage im Menüpunkt 'Gebäude' ausgewählt. | N181: Erreicht | P181: =IF(COUNTIF(P166:P180,FALSE)>0,FALSE,TRUE) -> FALSE | Q181: =VLOOKUP(FALSE,P166:R180,2,FALSE) -> Der Kombinationsbonus Solar wird nur in Verbindung mit einer Thermischen Solaranlage gewährt. Es wurde keine Solaranlage im Menüpunkt 'Gebäude' ausgewählt. | T181: Erreicht | V181: =IF(COUNTIF(V166:V180,FALSE)>0,FALSE,TRUE) -> FALSE | W181: =VLOOKUP(FALSE,V166:X180,2,FALSE) -> Der Innovationsförderung wird nur in Verbindung mit einer Thermischen Solaranlage gewährt. Es wurde keine Solaranlage im Menüpunkt 'Gebäude' ausgewählt. | Z181: Erreicht | AB181: =IF(COUNTIF(AB166:AB180,FALSE)>0,FALSE,TRUE) -> FALSE | AC181: =VLOOKUP(FALSE,AB166:AD180,2,FALSE) -> Als Fördervoraussetzung ist eine Mindest-Jahresarbeitszahl von 4,5 festgesetzt. Diese wird mit dem gewählten System nicht erreicht. | AF181: Erreicht | AH181: =IF(COUNTIF(AH166:AH180,FALSE)>0,FALSE,TRUE) -> FALSE | AI181: =VLOOKUP(FALSE,AH166:AJ180,2,FALSE) -> Zur Gewährung des Effizienzbonus muss der Transmissionswärmeverlust des Gebäudes min. 30% unter den Vorgaben der EnEV 2014 liegen. Für den unter 'Gebäude' gewählten Dämmstandard trifft dies nicht zu. | AL181: Erreicht | AN181: =IF(COUNTIF(AN166:AN180,FALSE)>0,FALSE,TRUE) -> TRUE | AO181: =VLOOKUP(FALSE,AN166:AP180,2,FALSE) ->  | AR181: Erreicht | AT181: =IF(COUNTIF(AT166:AT180,FALSE)>0,FALSE,TRUE) -> TRUE | AU181: =VLOOKUP(FALSE,AT166:AV180,2,FALSE) ->  | AX181: Erreicht | AZ181: =IF(COUNTIF(AZ166:AZ180,FALSE)>0,FALSE,TRUE) -> FALSE | BA181: =VLOOKUP(FALSE,AZ166:BB180,2,FALSE) -> Es wurden im Bereich 'Gebäude' keine Optimierungsmaßnahmen an der Heizungsanlage gewählt. | BD181: Erreicht | BF181: =IF(COUNTIF(BF166:BF180,FALSE)>0,FALSE,TRUE) -> FALSE | BG181: =VLOOKUP(FALSE,BF166:BH180,2,FALSE) -> Zur Gewährung des Bonus müssen zusätzlich zum Austausch des alten Heizkessels Optimieriungen am Heizungssystem vorgenommen werden.
F203: ! Werte werden auch in Ausdruck übernommen, also nicht dran rumfingern
B204: Berechnung Basisförderung WP | F204: Textfelder | G204: Wärmepumpe | I204: Solar | K204: Gesamtübersicht | N204: Berechnung Innovationsförderung WP
B205: JAZ-Ist | D205: =FIXED(E161,2)*1 -> 3.8 | G205: Beschreibung | H205: Wert | I205: Beschreibung | J205: Wert | K205: Beschreibung | L205: Wert | N205: JAZ-Ist | P205: =D205 -> 3.8
B206: JAZ-Soll | D206: =IF(B34=B37,3.5,IF(D6=D9,3.8,4)) -> 3.5 | F206: Zeile 1 | G206: =IF($B$34=$B$37,"Heizleistung A2/W35",IF(B54=TRUE,"Heizleistung B10/W35","Heizleistung B0/W35")) -> Heizleistung A2/W35 | H206: =IF(ISERROR(D147),"---",FIXED(D147,2)&" KW") -> 8,33 KW | I206: Ausführung | J206: =VLOOKUP(B61,Leistungsdaten!G:O,4,FALSE) -> Aufdach | K206: Bonus Wärmepumpen-Qualitätscheck | L206: =IF(E223=FALSE,"-",FIXED(F223,0)&" €") -> 250 € | N206: JAZ-Soll | P206: 4.5
B207: Heizleistung in KW | D207: =D147 -> 8.33 | F207: Zeile 2 | G207: =IF($B$34=$B$37,"Leistungszahl A-7/W35",IF(B54=TRUE,"Leistungszahl B10/W35","Leistungszahl B0/W35")) -> Leistungszahl A-7/W35 | H207: =IF($B$34=$B$37,FIXED(D148,2),FIXED(G148,2)) -> 2,93 | I207: Kollektorfläche | J207: =FIXED(VLOOKUP(B61,Leistungsdaten!G:O,2,FALSE),2)&" m²" -> 2,55 m² | K207: Basisförderung Wärmepumpe | L207: =IF(E224=FALSE,"-",FIXED(F224,0)&" €") -> 1.500 € | N207: Förderung Basis | P207: =D211 -> 1500
B208: Luft-Wasser | D208: =MAX(D207*40,IF(OR(D54=TRUE,D34=D37),1500,1300)) -> 1500 | F208: Zeile 3 | G208: =IF($B$34=$B$37,"Leistungszahl A2/W35",IF(B54=TRUE,"Leistungszahl B10/W35","Leistungszahl B0/W35")) -> Leistungszahl A2/W35 | H208: =IF($B$34=$B$37,FIXED(D149,2),FIXED(G148,2)) -> 4,17 | I208: Wirkungsgrad | J208: =VLOOKUP(B61,Leistungsdaten!G:O,3,FALSE) -> 82,3 % | K208: Basisförderung Solaranlage | L208: =IF(E225=FALSE,"-",FIXED(D225,0)&" €") -> - | N208: Förderung Altbau | P208: =P207*0.5 -> 750
B209: Sole-Wasser | D209: =MAX(D207*100,IF(H34=H37,4500,4000)) -> 4500 | F209: Zeile 4 | G209: =IF($B$34=$B$37,"Leistungszahl A10/W35","") -> Leistungszahl A10/W35 | H209: =IF($B$34=$B$37,FIXED(D150,2),"") -> 5,16 | I209: Gesamtfläche | J209: =FIXED(I61,2)&" m²" -> 10,20 m² | K209: Bonus für Lastmanagementfähigkeit | L209: =IF(E230=FALSE,"-",FIXED(D230,0)&" €") -> 500 € | N209: Förderung Neubau | P209: =P207 -> 1500
B210: Wasser-Wasser | D210: =MAX(D207*100,4000) -> 4000 | F210: Zeile 5 | G210: =IF(B34<>B37,"","Jahresarbeitszahl Soll") -> Jahresarbeitszahl Soll | H210: =IF(B34<>B37,"",FIXED(D206,2)) -> 3,50 | K210: Kombinationsbonus Solar | L210: =IF(E226=FALSE,"-",FIXED(D226,0)&" €") -> -
B211: Basisförderung | D211: =IF(B34=B37,D208,IF(B34=B38,D209,D210)) -> 1500 | F211: Zeile 6 | G211: =IF(B34<>B37,"","Jahresarbeitszahl Ist") -> Jahresarbeitszahl Ist | H211: =IF(ISERROR(D205),"---",IF(B34<>B37,"",FIXED(D205,2))) -> 3,80 | K211: Innovationsförderung Solar | L211: =IF(E227=FALSE,"-",FIXED(D227,0)&" €") -> - | N211: Innovationsförderung WP | P211: =IF(H27=TRUE,P209,P208) -> 750
F212: Zeile 7 | G212: Jahresarbeitszahl Soll | H212: =IF(ISERROR(D206),"---",IF(H27=TRUE,FIXED(P206,1),FIXED(D206,1))) -> 3,5 | K212: Innovationsförderung Wärmepumpe | L212: =IF(E228=FALSE,"-",FIXED(D228,0)&" €") -> -
F213: Zeile 8 | G213: Jahresarbeitszahl Ist | H213: =IF(ISERROR(D205),"---",FIXED(D205,1)) -> 3,8 | K213: Gebäudeeffizienzbonus | L213: =IF(E229=FALSE,"-",FIXED(D229,0)&" €") -> -
F214: Zeile 9 | K214: Bonus Heizungsaustausch (APEE) | L214: =IF(E231=FALSE,"-",FIXED(D231,0)&" €") -> -
F215: Zeile 10 | K215: Optimierungsbonus Heizungsanlage | L215: =IF(E232=FALSE,"-",FIXED(D222,0)&" €") -> 500 €
F216: Zeile 11 | K216: Max. Fördersumme | L216: =IF(F232=0,"0 €",FIXED(F232,0)&" €") -> 2.250 €
F217: Zeile 12 | K217: Sternchentext Optimierung Heizung | L217: =IF(OR(E222=FALSE,E231=TRUE),"Gemäß Richtlinien zur Förderung von Maßnahmen zur Nutzung erneuerbarer Energien im Wärmemarkt vom 11. März 2015. Irrtum und Technische Änderungen vorbehalten.","* 10% der Investitionskosten für Heizungsoptimierung, max. 50% Basisförderung Irrtum und Technische Änderungen vorbehalten.") -> Gemäß Richtlinien zur Förderung von Maßnahmen zur Nutzung erneuerbarer Energien im Wärmemarkt vom 11. März 2015. Irrtum und Technische Änderungen vorbehalten.
B221: Förderbeträge | D221: Betrag | E221: Gewährt ? | F221: Gewährt
B222: Bonus Heizungsoptimierung | D222: =MIN(D224/2,0.1*U6) -> 500 | E222: =AZ181 -> FALSE | F222: =IF(E222=TRUE,D222,0) -> 0
B223: Bonus Qualitätscheck WP | D223: 250 | E223: =AT181 -> TRUE | F223: =IF(E223=TRUE,D223,0) -> 250
B224: Basisförderung WP | D224: =D211 -> 1500 | E224: =D181 -> TRUE | F224: =IF(E224=TRUE,D224,0) -> 1500
B225: Basisförderung Solar | D225: =IF(F227>0,0,K61) -> 2000 | E225: =J181 -> FALSE | F225: 0
B226: Kombinationsbonus Solar | D226: 500 | E226: =P181 -> FALSE | F226: 0
B227: Innovationsförderung Solar | D227: =L61 -> 0 | E227: =V181 -> FALSE | F227: 0
B228: Innovationsförderung Wärmepumpe | D228: =P211 -> 750 | E228: =AB181 -> FALSE | F228: 0
B229: Effizienzbonus | D229: =0.5*(F224+F225+F227+F228) -> 750 | E229: =AH181 -> FALSE | F229: 0
B230: Bonus Lastmanagementfähigkeit | D230: 500 | E230: =AN181 -> TRUE | F230: =IF(E230=TRUE,D230,0) -> 500
B231: Bonus Heizungstausch APEE | D231: =ROUND(SUM(F223:F230)*0.2+600,0) -> 1050 | E231: =BF181 -> FALSE | F231: =IF(E231=TRUE,D231,0) -> 0
B232: Gesamtförderung (€) | E232: TRUE | F232: =SUM(F222:F231) -> 2250
D233: Bei Änderung auch Werte im Ausdruck ändern !!
B237: Übersicht Speichervolumen | K237: Nebenrechnung TypWarmwasser
B238: Combobox | C238: Inhalt Puffer | D238: Kombispeicher ? | E238: Combobox WW | F238: Inhalt WW | G238: Gesamtinhalt | H238: Spez. Volumen | I238: Name STE | J238: Name TEC | S238: Nebenrechnung Größe WW-Speicher | V238: Nebenrechnung WW-Wärmepumpe Manuell
K239: Auswahl | L239: WWB in WP integriert | M239: Puffer SBS gewählt | N239: Mit Heizungs-WP | O239: Mit WW-WP | P239: Mit Abluft-WP | Q239: Ohne/Sonstige
B240: SBP 200 | C240: =VLOOKUP(B240,B242:H262,2,FALSE) -> 200 | D240: =VLOOKUP(B240,B242:H262,3,FALSE) -> FALSE | E240: Warmwasserspeicher 300 Liter | F240: =K253 -> 300 | G240: =C240+F240 -> 500 | H240: =G240/D207 -> 60.0240096
V241: Manuell gewählt? | W241: =IF(OR($E$240=Leistungsdaten!$G$199,$E$240=Leistungsdaten!$G$200),TRUE,FALSE) -> FALSE
K242: =IF($L$54=TRUE,L242,IF($D$240=TRUE,M242,IF($L$34=$L$37,N242,IF($L$34=$L$38,O242,IF($L$34=$L$39,P242,Q242))))) -> Warmwasserspeicher 300 Liter | L242: ="Integriert "&VLOOKUP(C34,Leistungsdaten!G:AH,28,FALSE)&" Liter" -> Integriert 0 Liter | M242: =B240 -> SBP 200 | N242: Warmwasserspeicher 300 Liter | O242: =Leistungsdaten!G155 -> WWK 220 electronic | P242: =Leistungsdaten!G162 -> LWA 252 | Q242: =B27 -> Angabe wird nicht benötigt | S242: =N242 -> Warmwasserspeicher 300 Liter | T242: 300 | V242: Hersteller | W242: STIEBEL ELTRON GmbH & Co. KG
B243: =IF($G$269=1,I243,J243) -> Ohne Puffer | C243: 0 | D243: FALSE | E243: =L242 -> Integriert 0 Liter | F243: 0 | I243: Ohne Puffer | J243: Ohne Puffer | K243: =IF($L$54=TRUE,L243,IF($D$240=TRUE,M243,IF($L$34=$L$37,N243,IF($L$34=$L$38,O243,IF($L$34=$L$39,P243,Q243))))) -> Warmwasserspeicher 400 Liter | N243: Warmwasserspeicher 400 Liter | O243: =Leistungsdaten!G156 -> WWK 300 electronic | P243: =Leistungsdaten!G163 -> LWA 100 | S243: =N243 -> Warmwasserspeicher 400 Liter | T243: 400 | V243: Bezeichnung | W243: WWK 222
B244: =IF($G$269=1,I244,J244) -> Vorhandener Puffer | C244: 0 | D244: FALSE | F244: 0 | I244: Vorhandener Puffer | J244: Vorhandener Puffer | K244: =IF($L$54=TRUE,L244,IF($D$240=TRUE,M244,IF($L$34=$L$37,N244,IF($L$34=$L$38,O244,IF($L$34=$L$39,P244,Q244))))) -> Warmwasserspeicher 500 Liter | N244: Warmwasserspeicher 500 Liter | O244: =Leistungsdaten!G157 -> WWK 300 electronic SOL | P244: =Leistungsdaten!G200 -> Eigene Abluft-Wärmepumpe | S244: Warmwasserspeicher 500 Liter | T244: 500 | V244: COP | W244: 3,4
B245: Hydraulische Weiche | C245: 0 | D245: FALSE | F245: 0 | I245: Hydraulische Weiche | J245: Hydraulische Weiche | K245: =IF($L$54=TRUE,L245,IF($D$240=TRUE,M245,IF($L$34=$L$37,N245,IF($L$34=$L$38,O245,IF($L$34=$L$39,P245,Q245))))) -> Warmwasserspeicher 600 Liter | N245: Warmwasserspeicher 600 Liter | O245: =Leistungsdaten!G158 -> WWK 221 electronic | S245: Warmwasserspeicher 600 Liter | T245: 600 | V245: Temperatur | W245: 55 °C
B246: SBP 100 | C246: 100 | D246: FALSE | F246: 0 | I246: SBP 100 | J246: TSP 100 | K246: Warmwasserspeicher 750 Liter | N246: Warmwasserspeicher 750 Liter | O246: =Leistungsdaten!G159 -> WWK 301 electronic | S246: Warmwasserspeicher 750 Liter | T246: 750 | V246: Auswahl TempCBO | W246: 45 °C
B247: SBP 200 | C247: 200 | D247: FALSE | F247: 0 | I247: SBP 200 | J247: TSP 200 | K247: Warmwasserspeicher 800 Liter | N247: Warmwasserspeicher 800 Liter | O247: =Leistungsdaten!G160 -> WWK 301 electronic SOL | S247: Warmwasserspeicher 800 Liter | T247: 800 | V247: Auswahl TempCBO | W247: 50 °C
B248: SBP 400 | C248: 400 | D248: FALSE | F248: 0 | I248: SBP 400 | J248: TSP 400 | K248: Warmwasserspeicher 1000 Liter | N248: Warmwasserspeicher 1000 Liter | O248: =Leistungsdaten!G161 -> WWS 20 | S248: Warmwasserspeicher 1000 Liter | T248: 1000 | V248: Auswahl TempCBO | W248: 55 °C
B249: SBPE 400 | C249: 400 | D249: FALSE | F249: 0 | I249: SBPE 400 | J249: TSPE 400 | K249: Warmwasserspeicher 1500 Liter | N249: Warmwasserspeicher 1500 Liter | O249: =Leistungsdaten!G199 -> Eigene WW-Wärmepumpe | S249: Warmwasserspeicher 1500 Liter | T249: 1500 | V249: Auswahl TempCBO | W249: 60 °C
B250: SBP 700 | C250: 700 | D250: FALSE | F250: 0 | I250: SBP 700 | J250: TSP 700 | K250: Speicher-/ Hydraulikmodul HSBB | N250: =IF(G269=1,"Speicher-/ Hydraulikmodul HSBB","Speicher-/ Hydraulikmodul HTSB") -> Speicher-/ Hydraulikmodul HSBB | S250: Speicher-/ Hydraulikmodul HSBB | T250: 168 | V250: Auswahl TempCBO | W250: 65 °C
B251: SBP 1000 | C251: 1000 | D251: FALSE | F251: 0 | I251: SBP 1000 | J251: TSP 1000 | K251: Vorhandener WW-Speicher | N251: Vorhandener WW-Speicher | S251: Vorhandener WW-Speicher | T251: 0
B252: SBP 1500 | C252: 1500 | D252: FALSE | F252: 0 | I252: SBP 1500 | J252: TSP 1500
B253: SBS 601 | C253: 600 | D253: TRUE | F253: 0 | I253: SBS 601 | J253: TBS 601 | K253: =IF($L$54=TRUE,L253,IF($D$240=TRUE,M253,IF($L$34=$L$37,N253,IF($L$34=$L$38,O253,IF($L$34=$L$39,P253,Q253))))) -> 300 | L253: =VLOOKUP(C34,Leistungsdaten!G:AH,28,FALSE) -> 0 | M253: =VLOOKUP(B240,B242:H262,5,FALSE) -> 0 | N253: =T253 -> 300 | O253: 0 | P253: 0 | Q253: 0 | S253: =E240 -> Warmwasserspeicher 300 Liter | T253: =VLOOKUP(S253,S241:T252,2,FALSE) -> 300 | V253: =H240 -> 60.0240096 | W253: =VLOOKUP(V253,V241:W252,2,FALSE) -> 
B254: SBS 801 | C254: 800 | D254: TRUE | F254: 0 | I254: SBS 801 | J254: TBS 801
B255: SBS 1001 | C255: 1000 | D255: TRUE | F255: 0 | I255: SBS 1001 | J255: TBS 1001
B256: SBS 1501 | C256: 1500 | D256: TRUE | F256: 0 | I256: SBS 1501 | J256: TBS 1501
B257: HSBC 200 | C257: 100 | D257: TRUE | F257: 200 | I257: HSBC 200 | J257: TSBC 200
B266: Begrifflichkeiten STE/TEC
B268: Nr | C268: Bemerkung | E268: Stiebel | F268: Tecalor | G268: Gewählt
B269: 1 | C269: Für Sverweis | E269: 1 | F269: 2 | G269: 1
B270: 2 | C270: Rechtshinweis | E270: Stiebel Eltron übernimmt keinerlei Gewährleistung oder Garantie dafür, dass die bereitgestellten Angaben, Werte und Informationen oder die mit Hilfe bzw. anhand dieser Informationen, Werte und Angaben ermittelten Werte und Angaben in jeder Hinsicht vollständig, genau, richtig und aktuell sind. Stiebel Eltron behält sich das Recht vor, jederzeit und ohne vorherige Ankündigung Änderungen der bereitgestellten Angaben, Werte und Informationen vorzunehmen. Irrtum und Änderungen sind ausdrücklich vorbehalten. Keine der bereitgestellten Angaben, Werte und Informationen oder der mit Hilfe bzw. anhand dieser Angaben, Werte und Informationen ermittelten Werte und Angaben sind als Grundlage für eine finanzielle Entscheidung oder für einen sonstigen Zweck anzusehen, sondern dienen vielmehr nur als eine erste unverbindliche Information und als Hilfe zur ersten Orientierung. Die Haftung von Stiebel Eltron für Schäden jeglicher Art, die sich möglicherweise aus der Nutzung oder Verwendung der bereitgestellten Informationen, Werte und Angaben oder der mit Hilfe bzw. anhand dieser Angaben, Werte und Informationen ermittelten Werte und Angaben, ergeben, ist ausgeschlossen. Dieser Haftungsausschluss gilt nicht, wenn der Schaden auf Vorsatz oder grobe Fahrlässigkeit von Stiebel Eltron zurückzuführen ist sowie bei einer Verletzung des Lebens, des Körpers oder der Gesundheit. | F270: Tecalor übernimmt keinerlei Gewährleistung oder Garantie dafür, dass die bereitgestellten Angaben, Werte und Informationen oder die mit Hilfe bzw. anhand dieser Informationen, Werte und Angaben ermittelten Werte und Angaben in jeder Hinsicht vollständig, genau, richtig und aktuell sind. tecalor behält sich das Recht vor, jederzeit und ohne vorherige Ankündigung Änderungen der bereitgestellten Angaben, Werte und Informationen vorzunehmen. Irrtum und Änderungen sind ausdrücklich vorbehalten. Keine der bereitgestellten Angaben, Werte und Informationen oder der mit Hilfe bzw. anhand dieser Angaben, Werte und Informationen ermittelten Werte und Angaben sind als Grundlage für eine finanzielle Entscheidung oder für einen sonstigen Zweck anzusehen, sondern dienen vielmehr nur als eine erste unverbindliche Information und als Hilfe zur ersten Orientierung. Die Haftung von tecalor für Schäden jeglicher Art, die sich möglicherweise aus der Nutzung oder Verwendung der bereitgestellten Informationen, Werte und Angaben oder der mit Hilfe bzw. anhand dieser Angaben, Werte und Informationen ermittelten Werte und Angaben, ergeben, ist ausgeschlossen. Dieser Haftungsausschluss gilt nicht, wenn der Schaden auf Vorsatz oder grobe Fahrlässigkeit von tecalor zurückzuführen ist sowie bei einer Verletzung des Lebens, des Körpers oder der Gesundheit. | G270: =HLOOKUP($G$269,$E$269:$F$287,B270,FALSE) -> Stiebel Eltron übernimmt keinerlei Gewährleistung oder Garantie dafür, dass die bereitgestellten Angaben, Werte und Informationen oder die mit Hilfe bzw. anhand dieser Informationen, Werte und Angaben ermittelten Werte und Angaben in jeder Hinsicht vollständig, genau, richtig und aktuell sind. Stiebel Eltron behält sich das Recht vor, jederzeit und ohne vorherige Ankündigung Änderungen der bereitgestellten Angaben, Werte und Informationen vorzunehmen. Irrtum und Änderungen sind ausdrücklich vorbehalten. Keine der bereitgestellten Angaben, Werte und Informationen oder der mit Hilfe bzw. anhand dieser Angaben, Werte und Informationen ermittelten Werte und Angaben sind als Grundlage für eine finanzielle Entscheidung oder für einen sonstigen Zweck anzusehen, sondern dienen vielmehr nur als eine erste unverbindliche Information und als Hilfe zur ersten Orientierung. Die Haftung von Stiebel Eltron für Schäden jeglicher Art, die sich möglicherweise aus der Nutzung oder Verwendung der bereitgestellten Informationen, Werte und Angaben oder der mit Hilfe bzw. anhand dieser Angaben, Werte und Informationen ermittelten Werte und Angaben, ergeben, ist ausgeschlossen. Dieser Haftungsausschluss gilt nicht, wenn der Schaden auf Vorsatz oder grobe Fahrlässigkeit von Stiebel Eltron zurückzuführen ist sowie bei einer Verletzung des Lebens, des Körpers oder der Gesundheit.
B271: 3 | C271: Firmenname | E271: STIEBEL ELTRON GmbH & Co. KG | F271: tecalor GmbH | G271: =HLOOKUP($G$269,$E$269:$F$287,B271,FALSE) -> STIEBEL ELTRON GmbH & Co. KG
B272: 4 | C272: WP - Link Webseite | E272: ="http://apps.stiebel-eltron.de/produktdaten/?article="&TEXT(VLOOKUP(C34,Leistungsdaten!G:V,16,FALSE),"000000") -> http://apps.stiebel-eltron.de/produktdaten/?article=232493 | F272: ="http://www.tecalor.de/services/productproxy.html?productnr="&TEXT(VLOOKUP(C34,Leistungsdaten!G:V,16,FALSE),"000000") -> http://www.tecalor.de/services/productproxy.html?productnr=232493 | G272: =HLOOKUP($G$269,$E$269:$F$287,B272,FALSE) -> http://apps.stiebel-eltron.de/produktdaten/?article=232493
B273: 5 | C273: WP - Link Datenblatt | E273: ="http://www.stiebel-eltron.de/services/productproxy.product.pdf?productnr="&TEXT(VLOOKUP(C34,Leistungsdaten!G:V,16,FALSE),"000000") -> http://www.stiebel-eltron.de/services/productproxy.product.pdf?productnr=232493 | F273: ="http://www.tecalor.de/services/productproxy.product.pdf?productnr="&TEXT(VLOOKUP(C34,Leistungsdaten!G:V,16,FALSE),"000000") -> http://www.tecalor.de/services/productproxy.product.pdf?productnr=232493 | G273: http://www.stiebel-eltron.de/services/productproxy.product.pdf?productnr=232493
B274: 6 | C274: Solar - Link Webseite | E274: ="http://apps.stiebel-eltron.de/produktdaten/?article="&TEXT(VLOOKUP(B61,Leistungsdaten!G:V,16,FALSE),"000000") -> http://apps.stiebel-eltron.de/produktdaten/?article=230016 | F274: ="http://www.tecalor.de"&VLOOKUP(B61,Leistungsdaten!G:V,16,FALSE) -> http://www.tecalor.de230016 | G274: http://apps.stiebel-eltron.de/produktdaten/?article=230016
B275: 7 | C275: Solar - Link Datenblatt | E275: ="http://www.stiebel-eltron.de/services/productproxy.product.pdf?productnr="&TEXT(VLOOKUP(B61,Leistungsdaten!G:V,16,FALSE),"000000") -> http://www.stiebel-eltron.de/services/productproxy.product.pdf?productnr=230016 | F275: ="http://www.tecalor.de/services/productproxy.product.pdf?productnr="&TEXT(VLOOKUP(B61,Leistungsdaten!G:V,16,FALSE),"000000") -> http://www.tecalor.de/services/productproxy.product.pdf?productnr=230016 | G275: http://www.stiebel-eltron.de/services/productproxy.product.pdf?productnr=230016
B276: 8 | C276: Abluftmodul LWM 250 | E276: Abluftmodul LWM 250 | F276: Abluftmodul TVM 250 | G276: =HLOOKUP($G$269,$E$269:$F$287,B276,FALSE) -> Abluftmodul LWM 250
B277: 9 | C277: EC-Pumpe-Sole | LWM 250 | E277: EC-Pumpe-Sole | LWM 250 | F277: EC-Pumpe-Sole | TVM 250 | G277: EC-Pumpe-Sole | LWM 250
B278: 10 | G278: 0
B279: 11 | G279: =HLOOKUP($G$269,$E$269:$F$287,B279,FALSE) -> 0
B280: 12 | G280: =HLOOKUP($G$269,$E$269:$F$287,B280,FALSE) -> 0
B281: 13 | G281: =HLOOKUP($G$269,$E$269:$F$287,B281,FALSE) -> 0
B282: 14 | G282: =HLOOKUP($G$269,$E$269:$F$287,B282,FALSE) -> 0
B283: 15 | G283: =HLOOKUP($G$269,$E$269:$F$287,B283,FALSE) -> 0

Sheet Leistungsdaten (hidden)
A1: Norm-Außentemperaturen Deutschland | G1: Luft-Wasser-Wärmepumpen
A2: PLZ | B2: Stadt | C2: Außentemp. | G2: WP-Typ | H2: DT | I2: Leistungszahl | J2: Leistungszahl | K2: Leistungszahl | L2: Heizleistung | M2: WP-Set ? | N2: WWB | O2: EC-Pumpe Heizung | P2: WMZ | Q2: EC-Pumpe Sole | R2: Bezeichnung | S2: LWM 250 | T2: Inverter ? | U2: Sonderbauform | V2: Artikel.nr. | W2: In | X2: EC-Pumpe Brunnen | Y2: EC-Pumpe Brunnen | Z2: Leistungsaufnahme | AA2: WPW ohne | AC2: Kaskadierbar ? | AD2: EC-Pumpe | AE2: Produktbild | AF2: SG-ready ? | AH2: Speichergröße | AI2: Name | AJ2: Datenblatt | AK2: Produktbild | AL2: Name | AM2: Datenblatt | AN2: Produktbild
A3: 0 | B3: Bitte Stadt oder PLZ eingeben | C3: -12 °C | H3: Prüfstand | I3: A-7 / W35 | J3: A2 / W35 | K3: A10 / W35 | L3: A2/W35 | N3: integriert | O3: eingebaut? | P3: integriert ? | Q3: eingebaut ? | R3: Solepumpe (EC) | S3: einsetzbar ? | U3: Bafa-Liste ? | W3: Bafa-Liste ? | X3: einsetzbar ? | Y3: Typ Grundfos | Z3: Brunnenpumpe | AA3: Zwischen-WT ? | AD3: Heizung | AH3: Warmwasser | AI3: Stiebel | AJ3: Stiebel | AK3: Stiebel | AL3: tecalor | AM3: tecalor | AN3: tecalor
A4: 72280 | B4: Aach | C4: -16 | G4: =IF(Berechnung!$G$269=1,AI4,AL4) -> WPL 15 ACS | H4: 5 | I4: 2.83 | J4: 3.88 | K4: 4.83 | L4: 4.23 | M4: FALSE | N4: FALSE | O4: FALSE | P4: TRUE | Q4: FALSE | R4: - | S4: FALSE | T4: TRUE | U4: FALSE | V4: =IF(Berechnung!$G$269=1,AJ4,AM4) -> 234759 | W4: TRUE | X4: FALSE | Y4: - | Z4: - | AA4: FALSE | AC4: FALSE | AD4: FALSE | AE4: =IF(Berechnung!$G$269=1,AK4,AN4) -> PIC00003714-00.jpg | AF4: TRUE | AH4: 0 | AI4: WPL 15 ACS | AJ4: 234759 | AK4: PIC00003714-00.jpg | AL4: TTL 15 ACS | AM4: 190451 | AN4: PIC00003781-00.jpg
A5: 78267 | B5: Aach/Hegau | C5: -14 | G5: =IF(Berechnung!$G$269=1,AI5,AL5) -> WPL 20 AC | H5: 5 | I5: 3.38 | J5: 3.99 | K5: 4.91 | L5: 6.85 | M5: FALSE | N5: FALSE | O5: FALSE | P5: TRUE | Q5: FALSE | R5: - | S5: FALSE | T5: TRUE | U5: FALSE | V5: =IF(Berechnung!$G$269=1,AJ5,AM5) -> 236007 | W5: TRUE | X5: FALSE | Y5: - | Z5: - | AA5: FALSE | AC5: FALSE | AD5: FALSE | AE5: =IF(Berechnung!$G$269=1,AK5,AN5) -> PIC00003555-00.jpg | AF5: TRUE | AH5: 0 | AI5: WPL 20 AC | AJ5: 236007 | AK5: PIC00003555-00.jpg | AL5: TTL 20 AC | AM5: 190497 | AN5: PIC00003729-00.jpg
A6: 520.. | B6: Aachen | C6: -12 | G6: =IF(Berechnung!$G$269=1,AI6,AL6) -> WPL 25 AC | H6: 5 | I6: 2.93 | J6: 4.17 | K6: 5.16 | L6: 8.33 | M6: FALSE | N6: FALSE | O6: FALSE | P6: TRUE | Q6: FALSE | R6: - | S6: FALSE | T6: TRUE | U6: FALSE | V6: =IF(Berechnung!$G$269=1,AJ6,AM6) -> 234760 | W6: TRUE | X6: FALSE | Y6: - | Z6: - | AA6: FALSE | AC6: FALSE | AD6: FALSE | AE6: =IF(Berechnung!$G$269=1,AK6,AN6) -> PIC00003555-00.jpg | AF6: TRUE | AH6: 0 | AI6: WPL 25 AC | AJ6: 234760 | AK6: PIC00003555-00.jpg | AL6: TTL 25 AC | AM6: 190452 | AN6: PIC00003729-00.jpg
A7: 7343. | B7: Aalen / Württ. | C7: -16 | G7: =IF(Berechnung!$G$269=1,AI7,AL7) -> WPL 15 AS | H7: 5 | I7: 2.83 | J7: 3.88 | K7: 4.83 | L7: 4.23 | M7: FALSE | N7: FALSE | O7: FALSE | P7: TRUE | Q7: FALSE | R7: - | S7: FALSE | T7: TRUE | U7: FALSE | V7: =IF(Berechnung!$G$269=1,AJ7,AM7) -> 232491 | W7: TRUE | X7: FALSE | Y7: - | Z7: - | AA7: FALSE | AC7: FALSE | AD7: FALSE | AE7: =IF(Berechnung!$G$269=1,AK7,AN7) -> PIC00003714-00.jpg | AF7: TRUE | AH7: 0 | AI7: WPL 15 AS | AJ7: 232491 | AK7: PIC00003714-00.jpg | AL7: TTL 15 AS | AM7: 190324 | AN7: PIC00003781-00.jpg
A8: 65326 | B8: Aarbergen | C8: -14 | G8: =IF(Berechnung!$G$269=1,AI8,AL8) -> WPL 20 A | H8: 5 | I8: 3.38 | J8: 3.99 | K8: 4.91 | L8: 6.85 | M8: FALSE | N8: FALSE | O8: FALSE | P8: TRUE | Q8: FALSE | R8: - | S8: FALSE | T8: TRUE | U8: FALSE | V8: =IF(Berechnung!$G$269=1,AJ8,AM8) -> 236006 | W8: TRUE | X8: FALSE | Y8: - | Z8: - | AA8: FALSE | AC8: FALSE | AD8: FALSE | AE8: =IF(Berechnung!$G$269=1,AK8,AN8) -> PIC00003555-00.jpg | AF8: TRUE | AH8: 0 | AI8: WPL 20 A | AJ8: 236006 | AK8: PIC00003555-00.jpg | AL8: TTL 20 A | AM8: 190496 | AN8: PIC00003729-00.jpg
A9: 19322 | B9: Abbendorf | C9: -14 | G9: =IF(Berechnung!$G$269=1,AI9,AL9) -> WPL 25 A | H9: 5 | I9: 2.93 | J9: 4.17 | K9: 5.16 | L9: 8.33 | M9: FALSE | N9: FALSE | O9: FALSE | P9: TRUE | Q9: FALSE | R9: - | S9: FALSE | T9: TRUE | U9: FALSE | V9: =IF(Berechnung!$G$269=1,AJ9,AM9) -> 232493 | W9: TRUE | X9: FALSE | Y9: - | Z9: - | AA9: FALSE | AC9: FALSE | AD9: FALSE | AE9: =IF(Berechnung!$G$269=1,AK9,AN9) -> PIC00003555-00.jpg | AF9: TRUE | AH9: 0 | AI9: WPL 25 A | AJ9: 232493 | AK9: PIC00003555-00.jpg | AL9: TTL 25 A | AM9: 190326 | AN9: PIC00003729-00.jpg
A10: 30900 | B10: Abbensen | C10: -14 | G10: =IF(Berechnung!$G$269=1,AI10,AL10) -> WPL 07 ACS classic | H10: 5 | I10: 2.76 | J10: 3.57 | K10: 4.84 | L10: 1.69 | M10: FALSE | N10: FALSE | O10: FALSE | P10: TRUE | Q10: FALSE | R10: - | S10: FALSE | T10: TRUE | U10: FALSE | V10: =IF(Berechnung!$G$269=1,AJ10,AM10) -> 235920 | W10: TRUE | X10: FALSE | Y10: - | Z10: - | AA10: FALSE | AC10: FALSE | AD10: FALSE | AE10: =IF(Berechnung!$G$269=1,AK10,AN10) -> PIC00006444-00.jpg | AF10: TRUE | AH10: 0 | AI10: WPL 07 ACS classic | AJ10: 235920 | AK10: PIC00006444-00.jpg | AL10: TTL 3.5 ACS | AM10: 190484 | AN10: PIC00006444-00.jpg
A11: 31234 | B11: Abbensen | C11: -14 | G11: =IF(Berechnung!$G$269=1,AI11,AL11) -> WPL 09 ACS classic | H11: 5 | I11: 2.51 | J11: 3.43 | K11: 4.84 | L11: 2.17 | M11: FALSE | N11: FALSE | O11: FALSE | P11: TRUE | Q11: FALSE | R11: - | S11: FALSE | T11: TRUE | U11: FALSE | V11: =IF(Berechnung!$G$269=1,AJ11,AM11) -> 235921 | W11: TRUE | X11: FALSE | Y11: - | Z11: - | AA11: FALSE | AC11: FALSE | AD11: FALSE | AE11: =IF(Berechnung!$G$269=1,AK11,AN11) -> PIC00006444-00.jpg | AF11: TRUE | AH11: 0 | AI11: WPL 09 ACS classic | AJ11: 235921 | AK11: PIC00006444-00.jpg | AL11: TTL 4.5 ACS | AM11: 190487 | AN11: PIC00006444-00.jpg
A12: 93326 | B12: Abensberg | C12: -18 | G12: =IF(Berechnung!$G$269=1,AI12,AL12) -> WPL 17 ACS classic | H12: 5 | I12: 2.92 | J12: 3.97 | K12: 5.24 | L12: 5.73 | M12: FALSE | N12: FALSE | O12: FALSE | P12: TRUE | Q12: FALSE | R12: - | S12: FALSE | T12: TRUE | U12: FALSE | V12: =IF(Berechnung!$G$269=1,AJ12,AM12) -> 235922 | W12: TRUE | X12: FALSE | Y12: - | Z12: - | AA12: FALSE | AC12: FALSE | AD12: FALSE | AE12: =IF(Berechnung!$G$269=1,AK12,AN12) -> PIC00006444-00.jpg | AF12: TRUE | AH12: 0 | AI12: WPL 17 ACS classic | AJ12: 235922 | AK12: PIC00006444-00.jpg | AL12: TTL 8.5 ACS | AM12: 190490 | AN12: PIC00006444-00.jpg
A13: 8485 | B13: Abhorn | C13: -16 | G13: =IF(Berechnung!$G$269=1,AI13,AL13) -> WPL 15 IS-2 | H13: 5 | I13: 2.92 | J13: 4.01 | K13: 5.35 | L13: 4.77 | M13: FALSE | N13: FALSE | O13: TRUE | P13: TRUE | Q13: FALSE | R13: - | S13: FALSE | T13: TRUE | U13: FALSE | V13: =IF(Berechnung!$G$269=1,AJ13,AM13) -> 231888 | W13: TRUE | X13: FALSE | Y13: - | Z13: - | AA13: FALSE | AC13: FALSE | AD13: Stratos TEC RS 25/7 | AE13: =IF(Berechnung!$G$269=1,AK13,AN13) -> PIC00003553-00.jpg | AF13: TRUE | AH13: 0 | AI13: WPL 15 IS-2 | AJ13: 231888 | AK13: PIC00003553-00.jpg | AL13: TTL 15 IS-2 | AM13: 190331 | AN13: PIC00003738-00.jpg
A14: 37290 | B14: Abterode | C14: -16 | G14: =IF(Berechnung!$G$269=1,AI14,AL14) -> WPL 25 I-2 | H14: 5 | I14: 3.05 | J14: 3.89 | K14: 5.28 | L14: 8.14 | M14: FALSE | N14: FALSE | O14: TRUE | P14: TRUE | Q14: FALSE | R14: - | S14: FALSE | T14: TRUE | U14: FALSE | V14: =IF(Berechnung!$G$269=1,AJ14,AM14) -> 231889 | W14: TRUE | X14: FALSE | Y14: - | Z14: - | AA14: FALSE | AC14: FALSE | AD14: Stratos TEC RS 25/7 | AE14: =IF(Berechnung!$G$269=1,AK14,AN14) -> PIC00003554-00.jpg | AF14: TRUE | AH14: 0 | AI14: WPL 25 I-2 | AJ14: 231889 | AK14: PIC00003554-00.jpg | AL14: TTL 25 I-2 | AM14: 190332 | AN14: PIC00003739-00.jpg
A15: 4347 | B15: Abtnaundorf | C15: -14 | G15: =IF(Berechnung!$G$269=1,AI15,AL15) -> WPL 15 IKS-2 | H15: 5 | I15: 2.92 | J15: 4.01 | K15: 5.35 | L15: 4.77 | M15: FALSE | N15: TRUE | O15: TRUE | P15: TRUE | Q15: FALSE | R15: - | S15: FALSE | T15: TRUE | U15: FALSE | V15: =IF(Berechnung!$G$269=1,AJ15,AM15) -> 231886 | W15: TRUE | X15: FALSE | Y15: - | Z15: - | AA15: FALSE | AC15: FALSE | AD15: Stratos TEC RS 25/7 | AE15: =IF(Berechnung!$G$269=1,AK15,AN15) -> PIC00003177-00.jpg | AF15: TRUE | AH15: 162 | AI15: WPL 15 IKS-2 | AJ15: 231886 | AK15: PIC00003177-00.jpg | AL15: TTL 15 IKS-2 | AM15: 190315 | AN15: PIC00003728-00.jpg
A16: 94261 | B16: Abtschlag | C16: -18 | G16: =IF(Berechnung!$G$269=1,AI16,AL16) -> WPL 25 IK-2 | H16: 5 | I16: 3.05 | J16: 3.89 | K16: 5.28 | L16: 8.14 | M16: FALSE | N16: TRUE | O16: TRUE | P16: TRUE | Q16: FALSE | R16: - | S16: FALSE | T16: TRUE | U16: FALSE | V16: =IF(Berechnung!$G$269=1,AJ16,AM16) -> 231887 | W16: TRUE | X16: FALSE | Y16: - | Z16: - | AA16: FALSE | AC16: FALSE | AD16: Stratos TEC RS 25/7 | AE16: =IF(Berechnung!$G$269=1,AK16,AN16) -> PIC00003178-00.jpg | AF16: TRUE | AH16: 162 | AI16: WPL 25 IK-2 | AJ16: 231887 | AK16: PIC00003178-00.jpg | AL16: TTL 25 IK-2 | AM16: 190316 | AN16: PIC00002984-00.jpg
A17: 73453 | B17: Abtsgmünd | C17: -16 | G17: =IF(Berechnung!$G$269=1,AI17,AL17) -> WPL 08 S trend | H17: 5 | I17: 2.89 | J17: 3.89 | K17: 4.87 | L17: 2.79 | M17: FALSE | N17: FALSE | O17: FALSE | P17: TRUE | Q17: FALSE | R17: - | S17: FALSE | T17: TRUE | U17: FALSE | V17: =IF(Berechnung!$G$269=1,AJ17,AM17) -> 233878 | W17: TRUE | X17: FALSE | Y17: - | Z17: - | AA17: FALSE | AC17: FALSE | AD17: FALSE | AE17: =IF(Berechnung!$G$269=1,AK17,AN17) -> PIC00004917-00.jpg | AF17: TRUE | AH17: 0 | AI17: WPL 08 S trend | AJ17: 233878 | AK17: PIC00004917-00.jpg | AL17: TTL 08 S eco | AM17: 190397 | AN17: PIC00005088-00.jpg
A18: 69518 | B18: Abtsteinach | C18: -12 | G18: =IF(Berechnung!$G$269=1,AI18,AL18) -> WPL 12 S trend | H18: 5 | I18: 2.82 | J18: 4.13 | K18: 5.14 | L18: 3.9 | M18: FALSE | N18: FALSE | O18: FALSE | P18: TRUE | Q18: FALSE | R18: - | S18: FALSE | T18: TRUE | U18: FALSE | V18: =IF(Berechnung!$G$269=1,AJ18,AM18) -> 233879 | W18: TRUE | X18: FALSE | Y18: - | Z18: - | AA18: FALSE | AC18: FALSE | AD18: FALSE | AE18: =IF(Berechnung!$G$269=1,AK18,AN18) -> PIC00004917-00.jpg | AF18: TRUE | AH18: 0 | AI18: WPL 12 S trend | AJ18: 233879 | AK18: PIC00004917-00.jpg | AL18: TTL 12 S eco | AM18: 190398 | AN18: PIC00005088-00.jpg
A19: 88147 | B19: Achberg | C19: -16 | G19: =IF(Berechnung!$G$269=1,AI19,AL19) -> WPL 16 S trend | H19: 5 | I19: 2.95 | J19: 4.29 | K19: 5.18 | L19: 5.05 | M19: FALSE | N19: FALSE | O19: FALSE | P19: TRUE | Q19: FALSE | R19: - | S19: FALSE | T19: TRUE | U19: FALSE | V19: =IF(Berechnung!$G$269=1,AJ19,AM19) -> 233880 | W19: TRUE | X19: FALSE | Y19: - | Z19: - | AA19: FALSE | AC19: FALSE | AD19: FALSE | AE19: =IF(Berechnung!$G$269=1,AK19,AN19) -> PIC00004917-00.jpg | AF19: TRUE | AH19: 0 | AI19: WPL 16 S trend | AJ19: 233880 | AK19: PIC00004917-00.jpg | AL19: TTL 16 S eco | AM19: 190399 | AN19: PIC00005088-00.jpg
A20: 83101 | B20: Achenmühle | C20: -18 | G20: =IF(Berechnung!$G$269=1,AI20,AL20) -> WPL 22 trend | H20: 5 | I20: 2.85 | J20: 4.05 | K20: 5.2 | L20: 7.11 | M20: FALSE | N20: FALSE | O20: FALSE | P20: TRUE | Q20: FALSE | R20: - | S20: FALSE | T20: TRUE | U20: FALSE | V20: =IF(Berechnung!$G$269=1,AJ20,AM20) -> 233883 | W20: TRUE | X20: FALSE | Y20: - | Z20: - | AA20: FALSE | AC20: FALSE | AD20: FALSE | AE20: =IF(Berechnung!$G$269=1,AK20,AN20) -> PIC00004918-00.jpg | AF20: TRUE | AH20: 0 | AI20: WPL 22 trend | AJ20: 233883 | AK20: PIC00004918-00.jpg | AL20: TTL 22 eco | AM20: 190400 | AN20: PIC00005089-00.jpg
A21: 77855 | B21: Achern | C21: -12 | G21: =IF(Berechnung!$G$269=1,AI21,AL21) -> WPL 28 trend | H21: 5 | I21: 2.55 | J21: 4.03 | K21: 5.12 | L21: 7.42 | M21: FALSE | N21: FALSE | O21: FALSE | P21: TRUE | Q21: FALSE | R21: - | S21: FALSE | T21: TRUE | U21: FALSE | V21: =IF(Berechnung!$G$269=1,AJ21,AM21) -> 233884 | W21: TRUE | X21: FALSE | Y21: - | Z21: - | AA21: FALSE | AC21: FALSE | AD21: FALSE | AE21: =IF(Berechnung!$G$269=1,AK21,AN21) -> PIC00004918-00.jpg | AF21: TRUE | AH21: 0 | AI21: WPL 28 trend | AJ21: 233884 | AK21: PIC00004918-00.jpg | AL21: TTL 28 eco | AM21: 190401 | AN21: PIC00005089-00.jpg
A22: 28832 | B22: Achim | C22: -12 | G22: =IF(Berechnung!$G$269=1,AI22,AL22) -> WPL 10 AC | H22: 5 | I22: 3.06 | J22: 3.51 | K22: 4.16 | L22: 6.74 | M22: FALSE | N22: FALSE | O22: FALSE | P22: TRUE | Q22: FALSE | R22: - | S22: FALSE | T22: FALSE | U22: FALSE | V22: =IF(Berechnung!$G$269=1,AJ22,AM22) -> 230236 | W22: TRUE | X22: FALSE | Y22: - | Z22: - | AA22: FALSE | AC22: TRUE | AD22: FALSE | AE22: =IF(Berechnung!$G$269=1,AK22,AN22) -> PIC00001670-00.jpg | AF22: TRUE | AH22: 0 | AI22: WPL 10 AC | AJ22: 230236 | AK22: PIC00001670-00.jpg | AL22: TTL 10 AC | AM22: 190288 | AN22: PIC00003086-00.jpg
A23: 82547 | B23: Achmühle | C23: -16 | G23: =IF(Berechnung!$G$269=1,AI23,AL23) -> WPL 10 I | H23: 5 | I23: 2.94 | J23: 3.27 | K23: 4.08 | L23: 6.7 | M23: FALSE | N23: FALSE | O23: FALSE | P23: TRUE | Q23: FALSE | R23: - | S23: FALSE | T23: FALSE | U23: FALSE | V23: =IF(Berechnung!$G$269=1,AJ23,AM23) -> 220811 | W23: TRUE | X23: FALSE | Y23: - | Z23: - | AA23: FALSE | AC23: FALSE | AD23: FALSE | AE23: =IF(Berechnung!$G$269=1,AK23,AN23) -> PIC00004156-00.jpg | AF23: TRUE | AH23: 0 | AI23: WPL 10 I | AJ23: 220811 | AK23: PIC00004156-00.jpg | AL23: TTL 10 I | AM23: 190099 | AN23: PIC00003786-00.jpg
A24: 88480 | B24: Achstetten | C24: -16 | G24: =IF(Berechnung!$G$269=1,AI24,AL24) -> WPL 10 IK | H24: 5 | I24: 2.94 | J24: 3.27 | K24: 4.08 | L24: 6.7 | M24: FALSE | N24: FALSE | O24: TRUE | P24: TRUE | Q24: FALSE | R24: - | S24: FALSE | T24: FALSE | U24: FALSE | V24: =IF(Berechnung!$G$269=1,AJ24,AM24) -> 234655 | W24: TRUE | X24: FALSE | Y24: - | Z24: - | AA24: FALSE | AC24: FALSE | AD24: Stratos Para 25/1-7 | AE24: =IF(Berechnung!$G$269=1,AK24,AN24) -> PIC00004961-00.jpg | AF24: TRUE | AH24: 0 | AI24: WPL 10 IK | AJ24: 234655 | AK24: PIC00004961-00.jpg | AL24: WPL 10 IK | AN24: PIC00004961-00.jpg
A25: 47626 | B25: Achterhoek | C25: -10 | G25: =IF(Berechnung!$G$269=1,AI25,AL25) -> WPL 19 A | H25: 5 | I25: 3.32 | J25: 4.12 | K25: 5.48 | L25: 7.41 | M25: FALSE | N25: FALSE | O25: FALSE | P25: TRUE | Q25: FALSE | R25: - | S25: FALSE | T25: TRUE | U25: FALSE | V25: =IF(Berechnung!$G$269=1,AJ25,AM25) -> 236412 | W25: TRUE | X25: FALSE | Y25: - | Z25: - | AA25: FALSE | AC25: FALSE | AD25: FALSE | AE25: =IF(Berechnung!$G$269=1,AK25,AN25) -> PIC00000457-00.jpg | AF25: TRUE | AH25: 0 | AI25: WPL 19 A | AJ25: 236412 | AK25: PIC00000457-00.jpg | AL25: TTL 9.5 A | AM25: 190517 | AN25: PIC00000457-00.jpg
A26: 24239 | B26: Achterwehr | C26: -10 | G26: =IF(Berechnung!$G$269=1,AI26,AL26) -> WPL 24 A | H26: 5 | I26: 3 | J26: 4.01 | K26: 5.48 | L26: 9.03 | M26: FALSE | N26: FALSE | O26: FALSE | P26: TRUE | Q26: FALSE | R26: - | S26: FALSE | T26: TRUE | U26: FALSE | V26: =IF(Berechnung!$G$269=1,AJ26,AM26) -> 236413 | W26: TRUE | X26: FALSE | Y26: - | Z26: - | AA26: FALSE | AC26: FALSE | AD26: FALSE | AE26: =IF(Berechnung!$G$269=1,AK26,AN26) -> PIC00000457-00.jpg | AF26: TRUE | AH26: 0 | AI26: WPL 24 A | AJ26: 236413 | AK26: PIC00000457-00.jpg | AL26: TTL 13.5 A | AM26: 190518 | AN26: PIC00000457-00.jpg
A27: 25917 | B27: Achtrup | C27: -10 | G27: =IF(Berechnung!$G$269=1,AI27,AL27) -> WPL 19 I | H27: 5 | I27: 3.32 | J27: 4.12 | K27: 5.48 | L27: 7.41 | M27: FALSE | N27: FALSE | O27: FALSE | P27: TRUE | Q27: FALSE | R27: - | S27: FALSE | T27: TRUE | U27: FALSE | V27: =IF(Berechnung!$G$269=1,AJ27,AM27) -> 235193 | W27: TRUE | X27: FALSE | Y27: - | Z27: - | AA27: FALSE | AC27: FALSE | AD27: FALSE | AE27: =IF(Berechnung!$G$269=1,AK27,AN27) -> PIC00000418-00.jpg | AF27: TRUE | AH27: 0 | AI27: WPL 19 I | AJ27: 235193 | AK27: PIC00000418-00.jpg | AL27: TTL 9.5 I | AM27: 190462 | AN27: PIC00000418-00.jpg
A28: 37581 | B28: Ackenhausen | C28: -16 | G28: =IF(Berechnung!$G$269=1,AI28,AL28) -> WPL 24 I | H28: 5 | I28: 3 | J28: 4.01 | K28: 5.48 | L28: 9.03 | M28: FALSE | N28: FALSE | O28: FALSE | P28: TRUE | Q28: FALSE | R28: - | S28: FALSE | T28: TRUE | U28: FALSE | V28: =IF(Berechnung!$G$269=1,AJ28,AM28) -> 235194 | W28: TRUE | X28: FALSE | Y28: - | Z28: - | AA28: FALSE | AC28: FALSE | AD28: FALSE | AE28: =IF(Berechnung!$G$269=1,AK28,AN28) -> PIC00000418-00.jpg | AF28: TRUE | AH28: 0 | AI28: WPL 24 I | AJ28: 235194 | AK28: PIC00000418-00.jpg | AL28: TTL 13.5 I | AM28: 190463 | AN28: PIC00000418-00.jpg
A29: 73099 | B29: Adelberg | C29: -16 | G29: =IF(Berechnung!$G$269=1,AI29,AL29) -> WPL 13 E | H29: 5 | I29: 3.2 | J29: 3.76 | K29: 4.65 | L29: 8.09 | M29: FALSE | N29: FALSE | O29: FALSE | P29: TRUE | Q29: FALSE | R29: - | S29: FALSE | T29: FALSE | U29: FALSE | V29: =IF(Berechnung!$G$269=1,AJ29,AM29) -> 227756 | W29: TRUE | X29: FALSE | Y29: - | Z29: - | AA29: FALSE | AC29: TRUE | AD29: FALSE | AE29: =IF(Berechnung!$G$269=1,AK29,AN29) -> PIC00000457-00.jpg | AF29: TRUE | AH29: 0 | AI29: WPL 13 E | AJ29: 227756 | AK29: PIC00000457-00.jpg | AL29: TTL 13 E | AM29: 190163 | AN29: PIC00003075-00.jpg
A30: 37139 | B30: Adelebsen | C30: -14 | G30: =IF(Berechnung!$G$269=1,AI30,AL30) -> WPL 18 E | H30: 5 | I30: 3.3 | J30: 3.7 | K30: 4.6 | L30: 11.3 | M30: FALSE | N30: FALSE | O30: FALSE | P30: TRUE | Q30: FALSE | R30: - | S30: FALSE | T30: FALSE | U30: FALSE | V30: =IF(Berechnung!$G$269=1,AJ30,AM30) -> 227757 | W30: TRUE | X30: FALSE | Y30: - | Z30: - | AA30: FALSE | AC30: TRUE | AD30: FALSE | AE30: =IF(Berechnung!$G$269=1,AK30,AN30) -> PIC00000457-00.jpg | AF30: TRUE | AH30: 0 | AI30: WPL 18 E | AJ30: 227757 | AK30: PIC00000457-00.jpg | AL30: TTL 18 E | AM30: 190164 | AN30: PIC00003075-00.jpg
A31: 79618 | B31: Adelhausen | C31: -12 | G31: =IF(Berechnung!$G$269=1,AI31,AL31) -> WPL 23 E | H31: 5 | I31: 3.1 | J31: 3.6 | K31: 4.4 | L31: 15.7 | M31: FALSE | N31: FALSE | O31: FALSE | P31: TRUE | Q31: FALSE | R31: - | S31: FALSE | T31: FALSE | U31: FALSE | V31: =IF(Berechnung!$G$269=1,AJ31,AM31) -> 227758 | W31: TRUE | X31: FALSE | Y31: - | Z31: - | AA31: FALSE | AC31: TRUE | AD31: FALSE | AE31: =IF(Berechnung!$G$269=1,AK31,AN31) -> PIC00000457-00.jpg | AF31: TRUE | AH31: 0 | AI31: WPL 23 E | AJ31: 227758 | AK31: PIC00000457-00.jpg | AL31: TTL 23 E | AM31: 190165 | AN31: PIC00003075-00.jpg
A32: 73486 | B32: Adelmannsfelden | C32: -16 | G32: =IF(Berechnung!$G$269=1,AI32,AL32) -> WPL 13 cool | H32: 5 | I32: 3 | J32: 3.4 | K32: 4.3 | L32: 8.1 | M32: FALSE | N32: FALSE | O32: FALSE | P32: TRUE | Q32: FALSE | R32: - | S32: FALSE | T32: FALSE | U32: FALSE | V32: =IF(Berechnung!$G$269=1,AJ32,AM32) -> 223400 | W32: TRUE | X32: FALSE | Y32: - | Z32: - | AA32: FALSE | AC32: TRUE | AD32: FALSE | AE32: =IF(Berechnung!$G$269=1,AK32,AN32) -> PIC00000457-00.jpg | AF32: TRUE | AH32: 0 | AI32: WPL 13 cool | AJ32: 223400 | AK32: PIC00000457-00.jpg | AL32: TTL 13 cool | AM32: 190159 | AN32: PIC00003075-00.jpg
A33: 79669 | B33: Adelsberg | C33: -16 | G33: =IF(Berechnung!$G$269=1,AI33,AL33) -> WPL 18 cool | H33: 5 | I33: 3.2 | J33: 3.7 | K33: 4.6 | L33: 11.3 | M33: FALSE | N33: FALSE | O33: FALSE | P33: TRUE | Q33: FALSE | R33: - | S33: FALSE | T33: FALSE | U33: FALSE | V33: =IF(Berechnung!$G$269=1,AJ33,AM33) -> 223401 | W33: TRUE | X33: FALSE | Y33: - | Z33: - | AA33: FALSE | AC33: TRUE | AD33: FALSE | AE33: =IF(Berechnung!$G$269=1,AK33,AN33) -> PIC00000457-00.jpg | AF33: TRUE | AH33: 0 | AI33: WPL 18 cool | AJ33: 223401 | AK33: PIC00000457-00.jpg | AL33: TTL 18 cool | AM33: 190160 | AN33: PIC00003075-00.jpg
A34: 97737 | B34: Adelsberg | C34: -14 | G34: =IF(Berechnung!$G$269=1,AI34,AL34) -> WPL 23 cool | H34: 5 | I34: 3.02 | J34: 3.48 | K34: 4.34 | L34: 15.93 | M34: FALSE | N34: FALSE | O34: FALSE | P34: TRUE | Q34: FALSE | R34: - | S34: FALSE | T34: FALSE | U34: FALSE | V34: =IF(Berechnung!$G$269=1,AJ34,AM34) -> 223402 | W34: TRUE | X34: FALSE | Y34: - | Z34: - | AA34: FALSE | AC34: TRUE | AD34: FALSE | AE34: =IF(Berechnung!$G$269=1,AK34,AN34) -> PIC00000457-00.jpg | AF34: TRUE | AH34: 0 | AI34: WPL 23 cool | AJ34: 223402 | AK34: PIC00000457-00.jpg | AL34: TTL 23 cool | AM34: 190161 | AN34: PIC00003075-00.jpg
A35: 85111 | B35: Adelschlag | C35: -16 | G35: =IF(Berechnung!$G$269=1,AI35,AL35) -> WPL 33 HT | H35: 5 | I35: 2.46 | J35: 3.45 | K35: 4.84 | L35: 7.45 | M35: FALSE | N35: FALSE | O35: FALSE | P35: TRUE | Q35: FALSE | R35: - | S35: FALSE | T35: TRUE | U35: FALSE | V35: =IF(Berechnung!$G$269=1,AJ35,AM35) -> 229938 | W35: TRUE | X35: FALSE | Y35: - | Z35: - | AA35: FALSE | AC35: FALSE | AD35: FALSE | AE35: =IF(Berechnung!$G$269=1,AK35,AN35) -> PIC00000457-00.jpg | AF35: TRUE | AH35: 0 | AI35: WPL 33 HT | AJ35: 229938 | AK35: PIC00000457-00.jpg | AL35: TTL 33 HT | AM35: 190231 | AN35: PIC00003075-00.jpg
A36: 74740 | B36: Adelsheim | C36: -14 | G36: =IF(Berechnung!$G$269=1,AI36,AL36) -> WPL 34 | H36: 5 | I36: 2.78 | J36: 3.14 | K36: 3.94 | L36: 18.32 | M36: FALSE | N36: FALSE | O36: FALSE | P36: TRUE | Q36: FALSE | R36: - | S36: FALSE | T36: FALSE | U36: FALSE | V36: =IF(Berechnung!$G$269=1,AJ36,AM36) -> 228835 | W36: TRUE | X36: FALSE | Y36: - | Z36: - | AA36: FALSE | AC36: TRUE | AD36: FALSE | AE36: =IF(Berechnung!$G$269=1,AK36,AN36) -> PIC00001676-00.jpg | AF36: TRUE | AH36: 0 | AI36: WPL 34 | AJ36: 228835 | AK36: PIC00001676-00.jpg | AL36: TTL 34 | AM36: 229872 | AN36: PIC00003094-00.jpg
A37: 86477 | B37: Adelsried | C37: -16 | G37: =IF(Berechnung!$G$269=1,AI37,AL37) -> WPL 47 | H37: 5 | I37: 3.05 | J37: 3.43 | K37: 4.24 | L37: 24.82 | M37: FALSE | N37: FALSE | O37: FALSE | P37: TRUE | Q37: FALSE | R37: - | S37: FALSE | T37: FALSE | U37: FALSE | V37: =IF(Berechnung!$G$269=1,AJ37,AM37) -> 228836 | W37: TRUE | X37: FALSE | Y37: - | Z37: - | AA37: FALSE | AC37: TRUE | AD37: FALSE | AE37: =IF(Berechnung!$G$269=1,AK37,AN37) -> PIC00001676-00.jpg | AF37: TRUE | AH37: 0 | AI37: WPL 47 | AJ37: 228836 | AK37: PIC00001676-00.jpg | AL37: TTL 47 | AM37: 229873 | AN37: PIC00003094-00.jpg
A38: 4886 | B38: Adelwitz | C38: -16 | G38: =IF(Berechnung!$G$269=1,AI38,AL38) -> WPL 57 | H38: 5 | I38: 2.84 | J38: 3.3 | K38: 3.89 | L38: 29.81 | M38: FALSE | N38: FALSE | O38: FALSE | P38: TRUE | Q38: FALSE | R38: - | S38: FALSE | T38: FALSE | U38: FALSE | V38: =IF(Berechnung!$G$269=1,AJ38,AM38) -> 228837 | W38: TRUE | X38: FALSE | Y38: - | Z38: - | AA38: FALSE | AC38: TRUE | AD38: FALSE | AE38: =IF(Berechnung!$G$269=1,AK38,AN38) -> PIC00001676-00.jpg | AF38: TRUE | AH38: 0 | AI38: WPL 57 | AJ38: 228837 | AK38: PIC00001676-00.jpg | AL38: TTL 57 | AM38: 229874 | AN38: PIC00003094-00.jpg
A39: 21365 | B39: Adendorf | C39: -12 | G39: =IF(Berechnung!$G$269=1,AI39,AL39) -> WPL 44 AC | H39: 5 | I39: 3.5 | J39: 4.2 | K39: 4.9 | L39: 21.8 | M39: FALSE | N39: FALSE | O39: FALSE | P39: TRUE | Q39: FALSE | R39: - | S39: FALSE | T39: FALSE | U39: FALSE | V39: =IF(Berechnung!$G$269=1,AJ39,AM39) -> 235108 | W39: TRUE | X39: FALSE | Y39: - | Z39: - | AA39: FALSE | AC39: TRUE | AD39: FALSE | AE39: =IF(Berechnung!$G$269=1,AK39,AN39) -> PIC00005950-00.jpg | AF39: TRUE | AH39: 0 | AI39: WPL 44 AC | AJ39: 235108 | AK39: PIC00005950-00.jpg | AL39: WPL 44 AC | AN39: PIC00005950-00.jpg
A40: 31171 | B40: Adensen | C40: -14 | G40: =IF(Berechnung!$G$269=1,AI40,AL40) -> WPL 60 AC | H40: 5 | I40: 3.4 | J40: 4.1 | K40: 4.9 | L40: 30.3 | M40: FALSE | N40: FALSE | O40: FALSE | P40: TRUE | Q40: FALSE | R40: - | S40: FALSE | T40: FALSE | U40: FALSE | V40: =IF(Berechnung!$G$269=1,AJ40,AM40) -> 235109 | W40: TRUE | X40: FALSE | Y40: - | Z40: - | AA40: FALSE | AC40: TRUE | AD40: FALSE | AE40: =IF(Berechnung!$G$269=1,AK40,AN40) -> PIC00005950-00.jpg | AF40: TRUE | AH40: 0 | AI40: WPL 60 AC | AJ40: 235109 | AK40: PIC00005950-00.jpg | AL40: WPL 60 AC | AN40: PIC00005950-00.jpg
A41: 31079 | B41: Adenstedt | C41: -16 | G41: =IF(Berechnung!$G$269=1,AI41,AL41) -> WPL 130 AC | H41: 5 | I41: 2.96 | J41: 3.26 | K41: 4.05 | L41: 61.28 | M41: FALSE | N41: FALSE | O41: FALSE | P41: TRUE | Q41: FALSE | R41: - | S41: FALSE | T41: FALSE | U41: FALSE | V41: =IF(Berechnung!$G$269=1,AJ41,AM41) -> 235110 | W41: TRUE | X41: FALSE | Y41: - | Z41: - | AA41: FALSE | AC41: TRUE | AD41: FALSE | AE41: =IF(Berechnung!$G$269=1,AK41,AN41) -> PIC00005950-00.jpg | AF41: TRUE | AH41: 0 | AI41: WPL 130 AC | AJ41: 235110 | AK41: PIC00005950-00.jpg | AL41: WPL 130 AC | AN41: PIC00005950-00.jpg
A42: 84166 | B42: Adlkofen | C42: -16 | G42: =IF(Berechnung!$G$269=1,AI42,AL42) -> LWZ 504 | H42: 5 | I42: 3.09 | J42: 4.4 | K42: 5.21 | L42: 5.16 | M42: FALSE | N42: TRUE | O42: TRUE | P42: TRUE | Q42: FALSE | R42: - | S42: FALSE | T42: TRUE | U42: TRUE | V42: =IF(Berechnung!$G$269=1,AJ42,AM42) -> 233514 | W42: TRUE | X42: FALSE | Y42: - | Z42: - | AA42: FALSE | AC42: FALSE | AD42: Stratos Para 25/1-7 | AE42: =IF(Berechnung!$G$269=1,AK42,AN42) -> PIC00001023-00.jpg | AF42: TRUE | AH42: 235 | AI42: LWZ 504 | AJ42: 233514 | AK42: PIC00001023-00.jpg | AL42: THZ 504 | AM42: 190384 | AN42: PIC00003078-00.jpg
A43: 8626 | B43: Adorf/Vogtland | C43: -18 | G43: =IF(Berechnung!$G$269=1,AI43,AL43) -> LWZ 304 SOL | H43: 5 | I43: 4.06 | J43: 4.14 | K43: 4.38 | L43: 4.32 | M43: FALSE | N43: TRUE | O43: TRUE | P43: TRUE | Q43: FALSE | R43: - | S43: FALSE | T43: FALSE | U43: TRUE | V43: =IF(Berechnung!$G$269=1,AJ43,AM43) -> 230143 | W43: TRUE | X43: FALSE | Y43: - | Z43: - | AA43: FALSE | AC43: FALSE | AD43: Stratos Para 25/1-7 | AE43: =IF(Berechnung!$G$269=1,AK43,AN43) -> PIC00001023-00.jpg | AF43: TRUE | AH43: 235 | AI43: LWZ 304 SOL | AJ43: 230143 | AK43: PIC00001023-00.jpg | AL43: THZ 304 SOL | AM43: 190221 | AN43: PIC00003078-00.jpg
A44: 88299 | B44: Adrazhofen | C44: -16 | G44: =IF(Berechnung!$G$269=1,AI44,AL44) -> LWZ 404 SOL | H44: 5 | I44: 3.74 | J44: 3.98 | K44: 4.36 | L44: 6.38 | M44: FALSE | N44: TRUE | O44: TRUE | P44: TRUE | Q44: FALSE | R44: - | S44: FALSE | T44: FALSE | U44: TRUE | V44: =IF(Berechnung!$G$269=1,AJ44,AM44) -> 230144 | W44: TRUE | X44: FALSE | Y44: - | Z44: - | AA44: FALSE | AC44: FALSE | AD44: Stratos Para 25/1-7 | AE44: =IF(Berechnung!$G$269=1,AK44,AN44) -> PIC00001023-00.jpg | AF44: TRUE | AH44: 235 | AI44: LWZ 404 SOL | AJ44: 230144 | AK44: PIC00001023-00.jpg | AL44: THZ 404 SOL | AM44: 190222 | AN44: PIC00003078-00.jpg
A45: 31855 | B45: Aerzen | C45: -14 | G45: =IF(Berechnung!$G$269=1,AI45,AL45) -> LWZ 304 Trend | H45: 5 | I45: 4.06 | J45: 4.14 | K45: 4.38 | L45: 4.32 | M45: FALSE | N45: TRUE | O45: TRUE | P45: TRUE | Q45: FALSE | R45: - | S45: FALSE | T45: FALSE | U45: TRUE | V45: =IF(Berechnung!$G$269=1,AJ45,AM45) -> 233254 | W45: TRUE | X45: FALSE | Y45: - | Z45: - | AA45: FALSE | AC45: FALSE | AD45: Stratos Para 25/1-7 | AE45: =IF(Berechnung!$G$269=1,AK45,AN45) -> PIC00004273-00.jpg | AF45: TRUE | AH45: 235 | AI45: LWZ 304 Trend | AJ45: 233254 | AK45: PIC00004273-00.jpg | AL45: THZ 304 eco | AM45: 190373 | AN45: PIC00004353-00.jpg
A46: 71563 | B46: Affalterbach | C46: -14 | G46: =IF(Berechnung!$G$269=1,AI46,AL46) -> LWZ 404 Trend | H46: 5 | I46: 3.74 | J46: 3.98 | K46: 4.36 | L46: 6.38 | M46: FALSE | N46: TRUE | O46: TRUE | P46: TRUE | Q46: FALSE | R46: - | S46: FALSE | T46: FALSE | U46: TRUE | V46: =IF(Berechnung!$G$269=1,AJ46,AM46) -> 233255 | W46: TRUE | X46: FALSE | Y46: - | Z46: - | AA46: FALSE | AC46: FALSE | AD46: Stratos Para 25/1-7 | AE46: =IF(Berechnung!$G$269=1,AK46,AN46) -> PIC00004273-00.jpg | AF46: TRUE | AH46: 235 | AI46: LWZ 404 Trend | AJ46: 233255 | AK46: PIC00004273-00.jpg | AL46: THZ 404 eco | AM46: 190374 | AN46: PIC00004353-00.jpg
A47: 74182 | B47: Affaltrach | C47: -14 | G47: =IF(Berechnung!$G$269=1,AI47,AL47) -> LWZ 304 flex | H47: 5 | I47: 4.06 | J47: 4.14 | K47: 4.38 | L47: 4.32 | M47: FALSE | N47: FALSE | O47: TRUE | P47: TRUE | Q47: FALSE | R47: - | S47: FALSE | T47: FALSE | U47: TRUE | V47: =IF(Berechnung!$G$269=1,AJ47,AM47) -> 235268 | W47: FALSE | X47: FALSE | Y47: - | Z47: - | AA47: FALSE | AC47: FALSE | AD47: Stratos Para 25/1-7 | AE47: =IF(Berechnung!$G$269=1,AK47,AN47) -> PIC00006044-00.jpg | AF47: TRUE | AH47: 0 | AI47: LWZ 304 flex | AJ47: 235268 | AK47: PIC00006044-00.jpg | AL47: THZ 304 flex | AM47: 190468 | AN47: PIC00006097-00.jpg
A48: 58809 | B48: Affeln | C48: -12 | G48: =IF(Berechnung!$G$269=1,AI48,AL48) -> LWZ 404 flex | H48: 5 | I48: 3.74 | J48: 3.98 | K48: 4.36 | L48: 6.38 | M48: FALSE | N48: FALSE | O48: TRUE | P48: TRUE | Q48: FALSE | R48: - | S48: FALSE | T48: FALSE | U48: TRUE | V48: =IF(Berechnung!$G$269=1,AJ48,AM48) -> 235269 | W48: FALSE | X48: FALSE | Y48: - | Z48: - | AA48: FALSE | AC48: FALSE | AD48: Stratos Para 25/1-7 | AE48: =IF(Berechnung!$G$269=1,AK48,AN48) -> PIC00006044-00.jpg | AF48: TRUE | AH48: 0 | AI48: LWZ 404 flex | AJ48: 235269 | AK48: PIC00006044-00.jpg | AL48: THZ 404 flex | AM48: 190469 | AN48: PIC00006097-00.jpg
A49: 86444 | B49: Affing | C49: -16 | G49: =IF(Berechnung!$G$269=1,AI49,AL49) -> LWZ smart | H49: 5 | I49: 2.82 | J49: 3.46 | K49: 3.89 | L49: 6.38 | M49: FALSE | N49: TRUE | O49: TRUE | P49: TRUE | Q49: FALSE | R49: - | S49: FALSE | T49: FALSE | U49: FALSE | V49: =IF(Berechnung!$G$269=1,AJ49,AM49) -> 235267 | W49: FALSE | X49: FALSE | Y49: - | Z49: - | AA49: FALSE | AC49: FALSE | AD49: Stratos Para 25/1-7 | AE49: =IF(Berechnung!$G$269=1,AK49,AN49) -> PIC00006060-00.jpg | AF49: TRUE | AH49: 235 | AI49: LWZ smart | AJ49: 235267 | AK49: PIC00006060-00.jpg | AL49: THZ 404 eco | AM49: 190467 | AN49: PIC00006124-00.jpg
A50: 71083 | B50: Affstätt | C50: -16
A51: 74858 | B51: Aglasterhausen | C51: -12
A52: 48683 | B52: Ahaus | C52: -10 | G52: Sole-Wasser-Wärmepumpen
A53: 88697 | B53: Ahausen | C53: -12 | G53: WP-Typ | H53: DT | I53: Leistungszahl | J53: Leistungsaufnahme | K53: Leistungsaufnahme | L53: Heizleistung | M53: WP-Set ? | N53: WWB | O53: EC-Pumpe Heizung | P53: WMZ | Q53: EC-Pumpe Sole | R53: Bezeichnung | S53: LWM 250 | T53: Inverter ? | U53: Sonderbauform | V53: Artikel.nr. | W53: In | X53: EC-Pumpe Brunnen | Y53: EC-Pumpe Brunnen | Z53: Leistungsaufnahme | AA53: WPW ohne | AB53: Heizleistung | AC53: Kaskadierbar ? | AD53: EC-Pumpe | AE53: Produktbild | AF53: SG-ready ? | AH53: Speichergröße | AI53: Name | AJ53: Datenblatt | AK53: Produktbild | AL53: Name | AM53: Datenblatt | AN53: Produktbild
A54: 37170 | B54: Ahlbershausen | C54: -14 | H54: Prüfstand | I54: B0/W35 | J54: B0/W35 [KW] | K54: Solepumpe (EC) | L54: B0/W35 | N54: integriert | O54: eingebaut ? | P54: integriert ? | Q54: eingebaut ? | R54: Solepumpe (EC) | S54: einsetzbar ? | U54: Bafa-Liste ? | W54: Bafa-Liste ? | X54: einsetzbar ? | Y54: Typ Grundfos | Z54: Brunnenpumpe | AA54: Zwischen-WT ? | AB54: B10/W35 | AD54: Heizung | AH54: Warmwasser | AI54: Stiebel | AJ54: Stiebel | AK54: Stiebel | AL54: tecalor | AM54: tecalor | AN54: tecalor
A55: 72160 | B55: Ahldorf | C55: -16 | G55: =IF(Berechnung!$G$269=1,AI55,AL55) -> WPC 04 | H55: 5 | I55: 4.52 | J55: 1.056 | K55: 0.04 | L55: 4.77 | M55: FALSE | N55: TRUE | O55: TRUE | P55: TRUE | Q55: TRUE | R55: Yonos PARA RS 25/7.5 | S55: TRUE | T55: FALSE | U55: FALSE | V55: =IF(Berechnung!$G$269=1,AJ55,AM55) -> 232926 | W55: TRUE | X55: TRUE | Y55: Grundfos SQE 5-15 | Z55: 0.21 | AA55: FALSE | AB55: 6.22 | AC55: FALSE | AD55: Yonos PARA 25/7.0 | AE55: =IF(Berechnung!$G$269=1,AK55,AN55) -> PIC00003663-00.jpg | AF55: TRUE | AH55: 175 | AI55: WPC 04 | AJ55: 232926 | AK55: PIC00003663-00.jpg | AL55: TTC 04 | AM55: 190345 | AN55: PIC00003777-00.jpg
A56: 5922. | B56: Ahlen/Westf. | C56: -12 | G56: =IF(Berechnung!$G$269=1,AI56,AL56) -> WPC 05 | H56: 5 | I56: 4.79 | J56: 1.214 | K56: 0.055 | L56: 5.82 | M56: FALSE | N56: TRUE | O56: TRUE | P56: TRUE | Q56: TRUE | R56: Yonos PARA RS 25/7.5 | S56: TRUE | T56: FALSE | U56: FALSE | V56: =IF(Berechnung!$G$269=1,AJ56,AM56) -> 232927 | W56: TRUE | X56: TRUE | Y56: Grundfos SQE 5-15 | Z56: 0.22 | AA56: FALSE | AB56: 7.26 | AC56: FALSE | AD56: Yonos PARA 25/7.0 | AE56: =IF(Berechnung!$G$269=1,AK56,AN56) -> PIC00003663-00.jpg | AF56: TRUE | AH56: 175 | AI56: WPC 05 | AJ56: 232927 | AK56: PIC00003663-00.jpg | AL56: TTC 05 | AM56: 190346 | AN56: PIC00003777-00.jpg
A57: 6313 | B57: Ahlsdorf | C57: -14 | G57: =IF(Berechnung!$G$269=1,AI57,AL57) -> WPC 07 | H57: 5 | I57: 4.85 | J57: 1.545 | K57: 0.07 | L57: 7.5 | M57: FALSE | N57: TRUE | O57: TRUE | P57: TRUE | Q57: TRUE | R57: Stratos PARA 25/1-8 | S57: TRUE | T57: FALSE | U57: FALSE | V57: =IF(Berechnung!$G$269=1,AJ57,AM57) -> 232928 | W57: TRUE | X57: TRUE | Y57: Grundfos SQE 5-15 | Z57: 0.23 | AA57: FALSE | AB57: 9.67 | AC57: FALSE | AD57: Yonos PARA 25/7.0 | AE57: =IF(Berechnung!$G$269=1,AK57,AN57) -> PIC00003663-00.jpg | AF57: TRUE | AH57: 175 | AI57: WPC 07 | AJ57: 232928 | AK57: PIC00003663-00.jpg | AL57: TTC 07 | AM57: 190347 | AN57: PIC00003777-00.jpg
A58: 32609 | B58: Ahlsen | C58: -12 | G58: =IF(Berechnung!$G$269=1,AI58,AL58) -> WPC 10 | H58: 5 | I58: 5.02 | J58: 2.055 | K58: 0.075 | L58: 10.31 | M58: FALSE | N58: TRUE | O58: TRUE | P58: TRUE | Q58: TRUE | R58: Stratos PARA 25/1-8 | S58: TRUE | T58: FALSE | U58: FALSE | V58: =IF(Berechnung!$G$269=1,AJ58,AM58) -> 232929 | W58: TRUE | X58: TRUE | Y58: Grundfos SQE 5-15 | Z58: 0.24 | AA58: FALSE | AB58: 13.12 | AC58: FALSE | AD58: Yonos PARA 25/7.5 | AE58: =IF(Berechnung!$G$269=1,AK58,AN58) -> PIC00003663-00.jpg | AF58: TRUE | AH58: 162 | AI58: WPC 10 | AJ58: 232929 | AK58: PIC00003663-00.jpg | AL58: TTC 10 | AM58: 190348 | AN58: PIC00003777-00.jpg
A59: 38368 | B59: Ahmstorf | C59: -14 | G59: =IF(Berechnung!$G$269=1,AI59,AL59) -> WPC 13 | H59: 5 | I59: 4.83 | J59: 2.736 | K59: 0.095 | L59: 13.21 | M59: FALSE | N59: TRUE | O59: TRUE | P59: TRUE | Q59: TRUE | R59: Stratos PARA 25/1-8 | S59: TRUE | T59: FALSE | U59: FALSE | V59: =IF(Berechnung!$G$269=1,AJ59,AM59) -> 232930 | W59: TRUE | X59: TRUE | Y59: Grundfos SQE 5-15 | Z59: 0.255 | AA59: FALSE | AB59: 16.9 | AC59: FALSE | AD59: Yonos PARA 25/7.5 | AE59: =IF(Berechnung!$G$269=1,AK59,AN59) -> PIC00003663-00.jpg | AF59: TRUE | AH59: 162 | AI59: WPC 13 | AJ59: 232930 | AK59: PIC00003663-00.jpg | AL59: TTC 13 | AM59: 190349 | AN59: PIC00003777-00.jpg
A60: 34292 | B60: Ahnatal | C60: -14 | G60: =IF(Berechnung!$G$269=1,AI60,AL60) -> WPC 04 cool | H60: 5 | I60: 4.52 | J60: 1.056 | K60: 0.04 | L60: 4.77 | M60: FALSE | N60: TRUE | O60: TRUE | P60: TRUE | Q60: TRUE | R60: Yonos PARA RS 25/7.5 | S60: TRUE | T60: FALSE | U60: FALSE | V60: =IF(Berechnung!$G$269=1,AJ60,AM60) -> 232931 | W60: TRUE | X60: TRUE | Y60: Grundfos SQE 5-15 | Z60: 0.21 | AA60: FALSE | AB60: 6.22 | AC60: FALSE | AD60: Yonos PARA 25/7.0 | AE60: =IF(Berechnung!$G$269=1,AK60,AN60) -> PIC00003663-00.jpg | AF60: TRUE | AH60: 175 | AI60: WPC 04 cool | AJ60: 232931 | AK60: PIC00003663-00.jpg | AL60: TTC 04 cool | AM60: 190350 | AN60: PIC00003777-00.jpg
A61: 29353 | B61: Ahnsbeck | C61: -14 | G61: =IF(Berechnung!$G$269=1,AI61,AL61) -> WPC 05 cool | H61: 5 | I61: 4.79 | J61: 1.214 | K61: 0.055 | L61: 5.82 | M61: FALSE | N61: TRUE | O61: TRUE | P61: TRUE | Q61: TRUE | R61: Yonos PARA RS 25/7.5 | S61: TRUE | T61: FALSE | U61: FALSE | V61: =IF(Berechnung!$G$269=1,AJ61,AM61) -> 232932 | W61: TRUE | X61: TRUE | Y61: Grundfos SQE 5-15 | Z61: 0.22 | AA61: FALSE | AB61: 7.26 | AC61: FALSE | AD61: Yonos PARA 25/7.0 | AE61: =IF(Berechnung!$G$269=1,AK61,AN61) -> PIC00003663-00.jpg | AF61: TRUE | AH61: 175 | AI61: WPC 05 cool | AJ61: 232932 | AK61: PIC00003663-00.jpg | AL61: TTC 05 cool | AM61: 190351 | AN61: PIC00003777-00.jpg
A62: 94527 | B62: Aholming | C62: -18 | G62: =IF(Berechnung!$G$269=1,AI62,AL62) -> WPC 07 cool | H62: 5 | I62: 4.85 | J62: 1.545 | K62: 0.07 | L62: 7.5 | M62: FALSE | N62: TRUE | O62: TRUE | P62: TRUE | Q62: TRUE | R62: Stratos PARA 25/1-8 | S62: TRUE | T62: FALSE | U62: FALSE | V62: =IF(Berechnung!$G$269=1,AJ62,AM62) -> 232933 | W62: TRUE | X62: TRUE | Y62: Grundfos SQE 5-15 | Z62: 0.23 | AA62: FALSE | AB62: 9.67 | AC62: FALSE | AD62: Yonos PARA 25/7.0 | AE62: =IF(Berechnung!$G$269=1,AK62,AN62) -> PIC00003663-00.jpg | AF62: TRUE | AH62: 175 | AI62: WPC 07 cool | AJ62: 232933 | AK62: PIC00003663-00.jpg | AL62: TTC 07 cool | AM62: 190352 | AN62: PIC00003777-00.jpg
A63: 74744 | B63: Ahorn | C63: -16 | G63: =IF(Berechnung!$G$269=1,AI63,AL63) -> WPC 10 cool | H63: 5 | I63: 5.02 | J63: 2.055 | K63: 0.075 | L63: 10.31 | M63: FALSE | N63: TRUE | O63: TRUE | P63: TRUE | Q63: TRUE | R63: Stratos PARA 25/1-8 | S63: TRUE | T63: FALSE | U63: FALSE | V63: =IF(Berechnung!$G$269=1,AJ63,AM63) -> 232934 | W63: TRUE | X63: TRUE | Y63: Grundfos SQE 5-15 | Z63: 0.24 | AA63: FALSE | AB63: 13.12 | AC63: FALSE | AD63: Yonos PARA 25/7.5 | AE63: =IF(Berechnung!$G$269=1,AK63,AN63) -> PIC00003663-00.jpg | AF63: TRUE | AH63: 162 | AI63: WPC 10 cool | AJ63: 232934 | AK63: PIC00003663-00.jpg | AL63: TTC 10 cool | AM63: 190353 | AN63: PIC00003777-00.jpg
A64: 96482 | B64: Ahorn | C64: -16 | G64: =IF(Berechnung!$G$269=1,AI64,AL64) -> WPC 13 cool | H64: 5 | I64: 4.83 | J64: 2.736 | K64: 0.095 | L64: 13.21 | M64: FALSE | N64: TRUE | O64: TRUE | P64: TRUE | Q64: TRUE | R64: Stratos PARA 25/1-8 | S64: TRUE | T64: FALSE | U64: FALSE | V64: =IF(Berechnung!$G$269=1,AJ64,AM64) -> 232935 | W64: TRUE | X64: TRUE | Y64: Grundfos SQE 5-15 | Z64: 0.255 | AA64: FALSE | AB64: 16.9 | AC64: FALSE | AD64: Yonos PARA 25/7.5 | AE64: =IF(Berechnung!$G$269=1,AK64,AN64) -> PIC00003663-00.jpg | AF64: TRUE | AH64: 162 | AI64: WPC 13 cool | AJ64: 232935 | AK64: PIC00003663-00.jpg | AL64: TTC 13 cool | AM64: 190354 | AN64: PIC00003777-00.jpg
A65: 95491 | B65: Ahorntal | C65: -16 | G65: =IF(Berechnung!$G$269=1,AI65,AL65) -> WPF 04 | H65: 5 | I65: 4.52 | J65: 1.056 | K65: 0.04 | L65: 4.77 | M65: FALSE | N65: FALSE | O65: TRUE | P65: TRUE | Q65: TRUE | R65: Yonos PARA RS 25/7.5 | S65: TRUE | T65: FALSE | U65: FALSE | V65: =IF(Berechnung!$G$269=1,AJ65,AM65) -> 232909 | W65: TRUE | X65: TRUE | Y65: Grundfos SQE 5-15 | Z65: 0.21 | AA65: FALSE | AB65: 6.22 | AC65: FALSE | AD65: Yonos PARA 25/7.0 | AE65: =IF(Berechnung!$G$269=1,AK65,AN65) -> PIC00003403-00.jpg | AF65: TRUE | AH65: 0 | AI65: WPF 04 | AJ65: 232909 | AK65: PIC00003403-00.jpg | AL65: TTF 04 | AM65: 190333 | AN65: PIC00003730-00.jpg
A66: 38707 | B66: Ahrensberg | C66: -12 | G66: =IF(Berechnung!$G$269=1,AI66,AL66) -> WPF 05 | H66: 5 | I66: 4.79 | J66: 1.214 | K66: 0.055 | L66: 5.82 | M66: FALSE | N66: FALSE | O66: TRUE | P66: TRUE | Q66: TRUE | R66: Yonos PARA RS 25/7.5 | S66: TRUE | T66: FALSE | U66: FALSE | V66: =IF(Berechnung!$G$269=1,AJ66,AM66) -> 232910 | W66: TRUE | X66: TRUE | Y66: Grundfos SQE 5-15 | Z66: 0.22 | AA66: FALSE | AB66: 7.26 | AC66: FALSE | AD66: Yonos PARA 25/7.0 | AE66: =IF(Berechnung!$G$269=1,AK66,AN66) -> PIC00003403-00.jpg | AF66: TRUE | AH66: 0 | AI66: WPF 05 | AJ66: 232910 | AK66: PIC00003403-00.jpg | AL66: TTF 05 | AM66: 190334 | AN66: PIC00003730-00.jpg
A67: 22926 | B67: Ahrensburg | C67: -12 | G67: =IF(Berechnung!$G$269=1,AI67,AL67) -> WPF 07 | H67: 5 | I67: 4.85 | J67: 1.545 | K67: 0.07 | L67: 7.5 | M67: FALSE | N67: FALSE | O67: TRUE | P67: TRUE | Q67: TRUE | R67: Stratos PARA 25/1-8 | S67: TRUE | T67: FALSE | U67: FALSE | V67: =IF(Berechnung!$G$269=1,AJ67,AM67) -> 232911 | W67: TRUE | X67: TRUE | Y67: Grundfos SQE 5-15 | Z67: 0.23 | AA67: FALSE | AB67: 9.67 | AC67: FALSE | AD67: Yonos PARA 25/7.0 | AE67: =IF(Berechnung!$G$269=1,AK67,AN67) -> PIC00003403-00.jpg | AF67: TRUE | AH67: 0 | AI67: WPF 07 | AJ67: 232911 | AK67: PIC00003403-00.jpg | AL67: TTF 07 | AM67: 190335 | AN67: PIC00003730-00.jpg
A68: 16356 | B68: Ahrensfelde | C68: -14 | G68: =IF(Berechnung!$G$269=1,AI68,AL68) -> WPF 10 | H68: 5 | I68: 5.02 | J68: 2.055 | K68: 0.075 | L68: 10.31 | M68: FALSE | N68: FALSE | O68: TRUE | P68: TRUE | Q68: TRUE | R68: Stratos PARA 25/1-8 | S68: TRUE | T68: FALSE | U68: FALSE | V68: =IF(Berechnung!$G$269=1,AJ68,AM68) -> 232912 | W68: TRUE | X68: TRUE | Y68: Grundfos SQE 5-15 | Z68: 0.24 | AA68: FALSE | AB68: 13.12 | AC68: FALSE | AD68: Yonos PARA 25/7.5 | AE68: =IF(Berechnung!$G$269=1,AK68,AN68) -> PIC00003403-00.jpg | AF68: TRUE | AH68: 0 | AI68: WPF 10 | AJ68: 232912 | AK68: PIC00003403-00.jpg | AL68: TTF 10 | AM68: 190336 | AN68: PIC00003730-00.jpg
A69: 18320 | B69: Ahrenshagen | C69: -10 | G69: =IF(Berechnung!$G$269=1,AI69,AL69) -> WPF 13 | H69: 5 | I69: 4.83 | J69: 2.736 | K69: 0.095 | L69: 13.21 | M69: FALSE | N69: FALSE | O69: TRUE | P69: TRUE | Q69: TRUE | R69: Stratos PARA 25/1-8 | S69: TRUE | T69: FALSE | U69: FALSE | V69: =IF(Berechnung!$G$269=1,AJ69,AM69) -> 232913 | W69: TRUE | X69: TRUE | Y69: Grundfos SQE 5-15 | Z69: 0.255 | AA69: FALSE | AB69: 16.9 | AC69: FALSE | AD69: Yonos PARA 25/7.5 | AE69: =IF(Berechnung!$G$269=1,AK69,AN69) -> PIC00003403-00.jpg | AF69: TRUE | AH69: 0 | AI69: WPF 13 | AJ69: 232913 | AK69: PIC00003403-00.jpg | AL69: TTF 13 | AM69: 190337 | AN69: PIC00003730-00.jpg
A70: 53945 | B70: Ahrhütte | C70: -14 | G70: =IF(Berechnung!$G$269=1,AI70,AL70) -> WPF 16 | H70: 5 | I70: 4.54 | J70: 3.748 | K70: 0.14 | L70: 17.02 | M70: FALSE | N70: FALSE | O70: TRUE | P70: TRUE | Q70: TRUE | R70: Stratos PARA 25/1-12 | S70: TRUE | T70: FALSE | U70: FALSE | V70: =IF(Berechnung!$G$269=1,AJ70,AM70) -> 232914 | W70: TRUE | X70: TRUE | Y70: Grundfos SQE 5-15 | Z70: 0.26 | AA70: FALSE | AB70: 21.68 | AC70: FALSE | AD70: Stratos Para 25/1-8 | AE70: =IF(Berechnung!$G$269=1,AK70,AN70) -> PIC00003403-00.jpg | AF70: TRUE | AH70: 0 | AI70: WPF 16 | AJ70: 232914 | AK70: PIC00003403-00.jpg | AL70: TTF 16 | AM70: 190338 | AN70: PIC00003730-00.jpg
A71: 86551 | B71: Aichach | C71: -16 | G71: =IF(Berechnung!$G$269=1,AI71,AL71) -> WPF 04 cool | H71: 5 | I71: 4.52 | J71: 1.056 | K71: 0.04 | L71: 4.77 | M71: FALSE | N71: FALSE | O71: TRUE | P71: TRUE | Q71: TRUE | R71: Yonos PARA RS 25/7.5 | S71: TRUE | T71: FALSE | U71: FALSE | V71: =IF(Berechnung!$G$269=1,AJ71,AM71) -> 232915 | W71: TRUE | X71: TRUE | Y71: Grundfos SQE 5-15 | Z71: 0.21 | AA71: FALSE | AB71: 6.22 | AC71: FALSE | AD71: Yonos PARA 25/7.0 | AE71: =IF(Berechnung!$G$269=1,AK71,AN71) -> PIC00003403-00.jpg | AF71: TRUE | AH71: 0 | AI71: WPF 04 cool | AJ71: 232915 | AK71: PIC00003403-00.jpg | AL71: TTF 04 cool | AM71: 190339 | AN71: PIC00003730-00.jpg
A72: 92262 | B72: Aichach | C72: -16 | G72: =IF(Berechnung!$G$269=1,AI72,AL72) -> WPF 05 cool | H72: 5 | I72: 4.79 | J72: 1.214 | K72: 0.055 | L72: 5.82 | M72: FALSE | N72: FALSE | O72: TRUE | P72: TRUE | Q72: TRUE | R72: Yonos PARA RS 25/7.5 | S72: TRUE | T72: FALSE | U72: FALSE | V72: =IF(Berechnung!$G$269=1,AJ72,AM72) -> 232916 | W72: TRUE | X72: TRUE | Y72: Grundfos SQE 5-15 | Z72: 0.22 | AA72: FALSE | AB72: 7.26 | AC72: FALSE | AD72: Yonos PARA 25/7.0 | AE72: =IF(Berechnung!$G$269=1,AK72,AN72) -> PIC00003403-00.jpg | AF72: TRUE | AH72: 0 | AI72: WPF 05 cool | AJ72: 232916 | AK72: PIC00003403-00.jpg | AL72: TTF 05 cool | AM72: 190340 | AN72: PIC00003730-00.jpg
A73: 72539 | B73: Aichelau | C73: -16 | G73: =IF(Berechnung!$G$269=1,AI73,AL73) -> WPF 07 cool | H73: 5 | I73: 4.85 | J73: 1.545 | K73: 0.07 | L73: 7.5 | M73: FALSE | N73: FALSE | O73: TRUE | P73: TRUE | Q73: TRUE | R73: Stratos PARA 25/1-8 | S73: TRUE | T73: FALSE | U73: FALSE | V73: =IF(Berechnung!$G$269=1,AJ73,AM73) -> 232917 | W73: TRUE | X73: TRUE | Y73: Grundfos SQE 5-15 | Z73: 0.23 | AA73: FALSE | AB73: 9.67 | AC73: FALSE | AD73: Yonos PARA 25/7.0 | AE73: =IF(Berechnung!$G$269=1,AK73,AN73) -> PIC00003403-00.jpg | AF73: TRUE | AH73: 0 | AI73: WPF 07 cool | AJ73: 232917 | AK73: PIC00003403-00.jpg | AL73: TTF 07 cool | AM73: 190341 | AN73: PIC00003730-00.jpg
A74: 73101 | B74: Aichelberg | C74: -16 | G74: =IF(Berechnung!$G$269=1,AI74,AL74) -> WPF 10 cool | H74: 5 | I74: 5.02 | J74: 2.055 | K74: 0.075 | L74: 10.31 | M74: FALSE | N74: FALSE | O74: TRUE | P74: TRUE | Q74: TRUE | R74: Stratos PARA 25/1-8 | S74: TRUE | T74: FALSE | U74: FALSE | V74: =IF(Berechnung!$G$269=1,AJ74,AM74) -> 232918 | W74: TRUE | X74: TRUE | Y74: Grundfos SQE 5-15 | Z74: 0.24 | AA74: FALSE | AB74: 13.12 | AC74: FALSE | AD74: Yonos PARA 25/7.5 | AE74: =IF(Berechnung!$G$269=1,AK74,AN74) -> PIC00003403-00.jpg | AF74: TRUE | AH74: 0 | AI74: WPF 10 cool | AJ74: 232918 | AK74: PIC00003403-00.jpg | AL74: TTF 10 cool | AM74: 190342 | AN74: PIC00003730-00.jpg
A75: 75323 | B75: Aichelberg | C75: -16 | G75: =IF(Berechnung!$G$269=1,AI75,AL75) -> WPF 13 cool | H75: 5 | I75: 4.83 | J75: 2.736 | K75: 0.095 | L75: 13.21 | M75: FALSE | N75: FALSE | O75: TRUE | P75: TRUE | Q75: TRUE | R75: Stratos PARA 25/1-8 | S75: TRUE | T75: FALSE | U75: FALSE | V75: =IF(Berechnung!$G$269=1,AJ75,AM75) -> 232919 | W75: TRUE | X75: TRUE | Y75: Grundfos SQE 5-15 | Z75: 0.255 | AA75: FALSE | AB75: 16.9 | AC75: FALSE | AD75: Yonos PARA 25/7.5 | AE75: =IF(Berechnung!$G$269=1,AK75,AN75) -> PIC00003403-00.jpg | AF75: TRUE | AH75: 0 | AI75: WPF 13 cool | AJ75: 232919 | AK75: PIC00003403-00.jpg | AL75: TTF 13 cool | AM75: 190343 | AN75: PIC00003730-00.jpg
A76: 78733 | B76: Aichhalden | C76: -16 | G76: =IF(Berechnung!$G$269=1,AI76,AL76) -> WPF 16 cool | H76: 5 | I76: 4.54 | J76: 3.748 | K76: 0.14 | L76: 17.02 | M76: FALSE | N76: FALSE | O76: TRUE | P76: TRUE | Q76: TRUE | R76: Stratos PARA 25/1-12 | S76: TRUE | T76: FALSE | U76: FALSE | V76: =IF(Berechnung!$G$269=1,AJ76,AM76) -> 232920 | W76: TRUE | X76: TRUE | Y76: Grundfos SQE 5-15 | Z76: 0.26 | AA76: FALSE | AB76: 21.68 | AC76: FALSE | AD76: Stratos PARA 25/1-8 | AE76: =IF(Berechnung!$G$269=1,AK76,AN76) -> PIC00003403-00.jpg | AF76: TRUE | AH76: 0 | AI76: WPF 16 cool | AJ76: 232920 | AK76: PIC00003403-00.jpg | AL76: TTF 16 cool | AM76: 190344 | AN76: PIC00003730-00.jpg
A77: 88317 | B77: Aichstetten | C77: -16 | G77: =IF(Berechnung!$G$269=1,AI77,AL77) -> WPF 5 basic | H77: 5 | I77: 4.33 | J77: 1.36 | K77: 0.055 | L77: 5.88 | M77: FALSE | N77: FALSE | O77: TRUE | P77: TRUE | Q77: FALSE | R77: Stratos 30/1-8 | S77: TRUE | T77: FALSE | U77: FALSE | V77: =IF(Berechnung!$G$269=1,AJ77,AM77) -> 230944 | W77: TRUE | X77: TRUE | Y77: Grundfos SQE 5-15 | Z77: 0.22 | AA77: FALSE | AB77: 7.2 | AC77: FALSE | AD77: Stratos PARA 25/1-8 | AE77: =IF(Berechnung!$G$269=1,AK77,AN77) -> PIC00001138-00.jpg | AF77: TRUE | AH77: 0 | AI77: WPF 5 basic | AJ77: 230944 | AK77: PIC00001138-00.jpg | AL77: WPF 5 basic | AN77: PIC00001138-00.jpg
A78: 72631 | B78: Aichtal | C78: -14 | G78: =IF(Berechnung!$G$269=1,AI78,AL78) -> WPF 7 basic | H78: 5 | I78: 4.5 | J78: 1.7 | K78: 0.07 | L78: 7.64 | M78: FALSE | N78: FALSE | O78: TRUE | P78: TRUE | Q78: FALSE | R78: Stratos 30/1-8 | S78: TRUE | T78: FALSE | U78: FALSE | V78: =IF(Berechnung!$G$269=1,AJ78,AM78) -> 230945 | W78: TRUE | X78: TRUE | Y78: Grundfos SQE 5-15 | Z78: 0.23 | AA78: FALSE | AB78: 10 | AC78: FALSE | AD78: Stratos PARA 25/1-8 | AE78: =IF(Berechnung!$G$269=1,AK78,AN78) -> PIC00001138-00.jpg | AF78: TRUE | AH78: 0 | AI78: WPF 7 basic | AJ78: 230945 | AK78: PIC00001138-00.jpg | AL78: WPF 7 basic | AN78: PIC00001138-00.jpg
A79: 73773 | B79: Aichwald | C79: -14 | G79: =IF(Berechnung!$G$269=1,AI79,AL79) -> WPF 10 basic | H79: 5 | I79: 4.37 | J79: 2.22 | K79: 0.075 | L79: 9.7 | M79: FALSE | N79: FALSE | O79: TRUE | P79: TRUE | Q79: FALSE | R79: Stratos 30/1-8 | S79: TRUE | T79: FALSE | U79: FALSE | V79: =IF(Berechnung!$G$269=1,AJ79,AM79) -> 230946 | W79: TRUE | X79: TRUE | Y79: Grundfos SQE 5-15 | Z79: 0.24 | AA79: FALSE | AB79: 12.5 | AC79: FALSE | AD79: Stratos PARA 25/1-8 | AE79: =IF(Berechnung!$G$269=1,AK79,AN79) -> PIC00001138-00.jpg | AF79: TRUE | AH79: 0 | AI79: WPF 10 basic | AJ79: 230946 | AK79: PIC00001138-00.jpg | AL79: WPF 10 basic | AN79: PIC00001138-00.jpg
A80: 84539 | B80: Aidenbach | C80: -16 | G80: =IF(Berechnung!$G$269=1,AI80,AL80) -> WPF 13 basic | H80: 5 | I80: 4.42 | J80: 2.85 | K80: 0.095 | L80: 12.59 | M80: FALSE | N80: FALSE | O80: TRUE | P80: TRUE | Q80: FALSE | R80: Stratos 30/1-8 | S80: TRUE | T80: FALSE | U80: FALSE | V80: =IF(Berechnung!$G$269=1,AJ80,AM80) -> 230947 | W80: TRUE | X80: TRUE | Y80: Grundfos SQE 5-15 | Z80: 0.255 | AA80: FALSE | AB80: 17.1 | AC80: FALSE | AD80: Stratos PARA 25/1-8 | AE80: =IF(Berechnung!$G$269=1,AK80,AN80) -> PIC00001138-00.jpg | AF80: TRUE | AH80: 0 | AI80: WPF 13 basic | AJ80: 230947 | AK80: PIC00001138-00.jpg | AL80: WPF 13 basic | AN80: PIC00001138-00.jpg
A81: 94501 | B81: Aidenbach | C81: -16 | G81: =IF(Berechnung!$G$269=1,AI81,AL81) -> WPF 10 M | H81: 5 | I81: 4.49 | J81: 2.22 | K81: 0.075 | L81: 10.02 | M81: FALSE | N81: FALSE | O81: FALSE | P81: TRUE | Q81: FALSE | R81: Stratos 30/1-8 | S81: TRUE | T81: FALSE | U81: FALSE | V81: =IF(Berechnung!$G$269=1,AJ81,AM81) -> 185349 | W81: TRUE | X81: TRUE | Y81: Grundfos SQE 5-15 | Z81: 0.24 | AA81: FALSE | AB81: 12.5 | AC81: TRUE | AD81: FALSE | AE81: =IF(Berechnung!$G$269=1,AK81,AN81) -> PIC00000594-00.jpg | AF81: TRUE | AH81: 0 | AI81: WPF 10 M | AJ81: 185349 | AK81: PIC00000594-00.jpg | AL81: TTF 10 M | AM81: 190058 | AN81: PIC00003954-00.jpg
A82: 97491 | B82: Aidhausen | C82: -16 | G82: =IF(Berechnung!$G$269=1,AI82,AL82) -> WPF 13 M | H82: 5 | I82: 4.57 | J82: 2.82 | K82: 0.095 | L82: 12.98 | M82: FALSE | N82: FALSE | O82: FALSE | P82: TRUE | Q82: FALSE | R82: Stratos 30/1-8 | S82: TRUE | T82: FALSE | U82: FALSE | V82: =IF(Berechnung!$G$269=1,AJ82,AM82) -> 182135 | W82: TRUE | X82: TRUE | Y82: Grundfos SQE 5-15 | Z82: 0.255 | AA82: FALSE | AB82: 17.1 | AC82: TRUE | AD82: FALSE | AE82: =IF(Berechnung!$G$269=1,AK82,AN82) -> PIC00000594-00.jpg | AF82: TRUE | AH82: 0 | AI82: WPF 13 M | AJ82: 182135 | AK82: PIC00000594-00.jpg | AL82: TTF 13 M | AM82: 190045 | AN82: PIC00003954-00.jpg
A83: 71134 | B83: Aidlingen | C83: -16 | G83: =IF(Berechnung!$G$269=1,AI83,AL83) -> WPF 16 M | H83: 5 | I83: 4.35 | J83: 3.5 | K83: 0.09 | L83: 16.99 | M83: FALSE | N83: FALSE | O83: FALSE | P83: TRUE | Q83: FALSE | R83: Stratos 30/1-8 | S83: TRUE | T83: FALSE | U83: FALSE | V83: =IF(Berechnung!$G$269=1,AJ83,AM83) -> 220894 | W83: TRUE | X83: TRUE | Y83: Grundfos SQE 5-15 | Z83: 0.26 | AA83: FALSE | AB83: 21.7 | AC83: TRUE | AD83: FALSE | AE83: =IF(Berechnung!$G$269=1,AK83,AN83) -> PIC00000594-00.jpg | AF83: TRUE | AH83: 0 | AI83: WPF 16 M | AJ83: 220894 | AK83: PIC00000594-00.jpg | AL83: TTF 16 M | AM83: 190102 | AN83: PIC00003954-00.jpg
A84: 56459 | B84: Ailertchen | C84: -14 | G84: =IF(Berechnung!$G$269=1,AI84,AL84) -> WPF 20 | H84: 5 | I84: 4.66 | J84: 4.5 | K84: 0.18 | L84: 21.5 | M84: FALSE | N84: FALSE | O84: FALSE | P84: TRUE | Q84: FALSE | R84: UPF 40/1-8 E | S84: FALSE | T84: FALSE | U84: FALSE | V84: =IF(Berechnung!$G$269=1,AJ84,AM84) -> 233003 | W84: TRUE | X84: TRUE | Y84: Grundfos SQE 7-15 | Z84: 0.4 | AA84: FALSE | AB84: 27.9 | AC84: TRUE | AD84: FALSE | AE84: =IF(Berechnung!$G$269=1,AK84,AN84) -> PIC00000830-00.jpg | AF84: TRUE | AH84: 0 | AI84: WPF 20 | AJ84: 233003 | AK84: PIC00000830-00.jpg | AL84: TTF 20 | AM84: 190363 | AN84: PIC00003074-00.jpg
A85: 88048 | B85: Ailingen | C85: -12 | G85: =IF(Berechnung!$G$269=1,AI85,AL85) -> WPF 27 | H85: 5 | I85: 4.85 | J85: 6.1 | K85: 0.22 | L85: 29.7 | M85: FALSE | N85: FALSE | O85: FALSE | P85: TRUE | Q85: FALSE | R85: UPF 40/1-8 E | S85: FALSE | T85: FALSE | U85: FALSE | V85: =IF(Berechnung!$G$269=1,AJ85,AM85) -> 233004 | W85: TRUE | X85: TRUE | Y85: Grundfos SQE 7-30 | Z85: 0.86 | AA85: FALSE | AB85: 37.83 | AC85: TRUE | AD85: FALSE | AE85: =IF(Berechnung!$G$269=1,AK85,AN85) -> PIC00000830-00.jpg | AF85: TRUE | AH85: 0 | AI85: WPF 27 | AJ85: 233004 | AK85: PIC00000830-00.jpg | AL85: TTF 27 | AM85: 190364 | AN85: PIC00003074-00.jpg
A86: 86447 | B86: Aindling | C86: -16 | G86: =IF(Berechnung!$G$269=1,AI86,AL86) -> WPF 27 HT | H86: 5 | I86: 4.34 | J86: 6.1 | K86: 0.22 | L86: 27.41 | M86: FALSE | N86: FALSE | O86: FALSE | P86: TRUE | Q86: FALSE | R86: UPF 40/1-8 E | S86: FALSE | T86: FALSE | U86: FALSE | V86: =IF(Berechnung!$G$269=1,AJ86,AM86) -> 233009 | W86: TRUE | X86: TRUE | Y86: Grundfos SQE 7-30 | Z86: 0.86 | AA86: FALSE | AB86: 35.3 | AC86: TRUE | AD86: FALSE | AE86: =IF(Berechnung!$G$269=1,AK86,AN86) -> PIC00000830-00.jpg | AF86: TRUE | AH86: 0 | AI86: WPF 27 HT | AJ86: 233009 | AK86: PIC00000830-00.jpg | AL86: TTF 27 HT | AM86: 190369 | AN86: PIC00003074-00.jpg
A87: 83404 | B87: Ainring | C87: -16 | G87: =IF(Berechnung!$G$269=1,AI87,AL87) -> WPF 35 | H87: 5 | I87: 4.72 | J87: 7.98 | K87: 0.35 | L87: 37.7 | M87: FALSE | N87: FALSE | O87: FALSE | P87: TRUE | Q87: FALSE | R87: UPF 50/1-12 E | S87: FALSE | T87: FALSE | U87: FALSE | V87: =IF(Berechnung!$G$269=1,AJ87,AM87) -> 233005 | W87: TRUE | X87: FALSE | Y87: - | Z87: - | AA87: FALSE | AB87: 49.03 | AC87: TRUE | AD87: FALSE | AE87: =IF(Berechnung!$G$269=1,AK87,AN87) -> PIC00000830-00.jpg | AF87: TRUE | AH87: 0 | AI87: WPF 35 | AJ87: 233005 | AK87: PIC00000830-00.jpg | AL87: TTF 35 | AM87: 190365 | AN87: PIC00003074-00.jpg
A88: 83026 | B88: Aising | C88: -18 | G88: =IF(Berechnung!$G$269=1,AI88,AL88) -> WPF 40 | H88: 5 | I88: 4.67 | J88: 9.1 | K88: 0.45 | L88: 43.1 | M88: FALSE | N88: FALSE | O88: FALSE | P88: TRUE | Q88: FALSE | R88: UPF 50/1-12 E | S88: FALSE | T88: FALSE | U88: FALSE | V88: =IF(Berechnung!$G$269=1,AJ88,AM88) -> 233006 | W88: TRUE | X88: FALSE | Y88: - | Z88: - | AA88: FALSE | AB88: 55.3 | AC88: TRUE | AD88: FALSE | AE88: =IF(Berechnung!$G$269=1,AK88,AN88) -> PIC00000830-00.jpg | AF88: TRUE | AH88: 0 | AI88: WPF 40 | AJ88: 233006 | AK88: PIC00000830-00.jpg | AL88: TTF 40 | AM88: 190366 | AN88: PIC00003074-00.jpg
A89: 89344 | B89: Aislingen | C89: -16 | G89: =IF(Berechnung!$G$269=1,AI89,AL89) -> WPF 52 | H89: 5 | I89: 4.81 | J89: 11.6 | K89: 0.45 | L89: 52 | M89: FALSE | N89: FALSE | O89: FALSE | P89: TRUE | Q89: FALSE | R89: UPF 50/1-12 E | S89: FALSE | T89: FALSE | U89: FALSE | V89: =IF(Berechnung!$G$269=1,AJ89,AM89) -> 233007 | W89: TRUE | X89: FALSE | Y89: - | Z89: - | AA89: FALSE | AB89: 71.57 | AC89: TRUE | AD89: FALSE | AE89: =IF(Berechnung!$G$269=1,AK89,AN89) -> PIC00000830-00.jpg | AF89: TRUE | AH89: 0 | AI89: WPF 52 | AJ89: 233007 | AK89: PIC00000830-00.jpg | AL89: TTF 52 | AM89: 190367 | AN89: PIC00003074-00.jpg
A90: 94330 | B90: Aiterhofen | C90: -18 | G90: =IF(Berechnung!$G$269=1,AI90,AL90) -> WPF 66 | H90: 5 | I90: 4.56 | J90: 14.2 | K90: 0.48 | L90: 67.1 | M90: FALSE | N90: FALSE | O90: FALSE | P90: TRUE | Q90: FALSE | R90: UPF 50/1-12 E | S90: FALSE | T90: FALSE | U90: FALSE | V90: =IF(Berechnung!$G$269=1,AJ90,AM90) -> 233008 | W90: TRUE | X90: FALSE | Y90: - | Z90: - | AA90: FALSE | AB90: 86.7 | AC90: TRUE | AD90: FALSE | AE90: =IF(Berechnung!$G$269=1,AK90,AN90) -> PIC00000830-00.jpg | AF90: TRUE | AH90: 0 | AI90: WPF 66 | AJ90: 233008 | AK90: PIC00000830-00.jpg | AL90: TTF 66 | AM90: 190368 | AN90: PIC00003074-00.jpg
A91: 88319 | B91: Aitrach | C91: -16 | G91: =IF(Berechnung!$G$269=1,AI91,AL91) -> WPF 20 SET | H91: 5 | I91: 4.49 | J91: 4.44 | K91: 0.16 | L91: 20.04 | M91: 2 x WPF 10 M | N91: FALSE | O91: FALSE | P91: TRUE | Q91: FALSE | R91: 2 x UPF 30/1-8 E | S91: FALSE | T91: FALSE | U91: FALSE | V91: =IF(Berechnung!$G$269=1,AJ91,AM91) -> 185365 | W91: TRUE | X91: TRUE | Y91: Grundfos SQE 7-15 | Z91: 0.39 | AA91: FALSE | AB91: 25 | AC91: FALSE | AD91: FALSE | AE91: =IF(Berechnung!$G$269=1,AK91,AN91) -> PIC00002716-00.jpg | AF91: TRUE | AH91: 0 | AI91: WPF 20 SET | AJ91: 185365 | AK91: PIC00002716-00.jpg | AL91: TTF 20 SET | AM91: 190043 | AN91: PIC00003956-00.jpg
A92: 87648 | B92: Aitrang | C92: -16 | G92: =IF(Berechnung!$G$269=1,AI92,AL92) -> WPF 23 SET | H92: 5 | I92: 4.53 | J92: 5.04 | K92: 0.17 | L92: 23 | M92: WPF 13 M + WPF 10 M | N92: FALSE | O92: FALSE | P92: TRUE | Q92: FALSE | R92: 2 x UPF 30/1-8 E | S92: FALSE | T92: FALSE | U92: FALSE | V92: =IF(Berechnung!$G$269=1,AJ92,AM92) -> 185366 | W92: TRUE | X92: TRUE | Y92: Grundfos SQE 7-15 | Z92: 0.41 | AA92: FALSE | AB92: 29.6 | AC92: FALSE | AD92: FALSE | AE92: =IF(Berechnung!$G$269=1,AK92,AN92) -> PIC00002716-00.jpg | AF92: TRUE | AH92: 0 | AI92: WPF 23 SET | AJ92: 185366 | AK92: PIC00002716-00.jpg | AL92: TTF 23 SET | AM92: 190044 | AN92: PIC00003956-00.jpg
A93: 78554 | B93: Aixheim | C93: -18 | G93: =IF(Berechnung!$G$269=1,AI93,AL93) -> WPF 26 SET | H93: 5 | I93: 4.57 | J93: 5.64 | K93: 0.18 | L93: 25.96 | M93: 2 x WPF 13 M | N93: FALSE | O93: FALSE | P93: TRUE | Q93: FALSE | R93: 2 x UPF 30/1-8 E | S93: FALSE | T93: FALSE | U93: FALSE | V93: =IF(Berechnung!$G$269=1,AJ93,AM93) -> 182139 | W93: TRUE | X93: TRUE | Y93: Grundfos SQE 7-15 | Z93: 0.415 | AA93: FALSE | AB93: 34.2 | AC93: FALSE | AD93: FALSE | AE93: =IF(Berechnung!$G$269=1,AK93,AN93) -> PIC00002716-00.jpg | AF93: TRUE | AH93: 0 | AI93: WPF 26 SET | AJ93: 182139 | AK93: PIC00002716-00.jpg | AL93: TTF 26 SET | AM93: 190047 | AN93: PIC00003956-00.jpg
A94: 37671 | B94: Albaxen | C94: -12 | G94: =IF(Berechnung!$G$269=1,AI94,AL94) -> WPF 29 SET | H94: 5 | I94: 4.46 | J94: 6.32 | K94: 0.19 | L94: 29.97 | M94: WPF 16 M + WPF 13 M | N94: FALSE | O94: FALSE | P94: TRUE | Q94: FALSE | R94: 2 x UPF 30/1-8 E | S94: FALSE | T94: FALSE | U94: FALSE | V94: =IF(Berechnung!$G$269=1,AJ94,AM94) -> 220896 | W94: TRUE | X94: TRUE | Y94: Grundfos SQE 7-30 | Z94: 0.86 | AA94: FALSE | AB94: 38.8 | AC94: FALSE | AD94: FALSE | AE94: =IF(Berechnung!$G$269=1,AK94,AN94) -> PIC00002716-00.jpg | AF94: TRUE | AH94: 0 | AI94: WPF 29 SET | AJ94: 220896 | AK94: PIC00002716-00.jpg | AL94: TTF 29 SET | AM94: 190104 | AN94: PIC00003956-00.jpg
A95: 79774 | B95: Albbruck | C95: -12 | G95: =IF(Berechnung!$G$269=1,AI95,AL95) -> WPF 32 SET | H95: 5 | I95: 4.35 | J95: 7 | K95: 0.2 | L95: 33.98 | M95: 2 x WPF 16 M | N95: FALSE | O95: FALSE | P95: TRUE | Q95: FALSE | R95: 2 x UPF 30/1-8 E | S95: FALSE | T95: FALSE | U95: FALSE | V95: =IF(Berechnung!$G$269=1,AJ95,AM95) -> 220897 | W95: TRUE | X95: TRUE | Y95: Grundfos SQE 7-30 | Z95: 0.86 | AA95: FALSE | AB95: 43.4 | AC95: FALSE | AD95: FALSE | AE95: =IF(Berechnung!$G$269=1,AK95,AN95) -> PIC00002716-00.jpg | AF95: TRUE | AH95: 0 | AI95: WPF 32 SET | AJ95: 220897 | AK95: PIC00002716-00.jpg | AL95: TTF 32 SET | AM95: 190105 | AN95: PIC00003956-00.jpg
A96: 8280 | B96: Albernau | C96: -16
A97: 92442 | B97: Alberndorf | C97: -16
A98: 8280 | B98: Alberoda | C98: -16
A99: 4420 | B99: Albersdorf | C99: -14
A100: 25767 | B100: Albersdorf, Holst | C100: -12
A101: 73095 | B101: Albershausen | C101: -16
A102: 48324 | B102: Albersloh | C102: -12 | G102: Wasser-Wasser-Wärmepumpen
A103: 76857 | B103: Albersweiler | C103: -12 | G103: WP-Typ | H103: DT | I103: Leistungszahl | J103: Leistungsaufnahme | K103: Leistungsaufnahme | L103: Heizleistung | M103: WP-Set ? | N103: WWB | O103: EC-Pumpe Heizung | P103: WMZ | Q103: EC-Pumpe Sole | R103: Bezeichnung | S103: LWM 250 | T103: Inverter ? | U103: Sonderbauform | V103: Artikel.nr. | W103: In | X103: EC-Pumpe Brunnen | Y103: EC-Pumpe Brunnen | Z103: Leistungsaufnahme | AA103: WPW ohne | AB103: Heizleistung | AC103: Kaskadierbar ? | AD103: EC-Pumpe | AE103: Produktbild | AF103: SG-ready ? | AH103: Speichergröße | AI103: Name | AJ103: Datenblatt | AK103: Produktbild | AL103: Name | AM103: Datenblatt | AN103: Produktbild
A104: 88433 | B104: Alberweiler | C104: -16 | H104: Prüfstand | I104: B0/W35 | J104: B0/W35 [KW] | K104: Solepumpe (EC) | L104: B0/W35 | N104: integriert | O104: eingebaut ? | P104: integriert ? | Q104: eingebaut ? | R104: Solepumpe (EC) | S104: einsetzbar ? | U104: Bafa-Liste ? | W104: Bafa-Liste ? | X104: einsetzbar ? | Y104: Typ Grundfos | Z104: Brunnenpumpe | AA104: Zwischen-WT ? | AB104: B10/W35 | AD104: Heizung | AH104: Warmwasser | AI104: Stiebel | AJ104: Stiebel | AK104: Stiebel | AL104: tecalor | AM104: tecalor | AN104: tecalor
A105: 72458 | B105: Albstadt | C105: -18 | G105: =IF(Berechnung!$G$269=1,AI105,AL105) -> WPW 06 Set | H105: 5 | I105: 4.52 | J105: 1.056 | K105: 0.04 | L105: 4.77 | M105: WPF 04 | N105: FALSE | O105: TRUE | P105: TRUE | Q105: TRUE | R105: Yonos PARA RS 25/7.5 | S105: TRUE | T105: FALSE | U105: FALSE | V105: =IF(Berechnung!$G$269=1,AJ105,AM105) -> 232948 | W105: TRUE | X105: TRUE | Y105: Grundfos SQE 5-15 | Z105: 0.21 | AA105: FALSE | AB105: 6.22 | AC105: FALSE | AD105: Yonos PARA 25/7.0 | AE105: =IF(Berechnung!$G$269=1,AK105,AN105) -> PIC00003715-00.jpg | AF105: TRUE | AH105: 0 | AI105: WPW 06 Set | AJ105: 232948 | AK105: PIC00003715-00.jpg | AL105: TTW 06 Set | AM105: 190357 | AN105: PIC00003715-00.jpg
A106: 72461 | B106: Albstadt | C106: -18 | G106: =IF(Berechnung!$G$269=1,AI106,AL106) -> WPW 07 Set | H106: 5 | I106: 4.79 | J106: 1.214 | K106: 0.055 | L106: 5.82 | M106: WPF 05 | N106: FALSE | O106: TRUE | P106: TRUE | Q106: TRUE | R106: Yonos PARA RS 25/7.5 | S106: TRUE | T106: FALSE | U106: FALSE | V106: =IF(Berechnung!$G$269=1,AJ106,AM106) -> 232949 | W106: TRUE | X106: TRUE | Y106: Grundfos SQE 5-15 | Z106: 0.22 | AA106: FALSE | AB106: 7.26 | AC106: FALSE | AD106: Yonos PARA 25/7.0 | AE106: =IF(Berechnung!$G$269=1,AK106,AN106) -> PIC00003715-00.jpg | AF106: TRUE | AH106: 0 | AI106: WPW 07 Set | AJ106: 232949 | AK106: PIC00003715-00.jpg | AL106: TTW 07 Set | AM106: 190358 | AN106: PIC00003715-00.jpg
A107: 57258 | B107: Alchen | C107: -12 | G107: =IF(Berechnung!$G$269=1,AI107,AL107) -> WPW 10 Set | H107: 5 | I107: 4.85 | J107: 1.545 | K107: 0.07 | L107: 7.5 | M107: WPF 07 | N107: FALSE | O107: TRUE | P107: TRUE | Q107: TRUE | R107: Stratos PARA 25/1-8 | S107: TRUE | T107: FALSE | U107: FALSE | V107: =IF(Berechnung!$G$269=1,AJ107,AM107) -> 232950 | W107: TRUE | X107: TRUE | Y107: Grundfos SQE 5-15 | Z107: 0.23 | AA107: FALSE | AB107: 9.67 | AC107: FALSE | AD107: Yonos PARA 25/7.0 | AE107: =IF(Berechnung!$G$269=1,AK107,AN107) -> PIC00003715-00.jpg | AF107: TRUE | AH107: 0 | AI107: WPW 10 Set | AJ107: 232950 | AK107: PIC00003715-00.jpg | AL107: TTW 10 Set | AM107: 190359 | AN107: PIC00003715-00.jpg
A108: 52457 | B108: Aldenhoven | C108: -12 | G108: =IF(Berechnung!$G$269=1,AI108,AL108) -> WPW 13 Set | H108: 5 | I108: 5.02 | J108: 2.055 | K108: 0.075 | L108: 10.31 | M108: WPF 10 | N108: FALSE | O108: TRUE | P108: TRUE | Q108: TRUE | R108: Stratos PARA 25/1-8 | S108: TRUE | T108: FALSE | U108: FALSE | V108: =IF(Berechnung!$G$269=1,AJ108,AM108) -> 232951 | W108: TRUE | X108: TRUE | Y108: Grundfos SQE 5-15 | Z108: 0.24 | AA108: FALSE | AB108: 13.12 | AC108: FALSE | AD108: Yonos PARA 25/7.5 | AE108: =IF(Berechnung!$G$269=1,AK108,AN108) -> PIC00003715-00.jpg | AF108: TRUE | AH108: 0 | AI108: WPW 13 Set | AJ108: 232951 | AK108: PIC00003715-00.jpg | AL108: TTW 13 Set | AM108: 190360 | AN108: PIC00003715-00.jpg
A109: 94501 | B109: Aldersbach | C109: -16 | G109: =IF(Berechnung!$G$269=1,AI109,AL109) -> WPW 18 Set | H109: 5 | I109: 4.83 | J109: 2.736 | K109: 0.095 | L109: 13.21 | M109: WPF 13 | N109: FALSE | O109: TRUE | P109: TRUE | Q109: TRUE | R109: Stratos PARA 25/1-8 | S109: TRUE | T109: FALSE | U109: FALSE | V109: =IF(Berechnung!$G$269=1,AJ109,AM109) -> 232952 | W109: TRUE | X109: TRUE | Y109: Grundfos SQE 5-15 | Z109: 0.255 | AA109: FALSE | AB109: 16.9 | AC109: FALSE | AD109: Yonos PARA 25/7.5 | AE109: =IF(Berechnung!$G$269=1,AK109,AN109) -> PIC00003715-00.jpg | AF109: TRUE | AH109: 0 | AI109: WPW 18 Set | AJ109: 232952 | AK109: PIC00003715-00.jpg | AL109: TTW 18 Set | AM109: 190361 | AN109: PIC00003715-00.jpg
A110: 78554 | B110: Aldingen | C110: -18 | G110: =IF(Berechnung!$G$269=1,AI110,AL110) -> WPW 22 Set | H110: 5 | I110: 4.54 | J110: 3.748 | K110: 0.14 | L110: 17.02 | M110: WPF 16 | N110: FALSE | O110: TRUE | P110: TRUE | Q110: TRUE | R110: Stratos PARA 25/1-12 | S110: TRUE | T110: FALSE | U110: FALSE | V110: =IF(Berechnung!$G$269=1,AJ110,AM110) -> 232953 | W110: TRUE | X110: TRUE | Y110: Grundfos SQE 5-15 | Z110: 0.26 | AA110: FALSE | AB110: 21.68 | AC110: FALSE | AD110: Stratos Para 25/1-8 | AE110: =IF(Berechnung!$G$269=1,AK110,AN110) -> PIC00003715-00.jpg | AF110: TRUE | AH110: 0 | AI110: WPW 22 Set | AJ110: 232953 | AK110: PIC00003715-00.jpg | AL110: TTW 22 Set | AM110: 190362 | AN110: PIC00003715-00.jpg
A111: 86733 | B111: Alerheim | C111: -16 | G111: =IF(Berechnung!$G$269=1,AI111,AL111) -> WPW 10 Trend | H111: 5 | I111: 5.8 | J111: 1.8 | K111: - | L111: 10.4 | M111: FALSE | N111: FALSE | O111: TRUE | P111: TRUE | Q111: FALSE | R111: - | S111: FALSE | T111: FALSE | U111: FALSE | V111: =IF(Berechnung!$G$269=1,AJ111,AM111) -> 235953 | W111: TRUE | X111: TRUE | Y111: Grundfos SQE 5-15 | Z111: 0.24 | AA111: TRUE | AB111: 10.4 | AC111: FALSE | AD111: Stratos Para 25/1-8 | AE111: =IF(Berechnung!$G$269=1,AK111,AN111) -> PIC00006519-00.jpg | AF111: TRUE | AH111: 0 | AI111: WPW 10 Trend | AJ111: 235953 | AK111: PIC00006519-00.jpg | AL111: WPW 10 Trend | AN111: PIC00006519-00.jpg
A112: 91793 | B112: Alesheim | C112: -16 | G112: =IF(Berechnung!$G$269=1,AI112,AL112) -> WPW 12 Trend | H112: 5 | I112: 5.75 | J112: 2.1 | K112: - | L112: 12.3 | M112: FALSE | N112: FALSE | O112: TRUE | P112: TRUE | Q112: FALSE | R112: - | S112: FALSE | T112: FALSE | U112: FALSE | V112: =IF(Berechnung!$G$269=1,AJ112,AM112) -> 235954 | W112: TRUE | X112: TRUE | Y112: Grundfos SQE 5-15 | Z112: 0.25 | AA112: TRUE | AB112: 12.3 | AC112: FALSE | AD112: Stratos Para 25/1-8 | AE112: =IF(Berechnung!$G$269=1,AK112,AN112) -> PIC00006519-00.jpg | AF112: TRUE | AH112: 0 | AI112: WPW 12 Trend | AJ112: 235954 | AK112: PIC00006519-00.jpg | AL112: WPW 12 Trend | AN112: PIC00006519-00.jpg
A113: 73553 | B113: Alfdorf | C113: -16 | G113: =IF(Berechnung!$G$269=1,AI113,AL113) -> WPW 17 Trend | H113: 5 | I113: 5.9 | J113: 2.8 | K113: - | L113: 16.6 | M113: FALSE | N113: FALSE | O113: TRUE | P113: TRUE | Q113: FALSE | R113: - | S113: FALSE | T113: FALSE | U113: FALSE | V113: =IF(Berechnung!$G$269=1,AJ113,AM113) -> 235955 | W113: TRUE | X113: TRUE | Y113: Grundfos SQE 5-15 | Z113: 0.26 | AA113: TRUE | AB113: 16.6 | AC113: FALSE | AD113: Stratos Para 25/1-8 | AE113: =IF(Berechnung!$G$269=1,AK113,AN113) -> PIC00006519-00.jpg | AF113: TRUE | AH113: 0 | AI113: WPW 17 Trend | AJ113: 235955 | AK113: PIC00006519-00.jpg | AL113: WPW 17 Trend | AN113: PIC00006519-00.jpg
A114: 31061 | B114: Alfeld | C114: -16 | G114: =IF(Berechnung!$G$269=1,AI114,AL114) -> WPW 22 Trend | H114: 5 | I114: 5.9 | J114: 3.7 | K114: - | L114: 22.1 | M114: FALSE | N114: FALSE | O114: TRUE | P114: TRUE | Q114: FALSE | R114: - | S114: FALSE | T114: FALSE | U114: FALSE | V114: =IF(Berechnung!$G$269=1,AJ114,AM114) -> 235956 | W114: TRUE | X114: TRUE | Y114: Grundfos SQE 5-15 | Z114: 0.27 | AA114: TRUE | AB114: 22.1 | AC114: FALSE | AD114: Stratos Para 25/1-8 | AE114: =IF(Berechnung!$G$269=1,AK114,AN114) -> PIC00006519-00.jpg | AF114: TRUE | AH114: 0 | AI114: WPW 22 Trend | AJ114: 235956 | AK114: PIC00006519-00.jpg | AL114: WPW 22 Trend | AN114: PIC00006519-00.jpg
A115: 91236 | B115: Alfeld | C115: -16 | G115: =IF(Berechnung!$G$269=1,AI115,AL115) -> WPW 7 basic Set | H115: 5 | I115: 4.33 | J115: 1.36 | K115: 0.055 | L115: 5.88 | M115: WPF 5 basic | N115: FALSE | O115: TRUE | P115: TRUE | Q115: FALSE | R115: Stratos 30/1-8 | S115: TRUE | T115: FALSE | U115: FALSE | V115: =IF(Berechnung!$G$269=1,AJ115,AM115) -> 230915 | W115: TRUE | X115: TRUE | Y115: Grundfos SQE 5-15 | Z115: 0.22 | AA115: FALSE | AB115: 7.2 | AC115: FALSE | AD115: Stratos Para 25/1-7 | AE115: =IF(Berechnung!$G$269=1,AK115,AN115) -> PIC00002722-00.jpg | AF115: TRUE | AH115: 0 | AI115: WPW 7 basic Set | AJ115: 230915 | AK115: PIC00002722-00.jpg | AL115: WPW 7 basic Set | AN115: PIC00002722-00.jpg
A116: 91177 | B116: Alfershausen | C116: -16 | G116: =IF(Berechnung!$G$269=1,AI116,AL116) -> WPW 10 basic Set | H116: 5 | I116: 4.5 | J116: 1.7 | K116: 0.07 | L116: 7.64 | M116: WPF 7 basic | N116: FALSE | O116: TRUE | P116: TRUE | Q116: FALSE | R116: Stratos 30/1-8 | S116: TRUE | T116: FALSE | U116: FALSE | V116: =IF(Berechnung!$G$269=1,AJ116,AM116) -> 230916 | W116: TRUE | X116: TRUE | Y116: Grundfos SQE 5-15 | Z116: 0.23 | AA116: FALSE | AB116: 10 | AC116: FALSE | AD116: Stratos Para 25/1-7 | AE116: =IF(Berechnung!$G$269=1,AK116,AN116) -> PIC00002722-00.jpg | AF116: TRUE | AH116: 0 | AI116: WPW 10 basic Set | AJ116: 230916 | AK116: PIC00002722-00.jpg | AL116: WPW 10 basic Set | AN116: PIC00002722-00.jpg
A117: 49594 | B117: Alfhausen | C117: -12 | G117: =IF(Berechnung!$G$269=1,AI117,AL117) -> WPW 13 basic Set | H117: 5 | I117: 4.37 | J117: 2.22 | K117: 0.075 | L117: 9.7 | M117: WPF 10 basic | N117: FALSE | O117: TRUE | P117: TRUE | Q117: FALSE | R117: Stratos 30/1-8 | S117: TRUE | T117: FALSE | U117: FALSE | V117: =IF(Berechnung!$G$269=1,AJ117,AM117) -> 230917 | W117: TRUE | X117: TRUE | Y117: Grundfos SQE 5-15 | Z117: 0.24 | AA117: FALSE | AB117: 12.5 | AC117: FALSE | AD117: Stratos Para 25/1-7 | AE117: =IF(Berechnung!$G$269=1,AK117,AN117) -> PIC00002722-00.jpg | AF117: TRUE | AH117: 0 | AI117: WPW 13 basic Set | AJ117: 230917 | AK117: PIC00002722-00.jpg | AL117: WPW 13 basic Set | AN117: PIC00002722-00.jpg
A118: 53347 | B118: Alfter | C118: -12 | G118: =IF(Berechnung!$G$269=1,AI118,AL118) -> WPW 18 basic Set | H118: 5 | I118: 4.42 | J118: 2.85 | K118: 0.095 | L118: 12.59 | M118: WPF 13 basic | N118: FALSE | O118: TRUE | P118: TRUE | Q118: FALSE | R118: Stratos 30/1-8 | S118: TRUE | T118: FALSE | U118: FALSE | V118: =IF(Berechnung!$G$269=1,AJ118,AM118) -> 230918 | W118: TRUE | X118: TRUE | Y118: Grundfos SQE 5-15 | Z118: 0.255 | AA118: FALSE | AB118: 17.1 | AC118: FALSE | AD118: Stratos Para 25/1-7 | AE118: =IF(Berechnung!$G$269=1,AK118,AN118) -> PIC00002722-00.jpg | AF118: TRUE | AH118: 0 | AI118: WPW 18 basic Set | AJ118: 230918 | AK118: PIC00002722-00.jpg | AL118: WPW 18 basic Set | AN118: PIC00002722-00.jpg
A119: 99310 | B119: Alkersleben | C119: -14 | G119: =IF(Berechnung!$G$269=1,AI119,AL119) -> WPC 04 | H119: 5 | I119: 4.52 | J119: 1.056 | K119: 0.04 | L119: 4.77 | M119: FALSE | N119: TRUE | O119: TRUE | P119: TRUE | Q119: TRUE | R119: Yonos PARA RS 25/7.5 | S119: TRUE | T119: FALSE | U119: FALSE | V119: =IF(Berechnung!$G$269=1,AJ119,AM119) -> 232926 | W119: TRUE | X119: TRUE | Y119: Grundfos SQE 5-15 | Z119: 0.21 | AA119: FALSE | AB119: 6.22 | AC119: FALSE | AD119: Yonos PARA 25/7.0 | AE119: =IF(Berechnung!$G$269=1,AK119,AN119) -> PIC00003663-00.jpg | AF119: TRUE | AH119: 175 | AI119: WPC 04 | AJ119: 232926 | AK119: PIC00003663-00.jpg | AL119: TTC 04 | AM119: 190345 | AN119: PIC00003777-00.jpg
A120: 59846 | B120: Allendorf | C120: -14 | G120: =IF(Berechnung!$G$269=1,AI120,AL120) -> WPC 05 | H120: 5 | I120: 4.79 | J120: 1.214 | K120: 0.055 | L120: 5.82 | M120: FALSE | N120: TRUE | O120: TRUE | P120: TRUE | Q120: TRUE | R120: Yonos PARA RS 25/7.5 | S120: TRUE | T120: FALSE | U120: FALSE | V120: =IF(Berechnung!$G$269=1,AJ120,AM120) -> 232927 | W120: TRUE | X120: TRUE | Y120: Grundfos SQE 5-15 | Z120: 0.22 | AA120: FALSE | AB120: 7.26 | AC120: FALSE | AD120: Yonos PARA 25/7.0 | AE120: =IF(Berechnung!$G$269=1,AK120,AN120) -> PIC00003663-00.jpg | AF120: TRUE | AH120: 175 | AI120: WPC 05 | AJ120: 232927 | AK120: PIC00003663-00.jpg | AL120: TTC 05 | AM120: 190346 | AN120: PIC00003777-00.jpg
A121: 35108 | B121: Allendorf/Eder | C121: -14 | G121: =IF(Berechnung!$G$269=1,AI121,AL121) -> WPC 07 | H121: 5 | I121: 4.85 | J121: 1.545 | K121: 0.07 | L121: 7.5 | M121: FALSE | N121: TRUE | O121: TRUE | P121: TRUE | Q121: TRUE | R121: Stratos PARA 25/1-8 | S121: TRUE | T121: FALSE | U121: FALSE | V121: =IF(Berechnung!$G$269=1,AJ121,AM121) -> 232928 | W121: TRUE | X121: TRUE | Y121: Grundfos SQE 5-15 | Z121: 0.23 | AA121: FALSE | AB121: 9.67 | AC121: FALSE | AD121: Yonos PARA 25/7.0 | AE121: =IF(Berechnung!$G$269=1,AK121,AN121) -> PIC00003663-00.jpg | AF121: TRUE | AH121: 175 | AI121: WPC 07 | AJ121: 232928 | AK121: PIC00003663-00.jpg | AL121: TTC 07 | AM121: 190347 | AN121: PIC00003777-00.jpg
A122: 90584 | B122: Allersberg | C122: -16 | G122: =IF(Berechnung!$G$269=1,AI122,AL122) -> WPC 10 | H122: 5 | I122: 5.02 | J122: 2.055 | K122: 0.075 | L122: 10.31 | M122: FALSE | N122: TRUE | O122: TRUE | P122: TRUE | Q122: TRUE | R122: Stratos PARA 25/1-8 | S122: TRUE | T122: FALSE | U122: FALSE | V122: =IF(Berechnung!$G$269=1,AJ122,AM122) -> 232929 | W122: TRUE | X122: TRUE | Y122: Grundfos SQE 5-15 | Z122: 0.24 | AA122: FALSE | AB122: 13.12 | AC122: FALSE | AD122: Yonos PARA 25/7.5 | AE122: =IF(Berechnung!$G$269=1,AK122,AN122) -> PIC00003663-00.jpg | AF122: TRUE | AH122: 162 | AI122: WPC 10 | AJ122: 232929 | AK122: PIC00003663-00.jpg | AL122: TTC 10 | AM122: 190348 | AN122: PIC00003777-00.jpg
A123: 88422 | B123: Alleshausen | C123: -16 | G123: =IF(Berechnung!$G$269=1,AI123,AL123) -> WPC 13 | H123: 5 | I123: 4.83 | J123: 2.736 | K123: 0.095 | L123: 13.21 | M123: FALSE | N123: TRUE | O123: TRUE | P123: TRUE | Q123: TRUE | R123: Stratos PARA 25/1-8 | S123: TRUE | T123: FALSE | U123: FALSE | V123: =IF(Berechnung!$G$269=1,AJ123,AM123) -> 232930 | W123: TRUE | X123: TRUE | Y123: Grundfos SQE 5-15 | Z123: 0.255 | AA123: FALSE | AB123: 16.9 | AC123: FALSE | AD123: Yonos PARA 25/7.5 | AE123: =IF(Berechnung!$G$269=1,AK123,AN123) -> PIC00003663-00.jpg | AF123: TRUE | AH123: 162 | AI123: WPC 13 | AJ123: 232930 | AK123: PIC00003663-00.jpg | AL123: TTC 13 | AM123: 190349 | AN123: PIC00003777-00.jpg
A124: 82239 | B124: Alling | C124: -16 | G124: =IF(Berechnung!$G$269=1,AI124,AL124) -> WPC 04 cool | H124: 5 | I124: 4.52 | J124: 1.056 | K124: 0.04 | L124: 4.77 | M124: FALSE | N124: TRUE | O124: TRUE | P124: TRUE | Q124: TRUE | R124: Yonos PARA RS 25/7.5 | S124: TRUE | T124: FALSE | U124: FALSE | V124: =IF(Berechnung!$G$269=1,AJ124,AM124) -> 232931 | W124: TRUE | X124: TRUE | Y124: Grundfos SQE 5-15 | Z124: 0.21 | AA124: FALSE | AB124: 6.22 | AC124: FALSE | AD124: Yonos PARA 25/7.0 | AE124: =IF(Berechnung!$G$269=1,AK124,AN124) -> PIC00003663-00.jpg | AF124: TRUE | AH124: 175 | AI124: WPC 04 cool | AJ124: 232931 | AK124: PIC00003663-00.jpg | AL124: TTC 04 cool | AM124: 190350 | AN124: PIC00003777-00.jpg
A125: 78464 | B125: Allmannsdorf | C125: -12 | G125: =IF(Berechnung!$G$269=1,AI125,AL125) -> WPC 05 cool | H125: 5 | I125: 4.79 | J125: 1.214 | K125: 0.055 | L125: 5.82 | M125: FALSE | N125: TRUE | O125: TRUE | P125: TRUE | Q125: TRUE | R125: Yonos PARA RS 25/7.5 | S125: TRUE | T125: FALSE | U125: FALSE | V125: =IF(Berechnung!$G$269=1,AJ125,AM125) -> 232932 | W125: TRUE | X125: TRUE | Y125: Grundfos SQE 5-15 | Z125: 0.22 | AA125: FALSE | AB125: 7.26 | AC125: FALSE | AD125: Yonos PARA 25/7.0 | AE125: =IF(Berechnung!$G$269=1,AK125,AN125) -> PIC00003663-00.jpg | AF125: TRUE | AH125: 175 | AI125: WPC 05 cool | AJ125: 232932 | AK125: PIC00003663-00.jpg | AL125: TTC 05 cool | AM125: 190351 | AN125: PIC00003777-00.jpg
A126: 77963 | B126: Allmannsweier | C126: -12 | G126: =IF(Berechnung!$G$269=1,AI126,AL126) -> WPC 07 cool | H126: 5 | I126: 4.85 | J126: 1.545 | K126: 0.07 | L126: 7.5 | M126: FALSE | N126: TRUE | O126: TRUE | P126: TRUE | Q126: TRUE | R126: Stratos PARA 25/1-8 | S126: TRUE | T126: FALSE | U126: FALSE | V126: =IF(Berechnung!$G$269=1,AJ126,AM126) -> 232933 | W126: TRUE | X126: TRUE | Y126: Grundfos SQE 5-15 | Z126: 0.23 | AA126: FALSE | AB126: 9.67 | AC126: FALSE | AD126: Yonos PARA 25/7.0 | AE126: =IF(Berechnung!$G$269=1,AK126,AN126) -> PIC00003663-00.jpg | AF126: TRUE | AH126: 175 | AI126: WPC 07 cool | AJ126: 232933 | AK126: PIC00003663-00.jpg | AL126: TTC 07 cool | AM126: 190352 | AN126: PIC00003777-00.jpg
A127: 89604 | B127: Allmendingen | C127: -14 | G127: =IF(Berechnung!$G$269=1,AI127,AL127) -> WPC 10 cool | H127: 5 | I127: 5.02 | J127: 2.055 | K127: 0.075 | L127: 10.31 | M127: FALSE | N127: TRUE | O127: TRUE | P127: TRUE | Q127: TRUE | R127: Stratos PARA 25/1-8 | S127: TRUE | T127: FALSE | U127: FALSE | V127: =IF(Berechnung!$G$269=1,AJ127,AM127) -> 232934 | W127: TRUE | X127: TRUE | Y127: Grundfos SQE 5-15 | Z127: 0.24 | AA127: FALSE | AB127: 13.12 | AC127: FALSE | AD127: Yonos PARA 25/7.5 | AE127: =IF(Berechnung!$G$269=1,AK127,AN127) -> PIC00003663-00.jpg | AF127: TRUE | AH127: 162 | AI127: WPC 10 cool | AJ127: 232934 | AK127: PIC00003663-00.jpg | AL127: TTC 10 cool | AM127: 190353 | AN127: PIC00003777-00.jpg
A128: 71573 | B128: Allmersbach im Tal | C128: -14 | G128: =IF(Berechnung!$G$269=1,AI128,AL128) -> WPC 13 cool | H128: 5 | I128: 4.83 | J128: 2.736 | K128: 0.095 | L128: 13.21 | M128: FALSE | N128: TRUE | O128: TRUE | P128: TRUE | Q128: TRUE | R128: Stratos PARA 25/1-8 | S128: TRUE | T128: FALSE | U128: FALSE | V128: =IF(Berechnung!$G$269=1,AJ128,AM128) -> 232935 | W128: TRUE | X128: TRUE | Y128: Grundfos SQE 5-15 | Z128: 0.255 | AA128: FALSE | AB128: 16.9 | AC128: FALSE | AD128: Yonos PARA 25/7.5 | AE128: =IF(Berechnung!$G$269=1,AK128,AN128) -> PIC00003663-00.jpg | AF128: TRUE | AH128: 162 | AI128: WPC 13 cool | AJ128: 232935 | AK128: PIC00003663-00.jpg | AL128: TTC 13 cool | AM128: 190354 | AN128: PIC00003777-00.jpg
A129: 6507 | B129: Allrode / Harz | C129: -16 | G129: =IF(Berechnung!$G$269=1,AI129,AL129) -> WPF 04 cool | H129: 5 | I129: 4.52 | J129: 1.056 | K129: 0.04 | L129: 4.77 | M129: FALSE | N129: FALSE | O129: TRUE | P129: TRUE | Q129: TRUE | R129: Yonos PARA RS 25/7.5 | S129: TRUE | T129: FALSE | U129: FALSE | V129: =IF(Berechnung!$G$269=1,AJ129,AM129) -> 232915 | W129: TRUE | X129: TRUE | Y129: Grundfos SQE 5-15 | Z129: 0.21 | AA129: FALSE | AB129: 6.22 | AC129: FALSE | AD129: Yonos PARA 25/7.0 | AE129: =IF(Berechnung!$G$269=1,AK129,AN129) -> PIC00003403-00.jpg | AF129: TRUE | AH129: 0 | AI129: WPF 04 cool | AJ129: 232915 | AK129: PIC00003403-00.jpg | AL129: TTF 04 cool | AM129: 190339 | AN129: PIC00003730-00.jpg
A130: 6542 | B130: Allstedt | C130: -14 | G130: =IF(Berechnung!$G$269=1,AI130,AL130) -> WPF 05 cool | H130: 5 | I130: 4.79 | J130: 1.214 | K130: 0.055 | L130: 5.82 | M130: FALSE | N130: FALSE | O130: TRUE | P130: TRUE | Q130: TRUE | R130: Yonos PARA RS 25/7.5 | S130: TRUE | T130: FALSE | U130: FALSE | V130: =IF(Berechnung!$G$269=1,AJ130,AM130) -> 232916 | W130: TRUE | X130: TRUE | Y130: Grundfos SQE 5-15 | Z130: 0.22 | AA130: FALSE | AB130: 7.26 | AC130: FALSE | AD130: Yonos PARA 25/7.0 | AE130: =IF(Berechnung!$G$269=1,AK130,AN130) -> PIC00003403-00.jpg | AF130: TRUE | AH130: 0 | AI130: WPF 05 cool | AJ130: 232916 | AK130: PIC00003403-00.jpg | AL130: TTF 05 cool | AM130: 190340 | AN130: PIC00003730-00.jpg
A131: 31079 | B131: Almstedt | C131: -16 | G131: =IF(Berechnung!$G$269=1,AI131,AL131) -> WPF 07 cool | H131: 5 | I131: 4.85 | J131: 1.545 | K131: 0.07 | L131: 7.5 | M131: FALSE | N131: FALSE | O131: TRUE | P131: TRUE | Q131: TRUE | R131: Stratos PARA 25/1-8 | S131: TRUE | T131: FALSE | U131: FALSE | V131: =IF(Berechnung!$G$269=1,AJ131,AM131) -> 232917 | W131: TRUE | X131: TRUE | Y131: Grundfos SQE 5-15 | Z131: 0.23 | AA131: FALSE | AB131: 9.67 | AC131: FALSE | AD131: Yonos PARA 25/7.0 | AE131: =IF(Berechnung!$G$269=1,AK131,AN131) -> PIC00003403-00.jpg | AF131: TRUE | AH131: 0 | AI131: WPF 07 cool | AJ131: 232917 | AK131: PIC00003403-00.jpg | AL131: TTF 07 cool | AM131: 190341 | AN131: PIC00003730-00.jpg
A132: 46519 | B132: Alpen | C132: -10 | G132: =IF(Berechnung!$G$269=1,AI132,AL132) -> WPF 10 cool | H132: 5 | I132: 5.02 | J132: 2.055 | K132: 0.075 | L132: 10.31 | M132: FALSE | N132: FALSE | O132: TRUE | P132: TRUE | Q132: TRUE | R132: Stratos PARA 25/1-8 | S132: TRUE | T132: FALSE | U132: FALSE | V132: =IF(Berechnung!$G$269=1,AJ132,AM132) -> 232918 | W132: TRUE | X132: TRUE | Y132: Grundfos SQE 5-15 | Z132: 0.24 | AA132: FALSE | AB132: 13.12 | AC132: FALSE | AD132: Yonos PARA 25/7.5 | AE132: =IF(Berechnung!$G$269=1,AK132,AN132) -> PIC00003403-00.jpg | AF132: TRUE | AH132: 0 | AI132: WPF 10 cool | AJ132: 232918 | AK132: PIC00003403-00.jpg | AL132: TTF 10 cool | AM132: 190342 | AN132: PIC00003730-00.jpg
A133: 46519 | B133: Alpen-Bönninghardt | C133: -10 | G133: =IF(Berechnung!$G$269=1,AI133,AL133) -> WPF 13 cool | H133: 5 | I133: 4.83 | J133: 2.736 | K133: 0.095 | L133: 13.21 | M133: FALSE | N133: FALSE | O133: TRUE | P133: TRUE | Q133: TRUE | R133: Stratos PARA 25/1-8 | S133: TRUE | T133: FALSE | U133: FALSE | V133: =IF(Berechnung!$G$269=1,AJ133,AM133) -> 232919 | W133: TRUE | X133: TRUE | Y133: Grundfos SQE 5-15 | Z133: 0.255 | AA133: FALSE | AB133: 16.9 | AC133: FALSE | AD133: Yonos PARA 25/7.5 | AE133: =IF(Berechnung!$G$269=1,AK133,AN133) -> PIC00003403-00.jpg | AF133: TRUE | AH133: 0 | AI133: WPF 13 cool | AJ133: 232919 | AK133: PIC00003403-00.jpg | AL133: TTF 13 cool | AM133: 190343 | AN133: PIC00003730-00.jpg
A134: 99195 | B134: Alperstedt | C134: -14 | G134: =IF(Berechnung!$G$269=1,AI134,AL134) -> WPF 16 cool | H134: 5 | I134: 4.54 | J134: 3.748 | K134: 0.14 | L134: 17.02 | M134: FALSE | N134: FALSE | O134: TRUE | P134: TRUE | Q134: TRUE | R134: Stratos PARA 25/1-12 | S134: TRUE | T134: FALSE | U134: FALSE | V134: =IF(Berechnung!$G$269=1,AJ134,AM134) -> 232920 | W134: TRUE | X134: TRUE | Y134: Grundfos SQE 5-15 | Z134: 0.26 | AA134: FALSE | AB134: 21.68 | AC134: FALSE | AD134: Stratos PARA 25/1-8 | AE134: =IF(Berechnung!$G$269=1,AK134,AN134) -> PIC00003403-00.jpg | AF134: TRUE | AH134: 0 | AI134: WPF 16 cool | AJ134: 232920 | AK134: PIC00003403-00.jpg | AL134: TTF 16 cool | AM134: 190344 | AN134: PIC00003730-00.jpg
A135: 72275 | B135: Alpirsbach | C135: -16 | G135: =IF(Berechnung!$G$269=1,AI135,AL135) -> WPF 10 M | H135: 5 | I135: 4.49 | J135: 2.22 | K135: 0.075 | L135: 10.02 | M135: FALSE | N135: FALSE | O135: FALSE | P135: TRUE | Q135: FALSE | R135: Stratos 30/1-8 | S135: TRUE | T135: FALSE | U135: FALSE | V135: =IF(Berechnung!$G$269=1,AJ135,AM135) -> 185349 | W135: TRUE | X135: TRUE | Y135: Grundfos SQE 5-15 | Z135: 0.24 | AA135: FALSE | AB135: 12.5 | AC135: TRUE | AD135: FALSE | AE135: =IF(Berechnung!$G$269=1,AK135,AN135) -> PIC00000594-00.jpg | AF135: TRUE | AH135: 0 | AI135: WPF 10 M | AJ135: 185349 | AK135: PIC00000594-00.jpg | AL135: TTF 10 M | AM135: 190058 | AN135: PIC00003954-00.jpg
A136: 54668 | B136: Alsdorf | C136: -14 | G136: =IF(Berechnung!$G$269=1,AI136,AL136) -> WPF 13 M | H136: 5 | I136: 4.57 | J136: 2.82 | K136: 0.095 | L136: 12.98 | M136: FALSE | N136: FALSE | O136: FALSE | P136: TRUE | Q136: FALSE | R136: Stratos 30/1-8 | S136: TRUE | T136: FALSE | U136: FALSE | V136: =IF(Berechnung!$G$269=1,AJ136,AM136) -> 182135 | W136: TRUE | X136: TRUE | Y136: Grundfos SQE 5-15 | Z136: 0.255 | AA136: FALSE | AB136: 17.1 | AC136: TRUE | AD136: FALSE | AE136: =IF(Berechnung!$G$269=1,AK136,AN136) -> PIC00000594-00.jpg | AF136: TRUE | AH136: 0 | AI136: WPF 13 M | AJ136: 182135 | AK136: PIC00000594-00.jpg | AL136: TTF 13 M | AM136: 190045 | AN136: PIC00003954-00.jpg
A137: 52477 | B137: Alsdorf/Rheinl. | C137: -12 | G137: =IF(Berechnung!$G$269=1,AI137,AL137) -> WPF 16 M | H137: 5 | I137: 4.35 | J137: 3.5 | K137: 0.09 | L137: 16.99 | M137: FALSE | N137: FALSE | O137: FALSE | P137: TRUE | Q137: FALSE | R137: Stratos 30/1-8 | S137: TRUE | T137: FALSE | U137: FALSE | V137: =IF(Berechnung!$G$269=1,AJ137,AM137) -> 220894 | W137: TRUE | X137: TRUE | Y137: Grundfos SQE 5-15 | Z137: 0.26 | AA137: FALSE | AB137: 21.7 | AC137: TRUE | AD137: FALSE | AE137: =IF(Berechnung!$G$269=1,AK137,AN137) -> PIC00000594-00.jpg | AF137: TRUE | AH137: 0 | AI137: WPF 16 M | AJ137: 220894 | AK137: PIC00000594-00.jpg | AL137: TTF 16 M | AM137: 190102 | AN137: PIC00003954-00.jpg
A138: 67722 | B138: Alsenbrück | C138: -12 | G138: =IF(Berechnung!$G$269=1,AI138,AL138) -> WPF 20 | H138: 5 | I138: 4.66 | J138: 4.5 | K138: 0.18 | L138: 21.5 | M138: FALSE | N138: FALSE | O138: FALSE | P138: TRUE | Q138: FALSE | R138: UPF 40/1-8 E | S138: FALSE | T138: FALSE | U138: FALSE | V138: =IF(Berechnung!$G$269=1,AJ138,AM138) -> 233003 | W138: TRUE | X138: TRUE | Y138: Grundfos SQE 7-15 | Z138: 0.4 | AA138: FALSE | AB138: 27.9 | AC138: TRUE | AD138: FALSE | AE138: =IF(Berechnung!$G$269=1,AK138,AN138) -> PIC00000830-00.jpg | AF138: TRUE | AH138: 0 | AI138: WPF 20 | AJ138: 233003 | AK138: PIC00000830-00.jpg | AL138: TTF 20 | AM138: 190363 | AN138: PIC00003074-00.jpg
A139: 36304 | B139: Alsfeld | C139: -14 | G139: =IF(Berechnung!$G$269=1,AI139,AL139) -> WPF 27 | H139: 5 | I139: 4.85 | J139: 6.1 | K139: 0.22 | L139: 29.7 | M139: FALSE | N139: FALSE | O139: FALSE | P139: TRUE | Q139: FALSE | R139: UPF 40/1-8 E | S139: FALSE | T139: FALSE | U139: FALSE | V139: =IF(Berechnung!$G$269=1,AJ139,AM139) -> 233004 | W139: TRUE | X139: TRUE | Y139: Grundfos SQE 7-30 | Z139: 0.86 | AA139: FALSE | AB139: 37.83 | AC139: TRUE | AD139: FALSE | AE139: =IF(Berechnung!$G$269=1,AK139,AN139) -> PIC00000830-00.jpg | AF139: TRUE | AH139: 0 | AI139: WPF 27 | AJ139: 233004 | AK139: PIC00000830-00.jpg | AL139: TTF 27 | AM139: 190364 | AN139: PIC00003074-00.jpg
A140: 67577 | B140: Alsheim | C140: -12 | G140: =IF(Berechnung!$G$269=1,AI140,AL140) -> WPF 27 HT | H140: 5 | I140: 4.34 | J140: 6.1 | K140: 0.22 | L140: 27.41 | M140: FALSE | N140: FALSE | O140: FALSE | P140: TRUE | Q140: FALSE | R140: UPF 40/1-8 E | S140: FALSE | T140: FALSE | U140: FALSE | V140: =IF(Berechnung!$G$269=1,AJ140,AM140) -> 233009 | W140: TRUE | X140: TRUE | Y140: Grundfos SQE 7-30 | Z140: 0.86 | AA140: FALSE | AB140: 35.3 | AC140: TRUE | AD140: FALSE | AE140: =IF(Berechnung!$G$269=1,AK140,AN140) -> PIC00000830-00.jpg | AF140: TRUE | AH140: 0 | AI140: WPF 27 HT | AJ140: 233009 | AK140: PIC00000830-00.jpg | AL140: TTF 27 HT | AM140: 190369 | AN140: PIC00003074-00.jpg
A141: 57515 | B141: Alsting (Frankreich) | C141: -12 | G141: =IF(Berechnung!$G$269=1,AI141,AL141) -> WPF 35 | H141: 5 | I141: 4.72 | J141: 7.98 | K141: 0.35 | L141: 37.7 | M141: FALSE | N141: FALSE | O141: FALSE | P141: TRUE | Q141: FALSE | R141: UPF 50/1-12 E | S141: FALSE | T141: FALSE | U141: FALSE | V141: =IF(Berechnung!$G$269=1,AJ141,AM141) -> 233005 | W141: TRUE | X141: FALSE | Y141: - | Z141: - | AA141: FALSE | AB141: 49.03 | AC141: TRUE | AD141: FALSE | AE141: =IF(Berechnung!$G$269=1,AK141,AN141) -> PIC00000830-00.jpg | AF141: TRUE | AH141: 0 | AI141: WPF 35 | AJ141: 233005 | AK141: PIC00000830-00.jpg | AL141: TTF 35 | AM141: 190365 | AN141: PIC00003074-00.jpg
A142: 19303 | B142: Alt Jabel | C142: -12 | G142: =IF(Berechnung!$G$269=1,AI142,AL142) -> WPF 40 | H142: 5 | I142: 4.67 | J142: 9.1 | K142: 0.45 | L142: 43.1 | M142: FALSE | N142: FALSE | O142: FALSE | P142: TRUE | Q142: FALSE | R142: UPF 50/1-12 E | S142: FALSE | T142: FALSE | U142: FALSE | V142: =IF(Berechnung!$G$269=1,AJ142,AM142) -> 233006 | W142: TRUE | X142: FALSE | Y142: - | Z142: - | AA142: FALSE | AB142: 55.3 | AC142: TRUE | AD142: FALSE | AE142: =IF(Berechnung!$G$269=1,AK142,AN142) -> PIC00000830-00.jpg | AF142: TRUE | AH142: 0 | AI142: WPF 40 | AJ142: 233006 | AK142: PIC00000830-00.jpg | AL142: TTF 40 | AM142: 190366 | AN142: PIC00003074-00.jpg
A143: 18236 | B143: Alt Karin | C143: -10 | G143: =IF(Berechnung!$G$269=1,AI143,AL143) -> WPF 52 | H143: 5 | I143: 4.81 | J143: 11.6 | K143: 0.45 | L143: 52 | M143: FALSE | N143: FALSE | O143: FALSE | P143: TRUE | Q143: FALSE | R143: UPF 50/1-12 E | S143: FALSE | T143: FALSE | U143: FALSE | V143: =IF(Berechnung!$G$269=1,AJ143,AM143) -> 233007 | W143: TRUE | X143: FALSE | Y143: - | Z143: - | AA143: FALSE | AB143: 71.57 | AC143: TRUE | AD143: FALSE | AE143: =IF(Berechnung!$G$269=1,AK143,AN143) -> PIC00000830-00.jpg | AF143: TRUE | AH143: 0 | AI143: WPF 52 | AJ143: 233007 | AK143: PIC00000830-00.jpg | AL143: TTF 52 | AM143: 190367 | AN143: PIC00003074-00.jpg
A144: 75365 | B144: Altburg | C144: -16 | G144: =IF(Berechnung!$G$269=1,AI144,AL144) -> WPF 66 | H144: 5 | I144: 4.56 | J144: 14.2 | K144: 0.48 | L144: 67.1 | M144: FALSE | N144: FALSE | O144: FALSE | P144: TRUE | Q144: FALSE | R144: UPF 50/1-12 E | S144: FALSE | T144: FALSE | U144: FALSE | V144: =IF(Berechnung!$G$269=1,AJ144,AM144) -> 233008 | W144: TRUE | X144: FALSE | Y144: - | Z144: - | AA144: FALSE | AB144: 86.7 | AC144: TRUE | AD144: FALSE | AE144: =IF(Berechnung!$G$269=1,AK144,AN144) -> PIC00000830-00.jpg | AF144: TRUE | AH144: 0 | AI144: WPF 66 | AJ144: 233008 | AK144: PIC00000830-00.jpg | AL144: TTF 66 | AM144: 190368 | AN144: PIC00003074-00.jpg
A145: 3229 | B145: Altdöbern | C145: -16 | G145: =IF(Berechnung!$G$269=1,AI145,AL145) -> WPF 20 SET | H145: 5 | I145: 4.49 | J145: 4.44 | K145: 0.16 | L145: 20.04 | M145: 2 x WPF 10 M | N145: FALSE | O145: FALSE | P145: TRUE | Q145: FALSE | R145: 2 x UPF 30/1-8 E | S145: FALSE | T145: FALSE | U145: FALSE | V145: =IF(Berechnung!$G$269=1,AJ145,AM145) -> 185365 | W145: TRUE | X145: TRUE | Y145: Grundfos SQE 7-15 | Z145: 0.39 | AA145: FALSE | AB145: 25 | AC145: FALSE | AD145: FALSE | AE145: =IF(Berechnung!$G$269=1,AK145,AN145) -> PIC00002716-00.jpg | AF145: TRUE | AH145: 0 | AI145: WPF 20 SET | AJ145: 185365 | AK145: PIC00002716-00.jpg | AL145: TTF 20 SET | AM145: 190043 | AN145: PIC00003956-00.jpg
A146: 71155 | B146: Altdorf | C146: -16 | G146: =IF(Berechnung!$G$269=1,AI146,AL146) -> WPF 23 SET | H146: 5 | I146: 4.53 | J146: 5.04 | K146: 0.17 | L146: 23 | M146: WPF 13 M + WPF 10 M | N146: FALSE | O146: FALSE | P146: TRUE | Q146: FALSE | R146: 2 x UPF 30/1-8 E | S146: FALSE | T146: FALSE | U146: FALSE | V146: =IF(Berechnung!$G$269=1,AJ146,AM146) -> 185366 | W146: TRUE | X146: TRUE | Y146: Grundfos SQE 7-15 | Z146: 0.41 | AA146: FALSE | AB146: 29.6 | AC146: FALSE | AD146: FALSE | AE146: =IF(Berechnung!$G$269=1,AK146,AN146) -> PIC00002716-00.jpg | AF146: TRUE | AH146: 0 | AI146: WPF 23 SET | AJ146: 185366 | AK146: PIC00002716-00.jpg | AL146: TTF 23 SET | AM146: 190044 | AN146: PIC00003956-00.jpg
A147: 72655 | B147: Altdorf | C147: -16 | G147: =IF(Berechnung!$G$269=1,AI147,AL147) -> WPF 26 SET | H147: 5 | I147: 4.57 | J147: 5.64 | K147: 0.18 | L147: 25.96 | M147: 2 x WPF 13 M | N147: FALSE | O147: FALSE | P147: TRUE | Q147: FALSE | R147: 2 x UPF 30/1-8 E | S147: FALSE | T147: FALSE | U147: FALSE | V147: =IF(Berechnung!$G$269=1,AJ147,AM147) -> 182139 | W147: TRUE | X147: TRUE | Y147: Grundfos SQE 7-15 | Z147: 0.415 | AA147: FALSE | AB147: 34.2 | AC147: FALSE | AD147: FALSE | AE147: =IF(Berechnung!$G$269=1,AK147,AN147) -> PIC00002716-00.jpg | AF147: TRUE | AH147: 0 | AI147: WPF 26 SET | AJ147: 182139 | AK147: PIC00002716-00.jpg | AL147: TTF 26 SET | AM147: 190047 | AN147: PIC00003956-00.jpg
A148: 77955 | B148: Altdorf | C148: -12 | G148: =IF(Berechnung!$G$269=1,AI148,AL148) -> WPF 29 SET | H148: 5 | I148: 4.46 | J148: 6.32 | K148: 0.19 | L148: 29.97 | M148: WPF 16 M + WPF 13 M | N148: FALSE | O148: FALSE | P148: TRUE | Q148: FALSE | R148: 2 x UPF 30/1-8 E | S148: FALSE | T148: FALSE | U148: FALSE | V148: =IF(Berechnung!$G$269=1,AJ148,AM148) -> 220896 | W148: TRUE | X148: TRUE | Y148: Grundfos SQE 7-30 | Z148: 0.86 | AA148: FALSE | AB148: 38.8 | AC148: FALSE | AD148: FALSE | AE148: =IF(Berechnung!$G$269=1,AK148,AN148) -> PIC00002716-00.jpg | AF148: TRUE | AH148: 0 | AI148: WPF 29 SET | AJ148: 220896 | AK148: PIC00002716-00.jpg | AL148: TTF 29 SET | AM148: 190104 | AN148: PIC00003956-00.jpg
A149: 84032 | B149: Altdorf | C149: -16 | G149: =IF(Berechnung!$G$269=1,AI149,AL149) -> WPF 32 SET | H149: 5 | I149: 4.35 | J149: 7 | K149: 0.2 | L149: 33.98 | M149: 2 x WPF 16 M | N149: FALSE | O149: FALSE | P149: TRUE | Q149: FALSE | R149: 2 x UPF 30/1-8 E | S149: FALSE | T149: FALSE | U149: FALSE | V149: =IF(Berechnung!$G$269=1,AJ149,AM149) -> 220897 | W149: TRUE | X149: TRUE | Y149: Grundfos SQE 7-30 | Z149: 0.86 | AA149: FALSE | AB149: 43.4 | AC149: FALSE | AD149: FALSE | AE149: =IF(Berechnung!$G$269=1,AK149,AN149) -> PIC00002716-00.jpg | AF149: TRUE | AH149: 0 | AI149: WPF 32 SET | AJ149: 220897 | AK149: PIC00002716-00.jpg | AL149: TTF 32 SET | AM149: 190105 | AN149: PIC00003956-00.jpg
A150: 90518 | B150: Altdorf | C150: -16
A151: 83549 | B151: Alteiselfing | C151: -16
A152: 58762 | B152: Altena / Westf. | C152: -12 | G152: Warmwasser-Wärmepumpen
A153: 53505 | B153: Altenahr | C153: -14 | G153: WP-Typ | H153: Leistungszahl | I153: Temperatur | J153: Faktor | K153: Faktor F2 | L153: Kurzbezeichnung | AI153: Name | AJ153: Kurzname | AK153: Produktbild | AL153: Name | AM153: Kurzname | AN153: Produktbild
A154: 38707 | B154: Altenau | C154: -16 | H154: W15/W50 | I154: Prüfstand | J154: F1 | K154: Kellerluft=0,9, Abluft = 1 | AI154: Stiebel | AJ154: Stiebel | AK154: Stiebel | AL154: tecalor | AM154: tecalor | AN154: tecalor
A155: 4828 | B155: Altenbach | C155: -14 | G155: =IF(Berechnung!$G$269=1,AI158,AL158) -> WWK 220 electronic | H155: 3.42 | I155: 55 | J155: =IF(I155="","",0.01*I155+0.5) -> 1.05 | K155: 0.9 | L155: =IF(Berechnung!$G$269=1,AJ158,AM158) -> WWK 220 E | AI155: WWK 300 | AJ155: WWK 300 | AL155: TTA 300 | AM155: TTA 300
A156: 55585 | B156: Altenbamberg | C156: -12 | G156: =IF(Berechnung!$G$269=1,AI159,AL159) -> WWK 300 electronic | H156: 3.82 | I156: 55 | J156: =IF(I156="","",0.01*I156+0.5) -> 1.05 | K156: 0.9 | L156: =IF(Berechnung!$G$269=1,AJ159,AM159) -> WWK 300 E | AI156: LWA 252 | AJ156: LWA 252 | AL156: TVD 250 | AM156: TVD 250
A157: 33184 | B157: Altenbeken | C157: -14 | G157: =IF(Berechnung!$G$269=1,AI160,AL160) -> WWK 300 electronic SOL | H157: 3.82 | I157: 55 | J157: =IF(I157="","",0.01*I157+0.5) -> 1.05 | K157: 0.9 | L157: =IF(Berechnung!$G$269=1,AJ160,AM160) -> WWK 300 E SOL | AI157: LWA 100 | AJ157: LWA 100 | AL157: TVD 100 | AM157: TVD 100
A158: 1773 | B158: Altenberg | C158: -16 | G158: =IF(Berechnung!$G$269=1,AI161,AL161) -> WWK 221 electronic | H158: 3.4 | I158: 55 | J158: 1.05 | K158: 0.9 | L158: =IF(Berechnung!$G$269=1,AJ161,AM161) -> WWK 221 E | AI158: WWK 220 electronic | AJ158: WWK 220 E | AL158: TTA 220 electronic | AM158: TTA 220 E
A159: 48341 | B159: Altenberge | C159: -12 | G159: =IF(Berechnung!$G$269=1,AI162,AL162) -> WWK 301 electronic | H159: 3.8 | I159: 55 | J159: 1.05 | K159: 0.9 | L159: =IF(Berechnung!$G$269=1,AJ162,AM162) -> WWK 301 E | AI159: WWK 300 electronic | AJ159: WWK 300 E | AL159: TTA 300 electronic | AM159: TTA 300 E
A160: 49733 | B160: Altenberge | C160: -10 | G160: =IF(Berechnung!$G$269=1,AI163,AL163) -> WWK 301 electronic SOL | H160: 3.8 | I160: 55 | J160: =IF(I160="","",0.01*I160+0.5) -> 1.05 | K160: 0.9 | L160: =IF(Berechnung!$G$269=1,AJ163,AM163) -> WWK 301 E SOL | AI160: WWK 300 electronic SOL | AJ160: WWK 300 E SOL | AL160: TTA 300 electronic SOL | AM160: TTA 300 E SOL
A161: 34587 | B161: Altenbrunslar | C161: -14 | G161: =IF(Berechnung!$G$269=1,AI164,AL164) -> WWS 20 | H161: 3.8 | I161: 55 | J161: 1.05 | K161: 0.9 | L161: =IF(Berechnung!$G$269=1,AJ164,AM164) -> WWS 20 | AI161: WWK 221 electronic | AJ161: WWK 221 E | AL161: TTA 221 electronic | AM161: TTA 221 E
A162: 4600 | B162: Altenburg | C162: -14 | G162: =IF(Berechnung!$G$269=1,AI156,AL156) -> LWA 252 | H162: 4.2 | I162: 55 | J162: =IF(I162="","",0.01*I162+0.5) -> 1.05 | K162: 1 | L162: =IF(Berechnung!$G$269=1,AJ156,AM156) -> LWA 252 | AI162: WWK 301 electronic | AJ162: WWK 301 E | AL162: TTA 301 electronic | AM162: TTA 301 E
A163: 34587 | B163: Altenburg | C163: -14 | G163: =IF(Berechnung!$G$269=1,AI157,AL157) -> LWA 100 | H163: 2.8 | I163: 55 | J163: =IF(I163="","",0.01*I163+0.5) -> 1.05 | K163: 1 | L163: =IF(Berechnung!$G$269=1,AJ157,AM157) -> LWA 100 | AI163: WWK 301 electronic SOL | AJ163: WWK 301 E SOL | AL163: TTA 301 electronic SOL | AM163: TTA 301 E SOL
A164: 29574 | B164: Altenebstorf | C164: -14 | J164: =IF(I164="","",0.01*I164+0.5) ->  | AI164: WWS 20 | AJ164: WWS 20 | AL164: WWS 20 | AM164: WWS 20
A165: 45329 | B165: Altenessen | C165: -10 | J165: =IF(I165="","",0.01*I165+0.5) -> 
A166: 98701 | B166: Altenfeld | C166: -16
A167: 66885 | B167: Altenglau | C167: -14 | J167: =IF(I167="","",0.01*I167+0.5) -> 
A168: 36391 | B168: Altengronau | C168: -14
A169: 31558 | B169: Altenhagen | C169: -14
A170: 33729 | B170: Altenhagen | C170: -12
A171: 85356 | B171: Altenhausen | C171: -16
A172: 77743 | B172: Altenheim | C172: -12
A173: 16244 | B173: Altenhof | C173: -14
A174: 96479 | B174: Altenhof | C174: -16
A175: 24161 | B175: Altenholz | C175: -10
A176: 57368 | B176: Altenhundem | C176: -14
A177: 57610 | B177: Altenkirchen | C177: -14
A178: 66903 | B178: Altenkirchen | C178: -12
A179: 23730 | B179: Altenkrempe | C179: -10
A180: 83352 | B180: Altenmarkt | C180: -16
A181: 29575 | B181: Altenmedingen | C181: -12
A182: 86450 | B182: Altenmünster | C182: -16 | J182: =IF(I169="","",0.01*I169+0.5) -> 
A183: 26169 | B183: Altenoythe | C183: -12 | J183: =IF(I170="","",0.01*I170+0.5) -> 
A184: 95500 | B184: Altenplos | C184: -16 | J184: =IF(I171="","",0.01*I171+0.5) -> 
A185: 72657 | B185: Altenriet | C185: -16 | J185: =IF(I172="","",0.01*I172+0.5) -> 
A186: 6642 | B186: Altenrode | C186: -14 | J186: =IF(I175="","",0.01*I175+0.5) -> 
A187: 63674 | B187: Altenstadt | C187: -12 | J187: =IF(I187="","",0.01*I187+0.5) -> 
A188: 89281 | B188: Altenstadt | C188: -16 | J188: =IF(I188="","",0.01*I188+0.5) -> 
A189: 92665 | B189: Altenstadt | C189: -16
A190: 72213 | B190: Altensteig | C190: -16
A191: 17087 | B191: Altentreptow | C191: -14
A192: 97327 | B192: Altertheim | C192: -14
A193: 66802 | B193: Altforweiler | C193: -12
A194: 1462 | B194: Altfranken | C194: -14
A195: 84169 | B195: Altfraunhofen | C195: -16
A196: 9326 | B196: Altgeringswalde | C196: -14
A197: 82278 | B197: Althegnenberg | C197: -16
A198: 72160 | B198: Altheim | C198: -16 | G198: Manuelle Eingabe WW-Wärmepumpe
A199: 74731 | B199: Altheim | C199: -16 | G199: Eigene WW-Wärmepumpe | H199: =Berechnung!W244 -> 3,4 | I199: =LEFT(Berechnung!W245,2)*1 -> 55 | J199: =IF(I199="","",0.01*I199+0.5) -> 1.05 | K199: 0.9 | L199: =Berechnung!W243 -> WWK 222
A200: 77743 | B200: Altheim | C200: -12 | G200: Eigene Abluft-Wärmepumpe | H200: =Berechnung!W244 -> 3,4 | I200: =LEFT(Berechnung!W245,2)*1 -> 55 | J200: =IF(I200="","",0.01*I200+0.5) -> 1.05 | K200: 1 | L200: =Berechnung!W243 -> WWK 222
... 8650 more rows

Sheet Ausdruck (hidden)
A1: FÖRDERUNG NACH BAFA-MAP
X2: =RIGHT(Eingabe!AB2,5) -> v8.39
B4: Projektdaten | C4: Straße | D4: =Berechnung!C10 -> 0
B6: Gebäudedaten
B7: Gebäudestandort | M7: =Berechnung!C14 -> Leipzig
B8: Norm-Außentemperatur | M8: =Berechnung!C16&" °C" -> -14 °C
B9: Gebäudetyp | M9: =Berechnung!D6&" | "&Berechnung!G6 -> Wohngebäude | Bestandsgebäude
B10: =Eingabe!C15 -> Wohneinheiten | M10: =IF(Berechnung!D6=Berechnung!D9,Berechnung!H6,Berechnung!I6) -> Einfamilienhaus
B11: Heizgrenztemperatur | M11: =Berechnung!N6 -> 15 °C
B12: Dämmstandard | M12: =Berechnung!E6 -> Niedrigenergiehaus EnEV 2016
B13: Transmisionswärmeverlust HT' | M13: =Berechnung!K6 -> EnEV 2009 Neubau - Niveau
B14: Heizungsanlage | M14: =IF(Berechnung!F27<>2,"Wärmepumpe",Berechnung!D61) -> Wärmepumpe
B52: Systemtechnik
B54: Wärmepumpe
B55: Typ | M55: =IF(Berechnung!R6>1,Berechnung!R6&" x ","")&IF(Berechnung!F27=2,"-",IF(Berechnung!C54=FALSE,Berechnung!C34,Berechnung!C34&" ("&VLOOKUP(Berechnung!C34,Leistungsdaten!G:M,7,FALSE)&")")) -> WPL 25 A
B56: Wärmequelle | M56: =IF(Berechnung!F27=2,"-",VLOOKUP(Berechnung!B34,Berechnung!B37:C52,2,FALSE)) -> Luft/Wasser-Wärmepumpe
B57: =Berechnung!G206 -> Heizleistung A2/W35 | M57: =IF(Berechnung!F27=2,"-",Berechnung!H206) -> 8,33 KW
B58: =Berechnung!G207 -> Leistungszahl A-7/W35 | M58: =IF(Berechnung!F27=2,"-",Berechnung!H207) -> 2,93
B59: Leistungszahl A2/W35 | M59: =IF(Berechnung!F27=2,"-",Berechnung!H208) -> 4,17
B60: Leistungszahl A10/W35 | M60: =IF(Berechnung!F27=2,"-",Berechnung!H209) -> 5,16
B61: =IF(Berechnung!B54=TRUE,"Leistungsaufnahme B10/W35","Leistungsaufnahme B0/W35") -> Leistungsaufnahme B0/W35 | M61: =IF(Berechnung!F27=2,"-",FIXED(Berechnung!I132,2)&" KW") -> 4,17 KW
B62: Pufferspeicher | M62: =Berechnung!B240 -> SBP 200
B63: Prüfzertifikat Leistungszahl | M63: =IF(Berechnung!F27=2,"-","Vorhanden") -> Vorhanden
B64: Wärmemengenzählung | M64: =IF(Berechnung!F27=2,"-",IF(Berechnung!W38=TRUE,"Vorhanden","Nicht vorhanden")) -> Vorhanden
B66: Solaranlage
B67: Typ | M67: =IF(Berechnung!F27=1,"-",Berechnung!B61) -> -
B68: Kollektorzahl | M68: =IF(Berechnung!$F$27=1,"-",Berechnung!C61) -> -
B69: Kollektorfläche | M69: =IF(Berechnung!$F$27=1,"-",FIXED(Berechnung!I61,2)&" m²") -> -
B70: Nutzungsart | M70: =IF(Berechnung!$F$27=1,"-",Berechnung!H61) -> -
B71: Installationsart | M71: =IF(Berechnung!$F$27=1,"-",Berechnung!G61) -> -
B102: Jahresarbeitszahl
B104: Heizungsanlage
B105: Wärmeverteilsystem | M105: =Berechnung!G34 -> Radiatorenheizung
B106: Maximale Heizungsvorlauftemperatur | M106: =Berechnung!F34 -> 55 °C
B107: Temperaturdifferenz Verflüssiger Prüfstand | M107: =FIXED(VLOOKUP(Berechnung!C34,Leistungsdaten!G:H,2,FALSE),1)&" K"&IF(VLOOKUP(Berechnung!C34,Leistungsdaten!G:H,2,FALSE)=5," (DIN EN 14511)"," (EN 255)") -> 5,0 K (DIN EN 14511)
B108: Temperaturdifferenz Verflüssiger Betrieb | M108: =IF(OR(Berechnung!G34=Berechnung!G39,Berechnung!G34=Berechnung!G40,Berechnung!G34=Berechnung!G41,Berechnung!G34=Berechnung!G42),"7 K","10 K") -> 10 K
B109: Korrekturfaktor Verflüssiger FDJ | M109: =IF(Berechnung!B34=Berechnung!B37,FIXED(Berechnung!D154,3),IF(Berechnung!B34=Berechnung!B38,FIXED(Berechnung!G150,3),FIXED(Berechnung!J150,3))) -> 1,052
B111: Wärmequelle
B112: Typ | M112: =IF(Berechnung!B34=Berechnung!B37,"Außenluft",IF(Berechnung!B34=Berechnung!B39,IF(Berechnung!B54=FALSE,"Grundwasser mit Zwischen-Wärmetauscher","Grundwasser"),Berechnung!H34)) -> Außenluft
B113: Korrekturfaktor FJ1 | M113: =Berechnung!D151 -> 0.109
B114: Korrekturfaktor FJ2 | M114: =Berechnung!D152 -> 0.626
B115: Korrekturfaktor FJ3 | M115: =Berechnung!D153 -> 0.16
B116: =IF(Berechnung!B34=Berechnung!B37,"Normaußentemperatur",IF(Berechnung!B34=Berechnung!B38,"Minimale Soleeintrittstemperatur","Mittlere Grundwassertemperatur")) -> Normaußentemperatur | M116: =IF(Berechnung!B34=Berechnung!B37,M8,IF(Berechnung!B34=Berechnung!B39,Berechnung!H34,IF(Berechnung!H34=Berechnung!H37,"2 °C","0 °C"))) -> -14 °C
B117: =IF(Berechnung!B34=Berechnung!B37,"Heizgrenztemperatur",IF(Berechnung!B34=Berechnung!B39,"Temperaturdifferenz Zwischen-WT",Berechnung!$G$276)) -> Heizgrenztemperatur | M117: =IF(Berechnung!B34=Berechnung!B37,Berechnung!N6,IF(Berechnung!B34=Berechnung!B39,IF(Berechnung!B54=FALSE,"-3 K","-"),IF(OR(Berechnung!K34=Berechnung!K39,Berechnung!K34=Berechnung!K40),"+ 2 K","-"))) -> 15 °C
B118: Berechnungswert Quellentemperatur | M118: =Berechnung!P34&" °C" -> 2 °C
B119: Korrekturfaktor Verdampfer FJ | M119: =IF(Berechnung!B34=Berechnung!B38,FIXED(Berechnung!G149,3),FIXED(Berechnung!J149,3)) -> 0,917
B120: Solepumpe | M120: =IF(Berechnung!B34=Berechnung!B38,Berechnung!I136,IF(Berechnung!B54=FALSE,Berechnung!J136,"-")) -> Typ: - | Leistung: 5160 W
B121: Grundwasserpumpe | M121: =IF(Berechnung!B54=FALSE,Berechnung!J140,Berechnung!K140) -> Standard nach VDI 4650
B122: Korrekturfaktor Quellenpumpe Fp | M122: =IF(Berechnung!B34=Berechnung!B38,FIXED(Berechnung!G151,3),FIXED(Berechnung!J151,3)) -> 1,325
B152: Jahresarbeitszahl
B154: Warmwasserbereitung
B155: Art der Warmwaserbereitung | M155: =Berechnung!L34 -> Mit Heizungs-Wärmepumpe
B156: Temperaturdifferenz Verflüssiger Prüfstand | M156: =M107 -> 5,0 K (DIN EN 14511)
B157: Temperaturdifferenz Verflüssiger Betrieb | M157: =IF(Berechnung!B34=Berechnung!B37,"7 K","10 K") -> 7 K
B158: Korrekturfaktor Verflüssiger FDJ | M158: =IF(Berechnung!B34=Berechnung!B37,FIXED(Berechnung!C134,3),IF(Berechnung!B34=Berechnung!B38,FIXED(Berechnung!D134,3),FIXED(Berechnung!E134,3))) -> 1,021
B159: Korrekturfaktor Verdampfer FJ | M159: =IF(Berechnung!B54=TRUE,FIXED(VLOOKUP(Berechnung!P34,'Tabellen VDI4650'!B150:I163,8,FALSE),3),FIXED(VLOOKUP(Berechnung!P34,'Tabellen VDI4650'!B112:J137,8,FALSE),3)) -> 0,917
B160: Typ | M160: =IF(Berechnung!M54=FALSE,"-",IF(Berechnung!W241=TRUE,Berechnung!W243,Berechnung!E240)) -> Warmwasserspeicher 300 Liter
B161: Hersteller | M161: =IF(Berechnung!M54=FALSE,"-",IF(Berechnung!W241=TRUE,Berechnung!W242,Berechnung!$G$271)) -> STIEBEL ELTRON GmbH & Co. KG
B162: Leistungszahl nach EN 255-3 | M162: =IF(Berechnung!M54=FALSE,"-",FIXED(Berechnung!M148,2)) -> 
B163: Warmwassertemperatur Prüfstand | M163: =IF(Berechnung!M54=FALSE,"-",VLOOKUP(Berechnung!E240,Leistungsdaten!G:I,3,FALSE)&" °C") -> 
B164: Korrekturfaktor Warmwassertemp. F1 | M164: =IF(Berechnung!M54=FALSE,"-",FIXED(Berechnung!M149,2)) -> 
B165: Korrekturfaktor Wärmepumpen-Typ | M165: =IF(Berechnung!M54=FALSE,"-",FIXED(Berechnung!M150,2)) -> 
B167: Berechnung
B168: Jahresarbeitszahl Raumheizung bh | M168: =ROUND(Berechnung!E158,2) -> 3.95
B169: Jahresarbeitszahl Warmwasserbereitung bw | M169: =IF(Berechnung!M54=FALSE,"Keine Warmwasserbereitung",ROUND(Berechnung!E160,2)) -> 4.47
B170: Anteil Warmwasser am Wärmebedarf | M170: =IF(Berechnung!M54=FALSE,"Keine Warmwasserbereitung",IF(Berechnung!R34=0.18,"Nach VDI 4650 (18 %)",Berechnung!R34*100&" ")) -> Nach VDI 4650 (18 %)
B171: Betriebsweise Wärmepumpe | M171: =Berechnung!D34 -> Monoenergetisch
B172: Bivalenzpunkt JBiv | M172: =IF(Berechnung!D34=Berechnung!D37,"-",Berechnung!E34) -> -5 °C
B173: Deckungsanteil a | M173: =IF(Berechnung!D34=Berechnung!D39,FIXED(VLOOKUP(Berechnung!E34,Berechnung!E36:Q52,13,FALSE),2),FIXED(Berechnung!Q34,2)) -> 0,98
B174: Gesamt-Jahresarbeitszahl bWP | M174: =FIXED(Berechnung!E161,1) -> 3,8
B175: Berechnung nach VDI 4650 | Teil 1 (März 2009)
B202: Übersicht Fördersummen
B204: Förderung
B205: Basisförderung Wärmepumpe | M205: =IF(Berechnung!E224=FALSE,"-",Berechnung!F224&" €") -> 1500 €
B206: Innovationsförderung Wärmepumpe | M206: =IF(Berechnung!E228=FALSE,"-",Berechnung!F228&" €") -> -
B207: Basisförderung Solar | M207: =IF(Berechnung!E225=FALSE,"-",Berechnung!F225&" €") -> -
B208: Innovationsförderung Solar | M208: =IF(Berechnung!E227=FALSE,"-",Berechnung!F227&" €") -> -
B209: Bonus Lastmanagementfähigkeit | M209: =IF(Berechnung!E230=FALSE,"-",Berechnung!F230&" €") -> 500 €
B210: Kombinationsbonus Solar | M210: =IF(Berechnung!E226=FALSE,"-",Berechnung!F226&" €") -> -
B211: Bonus energieeffiziente Gebäudehülle | M211: =IF(Berechnung!E229=FALSE,"-",Berechnung!F229&" €") -> -
B212: Bonus Wärmepumpenoptimierung | M212: =IF(Berechnung!E223=FALSE,"-",Berechnung!F223&" €") -> 250 €
B213: Bonus Optimierung Heizungsanlage | M213: =IF(Berechnung!E222=FALSE,"-",Berechnung!F222&" € *") -> -
B214: Bonus Heizkesseltausch | M214: =IF(Berechnung!E231=FALSE,"-",Berechnung!F231&" €") -> -
B215: Summe | M215: =Berechnung!F232&" €" -> 2250 €
B216: Maßgeblich für die tatsächliche Förderhöhe ist der Bafa-Förderbescheid.
B217: =IF(Berechnung!E222=FALSE,"","* 10% der Investkosten für Heizungsoptimierung, max. 50 % Basisförderung Wärmepumpe") -> 
B252: Förderbedingungen Wärmepumpe
B254: Mindest-Jahresarbeitszahlen | M254: Außenluft | R254: Erdwärmesonde | W254: Sonstige Quellen
B255: Wohngebäude | Heizung+Warmwassser | M255: ≥ 3,5 | R255: ≥ 3,8 | W255: ≥ 3,8
B256: Wohngebäude | Nur Heizung | M256: Nicht förderfähig | R256: Nicht förderfähig | W256: Nicht förderfähig
B257: Nichtwohngebäude | Heizung+Warmwassser | M257: ≥ 3,5 | R257: ≥ 4,0 | W257: ≥ 4,0
B258: Nichtwohngebäude | Nur Heizung | M258: ≥ 3,5 | R258: ≥ 4,0 | W258: ≥ 4,0
B259: Innovationsförderung Wärmepumpe | M259: ≥ 4,5 | R259: ≥ 4,5 | W259: ≥ 4,5
B261: Basisförderung | M261: Außenluft | R261: Erdwärmesonde | W261: Sonstige Quellen
B262: Fördersumme | M262: 40 € je KW | R262: 100 € je KW | W262: 100 € je KW
B263: Mindestförderbetrag | M263: 1300 € je KW* | R263: 4500 | W263: 4000
B264: * Mindestförderbetrag für leistungsgeregelte oder monovalente Wärmepumpen 1500€ Basisförderung nur gültig für Gebäudebestand. Keine Neubauförderung.
B265: Innovationsförderung | M265: Außenluft | R265: Erdwärmesonde | W265: Sonstige Quellen
B266: Bestandsgebäude | M266: 50% Basisförderung | R266: 50% Basisförderung | W266: 50% Basisförderung
B267: Neubau | M267: 100% Basisförderung | R267: 100% Basisförderung | W267: 100% Basisförderung
B269: Bonusförderung
B270: Bonus Lastmanagementfähigkeit | M270: 500 € je Bauvorhaben | Mind. 30 Liter Puffervolumen je KW Heizleistung
B271: Bonus Wärmepumpenoptimierung | M271: 250 € je Bauvorhaben | Anlagenkontrolle und -optimierung nach 1 Jahr
B272: Kombinationsbonus | M272: 500 € je Bauvorhaben | Einbindung einer Thermischen Solaranlage
B273: Effizienzbonus | M273: 50 % Basisförderung | Gebäudehülle mind. KfW-Effizienzhaus 55
B274: Bonus Heizkesseltausch | M274: 20% Gesamtförderung + 600€ Zuschuss für Heizungsoptimierung
B275: Bonus Heizungsoptimierung | M275: 10% Kosten für Heizungsoptimierung, max. 50% Basisförderung
B302: Förderbedingungen Solar
B304: Basisförderung | M304: Warmwasserbereitung | T304: Warmwasser + Heizung
B305: Bruttokollektorfläche | M305: 3 - 40 m² | T305: 1 - 40 m²
B306: Fördersumme | M306: 50 € je m² | T306: 140 € je m²
B307: Mindestförderbetrag | M307: 500 | T307: 2000
B309: Innovationsförderung | M309: Warmwasserbereitung | T309: Warmwasser + Heizung
B310: Bruttokollektorfläche | M310: 20 - 100 m² | T310: 20 - 100 m²
B311: Bestandsgebäude | M311: 100 € je m² | T311: 200 € je m²
B312: Neubau | M312: 75 € je m² | T312: 150 € je m²
B314: Bonusförderung
B315: Effizienzbonus | M315: 50 % Basisförderung | Gebäudehülle mind. KfW-Effizienzhaus 55
B316: Kombinationsbonus | M316: 500 € je Bauvorhaben | Förderfähiger Biomassekessel oder Wärmpepumpe
B317: Bonus Heizkesseltausch | M317: 20% Gesamtförderung + 600€ Zuschuss für Heizungsoptimierung
B702: Rechtliche Hinweise
B704: =Berechnung!G270 -> Stiebel Eltron übernimmt keinerlei Gewährleistung oder Garantie dafür, dass die bereitgestellten Angaben, Werte und Informationen oder die mit Hilfe bzw. anhand dieser Informationen, Werte und Angaben ermittelten Werte und Angaben in jeder Hinsicht vollständig, genau, richtig und aktuell sind. Stiebel Eltron behält sich das Recht vor, jederzeit und ohne vorherige Ankündigung Änderungen der bereitgestellten Angaben, Werte und Informationen vorzunehmen. Irrtum und Änderungen sind ausdrücklich vorbehalten. Keine der bereitgestellten Angaben, Werte und Informationen oder der mit Hilfe bzw. anhand dieser Angaben, Werte und Informationen ermittelten Werte und Angaben sind als Grundlage für eine finanzielle Entscheidung oder für einen sonstigen Zweck anzusehen, sondern dienen vielmehr nur als eine erste unverbindliche Information und als Hilfe zur ersten Orientierung. Die Haftung von Stiebel Eltron für Schäden jeglicher Art, die sich möglicherweise aus der Nutzung oder Verwendung der bereitgestellten Informationen, Werte und Angaben oder der mit Hilfe bzw. anhand dieser Angaben, Werte und Informationen ermittelten Werte und Angaben, ergeben, ist ausgeschlossen. Dieser Haftungsausschluss gilt nicht, wenn der Schaden auf Vorsatz oder grobe Fahrlässigkeit von Stiebel Eltron zurückzuführen ist sowie bei einer Verletzung des Lebens, des Körpers oder der Gesundheit.

Sheet Ausfüllhilfe Online-Antrag (hidden)
A1: Antrag auf Basisförderung Wärmepumpe | H1: Antrag auf Innovationsförderung Wärmepumpe
A3: Typ Element | B3: Name Feld HTML | C3: Wert | D3: Bemerkung | H3: Typ Element | I3: Name Feld HTML | J3: Wert | K3: Bemerkung
A4: 1 | B4: Antragsberechtigung | C4: AUTO711 | D4: Radio Antragberechtigung, Privatperson = "AUTO711" | H4: 1 | I4: Antragsberechtigung | J4: Pg1_Obj1 | K4: Radio Antragberechtigung, Immer Privatperson
A5: 2 | B5: Anrede_1 | C5: HERR / FRAU | H5: 99 | I5: Kommunal | J5: Pg1_Obj17 | K5: Kommunale Mehrheitsbeteiligung ja/nein, aktuell nichts anhaken
A6: 2 | B6: VornameAnsprechpartner_1 | C6: BITTE EINTRAGEN | H6: 2 | I6: Anrede_1 | J6: HERR / FRAU
A7: 2 | B7: NachnameAnsprechpartner_1 | C7: BITTE EINTRAGEN | H7: 2 | I7: VornameAnsprechpartner_1 | J7: BITTE EINTRAGEN
A8: 2 | B8: FirmennameInstitutionsname_1 | C8: BITTE EINTRAGEN | H8: 2 | I8: NachnameAnsprechpartner_1 | J8: BITTE EINTRAGEN
A9: 2 | B9: StrasseundHausnummer_1 | C9: BITTE EINTRAGEN | H9: 2 | I9: Institutionsname_1 | J9: BITTE EINTRAGEN
A10: 2 | B10: Postleitzahl_1 | C10: EINTRAGEN | H10: 2 | I10: StrasseundHausnummer_1 | J10: BITTE EINTRAGEN
A11: 2 | B11: Ort_1 | C11: BITTE EINTRAGEN | H11: 2 | I11: Postleitzahl_1 | J11: EINTRAGEN
A12: 2 | B12: Telefon_1 | C12: EINTRAGEN (OPTIONAL) | H12: 2 | I12: Ort_1 | J12: BITTE EINTRAGEN
A13: 2 | B13: EMailAdresse_1 | C13: EINTRAGEN (OPTIONAL) | H13: 2 | I13: Telefon_1 | J13: EINTRAGEN (OPTIONAL)
A14: 2 | B14: Kontoinhaber | C14: BITTE EINTRAGEN | H14: 2 | I14: EMailAdresse_1 | J14: EINTRAGEN (OPTIONAL)
A15: 2 | B15: NamederBank | C15: BITTE EINTRAGEN | H15: 2 | I15: StrasseundHausnummer_2 | J15: BITTE EINTRAGEN
A16: 2 | B16: IBAN | C16: BITTE EINTRAGEN | H16: 2 | I16: Postleitzahl_2 | J16: =C19 -> 04...
A17: 2 | B17: BIC | C17: BITTE EINTRAGEN | H17: 2 | I17: Ort_2 | J17: =C20 -> Leipzig
A18: 2 | B18: StrasseundHausnummer_2 | C18: BITTE EINTRAGEN | H18: 3 | I18: Vorhabensbeginn | J18: TRUE | K18: Antrag vor Varhabensbeginn immer auf wahr
A19: 2 | B19: Postleitzahl_2 | C19: =TEXT(Berechnung!C13,"00000") -> 04... | H19: 1 | I19: Waermepumpenart | J19: =IF(Berechnung!B34=Berechnung!B37,"Pg2_Obj6",IF(Berechnung!B34=Berechnung!B39,"Pg2_Obj12",IF(Berechnung!H34=Berechnung!H40,"Pg2_Obj13",IF(Berechnung!H34=Berechnung!H39,"Pg2_Obj10","Pg2_Obj11")))) -> Pg2_Obj6
A20: 2 | B20: Ort_2 | C20: =Berechnung!C14 -> Leipzig | H20: 2 | I20: Datum_Erdsondenbohrung | J20: =IF($J$19="Pg4_Obj11","BITTE EINTRAGEN","---") -> ---
A21: 2 | B21: BaujahrdesGebaeudes | C21: =IF(Berechnung!G6=Berechnung!G9,YEAR(TODAY()),"EINTRAGEN") -> EINTRAGEN | H21: 2 | I21: Bezeichnung | J21: =C32 -> --- | K21: Erdwärmekörbe
A22: 1 | B22: gebart | C22: =IF(Berechnung!$D$6=Berechnung!$D$9,"AUTO433","AUTO431") -> AUTO433 | D22: Gebäudeart: AUTO433=Wohngebäude, AUTO431=Nichtwohngebäude, AUTO432=Mischgebäude | H22: 1 | I22: Betriebsweise | J22: =IF(Berechnung!$D$34=Berechnung!$D$37,"Pg2_Obj7",IF(Berechnung!$D$34=Berechnung!$D$38,"Pg2_Obj8","Pg2_Obj9")) -> Pg2_Obj8 | K22: 7 = monovalent, 8=monoenerg., 9 =bivalent
A23: 2 | B23: Anteilwohn | C23: =IF(Berechnung!$D$6=Berechnung!$D$9,100,0) -> 100 | D23: Anteil Wohnfläche (für Mischgebäude, aktuell nicht wählbar im Tool) | H23: 2 | I23: Hersteller_2 | J23: =Berechnung!$G$271 -> STIEBEL ELTRON GmbH & Co. KG
A24: 2 | B24: AnteilNutz | C24: =IF(Berechnung!$D$6=Berechnung!$D$10,100,0) -> 0 | D24: Anteil Nutzfläche | H24: 2 | I24: Typbezeichnung | J24: =Berechnung!C34 -> WPL 25 A
A25: 1 | B25: Heizungvorhanden | C25: =IF(Berechnung!G6=Berechnung!G9,"AUTO435","AUTO434") -> AUTO434 | D25: AUTO434=JA, AUTO435 = Nein, vorher keine Heizung | H25: 2 | I25: Nennwaermeleistung | J25: =FIXED(Berechnung!$D$147,2) -> 8,33
A26: 2 | B26: ArtderHeizung_3 | C26: =IF($C$25="AUTO435","---","BITTE EINTRAGEN z.B. ÖL/GAS/ELEKTRO") -> BITTE EINTRAGEN z.B. ÖL/GAS/ELEKTRO | D26: Bezeichnung der alten Heizung | H26: 2 | I26: Nettoinvestitionssumme | J26: BITTE EINTRAGEN
A27: 2 | B27: Installationsdatum_3 | C27: =IF($C$25="AUTO435","---","BITTE EINTRAGEN") -> BITTE EINTRAGEN | D27: Nur Datumswerte valid | H27: 1 | I27: ArtderWaermepumpe | J27: Pg2_Obj21 | K27: Immer Förderung über hohe JAZ
A28: 2 | B28: Hersteller_3 | C28: =IF($C$25="AUTO435","---","BITTE EINTRAGEN") -> BITTE EINTRAGEN | H28: 2 | I28: Jahresarbeitszahl | J28: =FIXED(Berechnung!$E$161,1) -> 3,8 | K28: JAZ
A29: 2 | B29: Typenbezeichnung_3 | C29: =IF($C$25="AUTO435","---","BITTE EINTRAGEN") -> BITTE EINTRAGEN | H29: 2 | I29: Simulationsberechnung | J29: --- | K29: JAZ bei Simulationsrechnung, immer leer
A30: 1 | B30: pumpenart | C30: =IF(Berechnung!B34=Berechnung!B37,"AUTO436",IF(Berechnung!B34=Berechnung!B39,"AUTO439",IF(Berechnung!H34=Berechnung!H40,"AUTO441",IF(Berechnung!H34=Berechnung!H39,"AUTO437","AUTO438")))) -> AUTO436 | D30: Luft=AUTO436, Kollektor=AUTO437, Sonde=AUTO438, Wasser=AUTO439, Direktverdampfer=AUTO440, Sonstige = AUTO441 | H30: 3 | I30: opt66 | J30: =IF(AND(Berechnung!$D$6=Berechnung!$D$9,Berechnung!$L$34=Berechnung!$L$37),TRUE,FALSE) -> TRUE | K30: Kombinierte Warmwasserbereitung und Raumheizung von Gebäuden
A31: 2 | B31: Erdsondenbohrung | C31: =IF($C$30="AUTO438","BITTE EINTRAGEN","---") -> --- | D31: wenn Sonde gewählt | H31: 3 | I31: opt66a | J31: =IF(AND(Berechnung!$D$6=Berechnung!$D$9,Berechnung!$N$54=TRUE),TRUE,FALSE) -> FALSE | K31: Raumheizung von Gebäuden  die Warmwasserbereitung des Gebäudes erfolgt zu einem wesentlichen Teil durch andere erneuerbare Energien
A32: 2 | B32: Bezeichnung | C32: =IF(Berechnung!H34=Berechnung!H40,"Erdwärmekörbe","---") -> --- | D32: Erdwärmekörbe | H32: 3 | I32: opt66b | J32: =IF(Berechnung!$D$6=Berechnung!$D$10,TRUE,FALSE) -> FALSE | K32: Raumheizung von Nichtwohngebäuden
A33: 1 | B33: verteilung | C33: =IF(AND(Berechnung!G34=Berechnung!G37,Berechnung!F34=Berechnung!F42),"Pg3_Obj1",IF(Berechnung!G34=Berechnung!G43,"Pg3_Obj1",IF(AND(Berechnung!G34=Berechnung!G37,Berechnung!F34<>Berechnung!F42),"Pg3_Obj2",IF(OR(Berechnung!G34=Berechnung!G39,Berechnung!G34=Berechnung!G42),"Pg3_Obj3",IF(Berechnung!G34=Berechnung!G38,"Pg3_Obj5","Pg3_Obj4"))))) -> Pg3_Obj1 | D33: 1=Radiatoren, 2=Niedrigtempradiatoren, 3=FBH,4=Wand/Decke, 5=Warmluft | H33: 3 | I33: opt66c | J33: FALSE | K33: Bereitstellung von Wärme für Wärmenetze, immer falsch
A34: 3 | B34: Kombinationsbonus1 | C34: =IF(AND(Berechnung!F27=3,Berechnung!P181=TRUE),TRUE,FALSE) -> FALSE | D34: Checkbox Kombibonus mit Solaranlage | H34: 3 | I34: waermeverteilung | J34: =IF(OR(Berechnung!G34=Berechnung!G39,Berechnung!G34=Berechnung!G40,Berechnung!G34=Berechnung!G41,Berechnung!G34=Berechnung!G42),TRUE,FALSE) -> FALSE | K34: Wahr=Flächenheizung, falsch=Sonstiges
A35: 3 | B35: Kombinationsbonus2 | C35: FALSE | D35: Kombibonus WP mit Biomasse immer auf falsch | H35: 2 | I35: Baujahr | J35: =IF(Berechnung!G6=Berechnung!G9,YEAR(TODAY()),"BITTE EINTRAGEN") -> BITTE EINTRAGEN
A36: =IF(AND(C34=FALSE,C35=FALSE),99,1) -> 99 | B36: Foerderantrag | C36: Pg3_Obj8 | D36: Pg6_Obj8=Förderantrag liegt bei, Pg6_Obj9=Solarantrag wurde schon gestellt | H36: 1 | I36: vorhanden | J36: =IF(Berechnung!$G$6=Berechnung!$G$10,"Pg4_Obj4","Pg4_Obj5") -> Pg4_Obj4 | K36: alte Heizung vorhanden?
A37: 2 | B37: AktenzeichenBMWP | C37: BITTE EINTRAGEN | D37: Nummer des bereits gestellten Solarantrages | H37: 2 | I37: Art | J37: =IF(Berechnung!$G$6=Berechnung!$G$10,"BITTE EINTRAGEN","---") -> BITTE EINTRAGEN
A38: 3 | B38: KombinationsbonusErrichtungSolaranlage | C38: FALSE | D38: PV+Thermie, immer Tool immer falsch | H38: 2 | I38: Installationsdatum_1 | J38: =IF(Berechnung!$G$6=Berechnung!$G$10,"BITTE EINTRAGEN","---") -> BITTE EINTRAGEN
A39: 3 | B39: KombinationsbonusAnschlussWaermenetz | C39: FALSE | D39: PV+Thermie, immer Tool immer falsch | H39: 2 | I39: Hersteller_1 | J39: =IF(Berechnung!$G$6=Berechnung!$G$10,"BITTE EINTRAGEN","---") -> BITTE EINTRAGEN
A40: 3 | B40: ZusatzfoerderungLastmanagementfaehigkeit | C40: =Berechnung!AN181 -> TRUE | D40: Ja/Nein | H40: 2 | I40: Typenbezeichnung_1 | J40: =IF(Berechnung!$G$6=Berechnung!$G$10,"BITTE EINTRAGEN","---") -> BITTE EINTRAGEN
A41: 3 | B41: ZusatzfoerderungOptimierung | C41: =Berechnung!AZ181 -> FALSE | D41: Ja/Nein | H41: 1 | I41: gebart | J41: =IF(Berechnung!$D$6=Berechnung!$D$9,"Pg4_Obj10","Pg4_Obj11") -> Pg4_Obj10
A42: 3 | B42: Gebaeudeeffizienzbonus | C42: =Berechnung!E229 -> FALSE | D42: Ja=Effizienzbonus | H42: 2 | I42: AnteilWohnflaeche | J42: =IF(Berechnung!$D$6=Berechnung!$D$9,100,0) -> 100 | K42: Anteil Wohnfläche (für Mischgebäude, aktuell nicht wählbar im Tool)
A43: 3 | B43: APEE | C43: =Berechnung!BF181 -> FALSE | D43: Ja=Effizienzbonus | H43: 2 | I43: AnteilNutzflaeche | J43: =IF(Berechnung!$D$6=Berechnung!$D$10,100,0) -> 0 | K43: Anteil Nutzfläche
A44: 3 | B44: Kumulierung | C44: FALSE | D44: Sonstige Zuschüsse, immer nein | H44: 2 | I44: Heizlast | J44: BITTE EINTRAGEN
A45: 2 | B45: Zuschuss | C45: FALLS SONSTIGE ZUSCHÜSSE GEWÄHRT DANN BITTE EINTRAGEN | D45: Textfeld Art des kummulierten Zuschusses | H45: 2 | I45: Datum_3 | J45: =TEXT(TODAY(),"TT.MM.JJJJ") -> 07.08.2017
A46: 2 | B46: Datum_1 | C46: =TEXT(TODAY(),"TT.MM.JJJJ") -> 07.08.2017 | D46: heutiges Datum | H46: 2 | I46: Datum_4 | J46: =TEXT(TODAY(),"TT.MM.JJJJ") -> 07.08.2017
A47: 2 | B47: Anrede_4 | C47: HERR / FRAU
A48: 2 | B48: Vorname_4 | C48: BITTE EINTRAGEN
A49: 2 | B49: Nachname_4 | C49: BITTE EINTRAGEN
A50: 2 | B50: Firmenname_4 | C50: BITTE EINTRAGEN
A51: 2 | B51: Strasse_4 | C51: BITTE EINTRAGEN
A52: 2 | B52: Postleitzahl_4 | C52: EINTRAGEN
A53: 2 | B53: Ort_4 | C53: BITTE EINTRAGEN
A54: 2 | B54: Telefon_4 | C54: EINTRAGEN (OPTIONAL)
A55: 2 | B55: EMailAdresse_4 | C55: EINTRAGEN (OPTIONAL)
A56: 6 | B56: Eigenmontage | C56: FALSE | D56: nie anhaken
A57: 2 | B57: Anrede_5 | C57: HERR / FRAU
A58: 2 | B58: Vorname_5 | C58: BITTE EINTRAGEN
A59: 2 | B59: Nachname_5 | C59: BITTE EINTRAGEN
A60: 2 | B60: Strasse_5 | C60: BITTE EINTRAGEN
A61: 2 | B61: Postleitzahl_5 | C61: =TEXT(Berechnung!C13,"00000") -> 04... | D61: Standort Anlage
A62: 2 | B62: Ort_5 | C62: =Berechnung!C14 -> Leipzig | D62: Standort Anlage
A63: 2 | B63: Inbetriebnahme_6 | C63: BITTE EINTRAGEN | D63: Inbetriebnahmedatum leer lassen
A64: 2 | B64: Hersteller_6 | C64: =Berechnung!$G$271 -> STIEBEL ELTRON GmbH & Co. KG | D64: Hersteller Wärmepumpe
A65: 2 | B65: Typbezeichnung_6 | C65: =Berechnung!C34 -> WPL 25 A | D65: Typ-WP
A66: 3 | B66: StromGaszaehler | C66: TRUE | D66: Stromzähler immer eingebaut
A67: 3 | B67: Waermemengenzaehler | C67: =Berechnung!W38 -> TRUE | D67: Wahr = WMZ gewählt bzw. eingebaut, falsch=kein WMZ
A68: 3 | B68: opt4a | C68: =IF(AND(Berechnung!$D$6=Berechnung!$D$9,Berechnung!$L$34=Berechnung!$L$37),TRUE,FALSE) -> TRUE | D68: Kombinierte Warmwasserbereitung und Raumheizung von Gebäuden
A69: 3 | B69: opt4b | C69: =IF(AND(Berechnung!$D$6=Berechnung!$D$9,Berechnung!$N$54=TRUE),TRUE,FALSE) -> FALSE | D69: Raumheizung von Gebäuden  die Warmwasserbereitung des Gebäudes erfolgt zu einem wesentlichen Teil durch andere erneuerbare Energien
A70: 3 | B70: opt4c | C70: =IF(Berechnung!$D$6=Berechnung!$D$10,TRUE,FALSE) -> FALSE | D70: Raumheizung von Nichtwohngebäuden
A71: 3 | B71: opt4d | C71: FALSE | D71: Bereitstellung von Wärme für Wärmenetze, immer falsch
A72: 2 | B72: Art_7 | C72: =IF(Berechnung!$G$6=Berechnung!$G$10,"BITTE AUSFÜLLEN","---") -> BITTE AUSFÜLLEN | D72: Alte Heizung
A73: 2 | B73: Installation_7 | C73: =IF(Berechnung!$G$6=Berechnung!$G$10,"BITTE AUSFÜLLEN","---") -> BITTE AUSFÜLLEN | D73: Alte Heizung
A74: 2 | B74: Hersteller_7 | C74: =IF(Berechnung!$G$6=Berechnung!$G$10,"BITTE AUSFÜLLEN","---") -> BITTE AUSFÜLLEN | D74: Alte Heizung
A75: 2 | B75: Typbezeichnung_7 | C75: =IF(Berechnung!$G$6=Berechnung!$G$10,"BITTE AUSFÜLLEN","---") -> BITTE AUSFÜLLEN | D75: Alte Heizung
A76: 3 | B76: HydraulischerAbgleichwirtschaftlich | C76: TRUE | D76: Haken bei Hydraulischem Abgleich durchgeführt immer setzen
A77: 3 | B77: Heizungspaketbonus | C77: =Berechnung!BF181 -> FALSE | D77: Wenn APEE-Bonus möglich dann Haken setzen, sonst nicht
A78: 3 | B78: AnschlussanWaermenetz | C78: FALSE | D78: WärmenetzANschluss WP an Wärmenetz immer auf falsch
A79: 2 | B79: Gesamtspeichervolumen | C79: =IF(Berechnung!AN181=TRUE,FIXED(Berechnung!G240,0),"---") -> 500
A80: 2 | B80: Errichtung | C80: =IF(Berechnung!AN181=TRUE,"BITTE AUSFÜLLEN","---") -> BITTE AUSFÜLLEN
A81: 3 | B81: Solarkollektoranlage | C81: FALSE | D81: Checkbox Solar für Wärmequelle, vorerst immer leer
A82: 2 | B82: Inbetriebnahme_8 | C82: --- | D82: Angabe zu PV immer leer
A83: 2 | B83: Hersteller_8 | C83: --- | D83: Angabe zu PV immer leer
A84: 2 | B84: Typbezeichnung_8 | C84: --- | D84: Angabe zu PV immer leer
A85: 2 | B85: AnzahlKollektoren_8 | C85: --- | D85: Angabe zu PV immer leer
A86: 2 | B86: Solarkollektoranlage_8 | C86: --- | D86: Angabe zu PV immer leer
A87: 1 | B87: Heizungsvorlauftemperatur | C87: =IF(Berechnung!F34=Berechnung!F42,"Pg7_Obj7","Pg7_Obj8") -> Pg7_Obj7 | D87: Obj7 = 55°C, Obj8 = Andere
A88: 2 | B88: Temperatur | C88: =IF(Berechnung!F34=Berechnung!F42,"---",Berechnung!F34) -> --- | D88: Abweichende VL-Temp
A89: 2 | B89: Nachweis | C89: =IF(Berechnung!F34=Berechnung!F42,"---",IF(Berechnung!G34=Berechnung!G38,"Gebläsekonvektoren",IF(Berechnung!G34=Berechnung!G37,"Niedrigtemperaturheizkörper",Berechnung!G34))) -> ---
A90: 2 | B90: tempdiff_1 | C90: =FIXED(VLOOKUP(Berechnung!C34,Leistungsdaten!G:H,2,FALSE),1) -> 5,0 | D90: Temperaturdifferenz am Verflüssiger bei Prüfstandsmessung nach DIN EN 14511 [K]
A91: 2 | B91: tempdiff_2 | C91: =IF(OR(Berechnung!G34=Berechnung!G39,Berechnung!G34=Berechnung!G40,Berechnung!G34=Berechnung!G41,Berechnung!G34=Berechnung!G42),"7,0","10,0") -> 10,0 | D91: Temperaturdifferenz am Verflüssiger bei Betrieb [K]
A92: =IF(Berechnung!B34<>Berechnung!B37,99,1) -> 1 | B92: Normaussentemperatur | C92: =IF(Berechnung!B34<>Berechnung!B37,"",IF(Berechnung!M6<=-16,"Pg7_Obj16",IF(OR(Berechnung!M6=-14,Berechnung!M6=-15),"Pg7_Obj15",IF(OR(Berechnung!M6=-12,Berechnung!M6=-13),"Pg7_Obj14","Pg7_Obj13")))) -> Pg7_Obj15 | D92: Radios für Temperaturbereiche
A93: =IF(Berechnung!B34<>Berechnung!B37,99,1) -> 1 | B93: Heizgrenztemperatur | C93: =IF(LEFT(Berechnung!N6,2)*1=15,"Pg7_Obj17",IF(LEFT(Berechnung!N6,2)*1=12,"Pg7_Obj18","Pg7_Obj19")) -> Pg7_Obj17 | D93: 10/12/15 °C
A94: =IF(Berechnung!B34<>Berechnung!B37,99,2) -> 2 | B94: A7W35 | C94: =Berechnung!H207 -> 2,93 | D94: A-7/W35
A95: =IF(Berechnung!B34<>Berechnung!B37,99,2) -> 2 | B95: A2W35 | C95: =Berechnung!H208 -> 4,17 | D95: A2/W35
A96: =IF(Berechnung!B34<>Berechnung!B37,99,2) -> 2 | B96: A10W35 | C96: =Berechnung!H209 -> 5,16 | D96: A10/W35
A97: =IF(Berechnung!$B$34<>Berechnung!$B$39,99,2) -> 99 | B97: Grundwassertemperatur | C97: =Berechnung!P34 -> 2 | D97: Grundwassertemp
A98: =IF(Berechnung!$B$34<>Berechnung!$B$39,99,1) -> 99 | B98: Zwischenkreis | C98: =IF(Berechnung!B54=TRUE,"Pg7_Obj25","Pg7_Obj24") -> Pg7_Obj24 | D98: Anlage mit Zwischen-WT ? Vorerst immer Ja
A99: =IF(Berechnung!$B$34<>Berechnung!$B$39,99,1) -> 99 | B99: Leistungsaufnahme | C99: =IF(Berechnung!J140=Berechnung!H143,"Pg7_Obj26","Pg7_Obj27") -> Pg7_Obj26 | D99: Leistungsaufnahme Grundwasserpumpe nach VDI? Ja=26, Nein=27
A100: =IF(Berechnung!$B$34<>Berechnung!$B$39,99,2) -> 99 | B100: AngabeHersteller | C100: =IF(C99="Pg10_Obj26","---",IF(Berechnung!B54=TRUE,Berechnung!K138*1000&" W ("&Berechnung!K139&")",Berechnung!J138*1000&" W ("&Berechnung!J139&")")) -> 1042,5 W (-) | D100: Pumpenleistung Herstellerangabe
A101: =IF(Berechnung!$B$34<>Berechnung!$B$39,99,2) -> 99 | B101: W10W35 | C101: =Berechnung!H207&" (B0/W35)" -> 2,93 (B0/W35) | D101: Wasser/Wasser
A102: =IF(Berechnung!$B$34<>Berechnung!$B$38,99,2) -> 99 | B102: MittelwertderminimalenSoleErdreichtemperatur | C102: =Berechnung!P34 -> 2 | D102: Sole/Wasser
A103: =IF(Berechnung!$B$34<>Berechnung!$B$38,99,1) -> 99 | B103: Leistungsaufnahme_2 | C103: =IF(Berechnung!I136=Berechnung!H143,"Pg8_Obj2","Pg8_Obj3") -> Pg8_Obj2 | D103: Obj2 = nach VDI, Obj3 = Manuell
A104: =IF(Berechnung!$B$34<>Berechnung!$B$38,99,2) -> 99 | B104: AngabeHersteller_2 | C104: =IF(C103="Pg11_Obj2","---",Berechnung!I134*1000&" W ("&Berechnung!I135&")") -> 5160 W (-) | D104: Pumpenleistung manuell
A105: =IF(Berechnung!$B$34<>Berechnung!$B$38,99,2) -> 99 | B105: SoleB0W35 | C105: =Berechnung!H207 -> 2,93 | D105: COP
A106: =IF(Berechnung!$B$34<>Berechnung!$B$38,99,2) -> 99 | B106: DirektverdampfungE1W35 | C106: --- | D106: immer leer
A107: 2 | B107: JahresarbeitszahlRaumheizung | C107: =FIXED(Berechnung!E158,1) -> 3,9 | D107: Jahresarbeitszahl Heizung
A108: 2 | B108: JahresarbeitszahlWarmwasserbereitung | C108: =FIXED(Berechnung!E160,1) -> 4,5 | D108: Jahresarbeitszahl Warmwasser
A109: 1 | B109: Warmwasserbereitung | C109: =IF(Berechnung!R34=0.18,"AUTO573","AUTO574") -> AUTO573 | D109: Anteil WWB 573=Standard VDI, 574=Manuell
A110: 2 | B110: AngabeWert | C110: =IF(Berechnung!R34=0.18,"---",Berechnung!R34*100) -> --- | D110: Manueller Anteil WWB
A111: 1 | B111: Betriebsweise | C111: =IF(Berechnung!$D$34=Berechnung!$D$37,"AUTO575",IF(Berechnung!$D$34=Berechnung!$D$38,"AUTO577","AUTO576")) -> AUTO577 | D111: Betriebsweise: 575=Monovalent. 577=Monoenerg., 576=bivalent
A112: 2 | B112: Energietraeger | C112: =IF(Berechnung!D34=Berechnung!D39,"BITTE EINTRAGEN","---") -> --- | D112: Typ 2. WE
A113: 2 | B113: Nennwaermeleistung | C113: =IF(Berechnung!D34=Berechnung!D39,"BITTE EINTRAGEN","---") -> --- | D113: Leistung 2. WE
A114: =IF(Berechnung!D34=Berechnung!D37,99,1) -> 1 | B114: Betriebsweise_2 | C114: AUTO578 | D114: Parallel oder alternativ (immer parallel ankreuzen, bei monovalent nichts wählen)
A115: 2 | B115: Deckungsanteil | C115: =FIXED(Berechnung!Q34,2) -> 0,98 | D115: Deckungsanteil WP
A116: 2 | B116: Bivalenzpunkt | C116: =IF(Berechnung!D34=Berechnung!D37,"-",Berechnung!E34) -> -5 °C | D116: Bivalenzpunkt
A117: 2 | B117: GesamtJahresarbeitszahl | C117: =FIXED(Berechnung!E161,1) -> 3,8 | D117: Gesamt-JAZ
A118: 2 | B118: Datum_2 | C118: =TEXT(TODAY(),"TT.MM.JJJJ") -> 07.08.2017 | D118: Datum für FHW
A119: 2 | B119: Datum_3 | C119: =TEXT(TODAY(),"TT.MM.JJJJ") -> 07.08.2017 | D119: Datum Antragsteller
A120: =IF(Berechnung!$E$222=FALSE,99,2) -> 99 | B120: SummederNettobetraege | C120: =Berechnung!U6&" €" -> 5000 €
A121: =IF(Berechnung!$E$222=FALSE,99,2) -> 99 | B121: Datum_5 | C121: =TEXT(TODAY(),"TT.MM.JJJJ") -> 07.08.2017
A122: =IF(Berechnung!$E$222=FALSE,99,2) -> 99 | B122: Datum_6 | C122: 07.08.2017

Sheet Tabellen VDI4650 (hidden)
B5: JAZ Luft-Wasser - Korrekturfaktor F1
B6: Heizgrenze | C6: Norm-Außentemp. | D6: 30 °C | E6: 35 °C | F6: 40 °C | G6: 45 °C | H6: 50 °C | I6: 55 °C | J6: Bei Vorlauftemp. | K6: bei Norm-Außentemp.
B7: 10 °C | C7: -10 | D7: 0.109 | E7: 0.103 | F7: 0.097 | G7: 0.091 | H7: 0.085 | I7: 0.08 | J7: =HLOOKUP(Berechnung!$F$34,$D$6:$I$33,L7,FALSE) -> 0.08 | K7: =VLOOKUP(Berechnung!$M$6,$C$7:$J$15,8,FALSE) -> 0.154 | L7: 2
C8: -11 | D8: =AVERAGE(D7,D9) -> 0.1345 | E8: 0.127 | F8: 0.12 | G8: 0.113 | H8: 0.106 | I8: 0.0995 | J8: =HLOOKUP(Berechnung!$F$34,$D$6:$I$33,L8,FALSE) -> 0.0995 | L8: 3
C9: -12 | D9: 0.16 | E9: 0.151 | F9: 0.143 | G9: 0.135 | H9: 0.127 | I9: 0.119 | J9: =HLOOKUP(Berechnung!$F$34,$D$6:$I$33,L9,FALSE) -> 0.119 | L9: 4
C10: -13 | D10: =AVERAGE(D9,D11) -> 0.182 | E10: 0.1725 | F10: 0.1635 | G10: 0.1545 | H10: 0.1455 | I10: 0.1365 | J10: =HLOOKUP(Berechnung!$F$34,$D$6:$I$33,L10,FALSE) -> 0.1365 | L10: 5
C11: -14 | D11: 0.204 | E11: 0.194 | F11: 0.184 | G11: 0.174 | H11: 0.164 | I11: 0.154 | J11: =HLOOKUP(Berechnung!$F$34,$D$6:$I$33,L11,FALSE) -> 0.154 | L11: 6
C12: -15 | D12: =AVERAGE(D11,D13) -> 0.261 | E12: 0.2485 | F12: 0.236 | G12: 0.2235 | H12: 0.2115 | I12: 0.199 | J12: =HLOOKUP(Berechnung!$F$34,$D$6:$I$33,L12,FALSE) -> 0.199 | L12: 7
C13: -16 | D13: 0.318 | E13: 0.303 | F13: 0.288 | G13: 0.273 | H13: 0.259 | I13: 0.244 | J13: =HLOOKUP(Berechnung!$F$34,$D$6:$I$33,L13,FALSE) -> 0.244 | L13: 8
C14: -17 | D14: =AVERAGE(D13,D15) -> 0.318 | E14: 0.303 | F14: 0.288 | G14: 0.273 | H14: 0.259 | I14: 0.244 | J14: =HLOOKUP(Berechnung!$F$34,$D$6:$I$33,L14,FALSE) -> 0.244 | L14: 9
C15: -18 | D15: 0.318 | E15: 0.303 | F15: 0.288 | G15: 0.273 | H15: 0.259 | I15: 0.244 | J15: =HLOOKUP(Berechnung!$F$34,$D$6:$I$33,L15,FALSE) -> 0.244 | L15: 10
B16: 12 °C | C16: -10 | D16: 0.089 | E16: 0.085 | F16: 0.08 | G16: 0.075 | H16: 0.07 | I16: 0.066 | J16: =HLOOKUP(Berechnung!$F$34,$D$6:$I$33,L16,FALSE) -> 0.066 | K16: =VLOOKUP(Berechnung!$M$6,$C$16:$J$24,8,FALSE) -> 0.133 | L16: 11
C17: -11 | D17: =AVERAGE(D16,D18) -> 0.112 | E17: 0.1065 | F17: 0.1005 | G17: 0.0945 | H17: 0.089 | I17: 0.0835 | J17: =HLOOKUP(Berechnung!$F$34,$D$6:$I$33,L17,FALSE) -> 0.0835 | L17: 12
C18: -12 | D18: 0.135 | E18: 0.128 | F18: 0.121 | G18: 0.114 | H18: 0.108 | I18: 0.101 | J18: =HLOOKUP(Berechnung!$F$34,$D$6:$I$33,L18,FALSE) -> 0.101 | L18: 13
C19: -13 | D19: =AVERAGE(D18,D20) -> 0.1555 | E19: 0.1475 | F19: 0.1395 | G19: 0.132 | H19: 0.1245 | I19: 0.117 | J19: =HLOOKUP(Berechnung!$F$34,$D$6:$I$33,L19,FALSE) -> 0.117 | L19: 14
C20: -14 | D20: 0.176 | E20: 0.167 | F20: 0.158 | G20: 0.15 | H20: 0.141 | I20: 0.133 | J20: =HLOOKUP(Berechnung!$F$34,$D$6:$I$33,L20,FALSE) -> 0.133 | L20: 15
C21: -15 | D21: =AVERAGE(D20,D22) -> 0.2275 | E21: 0.2165 | F21: 0.2055 | G21: 0.195 | H21: 0.184 | I21: 0.1735 | J21: =HLOOKUP(Berechnung!$F$34,$D$6:$I$33,L21,FALSE) -> 0.1735 | L21: 16
C22: -16 | D22: 0.279 | E22: 0.266 | F22: 0.253 | G22: 0.24 | H22: 0.227 | I22: 0.214 | J22: =HLOOKUP(Berechnung!$F$34,$D$6:$I$33,L22,FALSE) -> 0.214 | L22: 17
C23: -17 | D23: =AVERAGE(D22,D24) -> 0.279 | E23: 0.266 | F23: 0.253 | G23: 0.24 | H23: 0.227 | I23: 0.214 | J23: =HLOOKUP(Berechnung!$F$34,$D$6:$I$33,L23,FALSE) -> 0.214 | L23: 18
C24: -18 | D24: 0.279 | E24: 0.266 | F24: 0.253 | G24: 0.24 | H24: 0.227 | I24: 0.214 | J24: =HLOOKUP(Berechnung!$F$34,$D$6:$I$33,L24,FALSE) -> 0.214 | L24: 19
B25: 15 °C | C25: -10 | D25: 0.07 | E25: 0.066 | F25: 0.062 | G25: 0.059 | H25: 0.055 | I25: 0.051 | J25: =HLOOKUP(Berechnung!$F$34,$D$6:$I$33,L25,FALSE) -> 0.051 | K25: =VLOOKUP(Berechnung!$M$6,$C$25:$J$33,8,FALSE) -> 0.109 | L25: 20
C26: -11 | D26: =AVERAGE(D25,D27) -> 0.0895 | E26: 0.085 | F26: 0.08 | G26: 0.0755 | H26: 0.071 | I26: 0.066 | J26: =HLOOKUP(Berechnung!$F$34,$D$6:$I$33,L26,FALSE) -> 0.066 | L26: 21
C27: -12 | D27: 0.109 | E27: 0.104 | F27: 0.098 | G27: 0.092 | H27: 0.087 | I27: 0.081 | J27: =HLOOKUP(Berechnung!$F$34,$D$6:$I$33,L27,FALSE) -> 0.081 | L27: 22
C28: -13 | D28: =AVERAGE(D27,D29) -> 0.1265 | E28: 0.1205 | F28: 0.114 | G28: 0.1075 | H28: 0.1015 | I28: 0.095 | J28: =HLOOKUP(Berechnung!$F$34,$D$6:$I$33,L28,FALSE) -> 0.095 | L28: 23
C29: -14 | D29: 0.144 | E29: 0.137 | F29: 0.13 | G29: 0.123 | H29: 0.116 | I29: 0.109 | J29: =HLOOKUP(Berechnung!$F$34,$D$6:$I$33,L29,FALSE) -> 0.109 | L29: 24
C30: -15 | D30: =AVERAGE(D29,D31) -> 0.1895 | E30: 0.1805 | F30: 0.1715 | G30: 0.1625 | H30: 0.1535 | I30: 0.1445 | J30: =HLOOKUP(Berechnung!$F$34,$D$6:$I$33,L30,FALSE) -> 0.1445 | L30: 25
C31: -16 | D31: 0.235 | E31: 0.224 | F31: 0.213 | G31: 0.202 | H31: 0.191 | I31: 0.18 | J31: =HLOOKUP(Berechnung!$F$34,$D$6:$I$33,L31,FALSE) -> 0.18 | L31: 26
C32: -17 | D32: =AVERAGE(D31,D33) -> 0.235 | E32: 0.224 | F32: 0.213 | G32: 0.202 | H32: 0.191 | I32: 0.18 | J32: =HLOOKUP(Berechnung!$F$34,$D$6:$I$33,L32,FALSE) -> 0.18 | L32: 27
C33: -18 | D33: 0.235 | E33: 0.224 | F33: 0.213 | G33: 0.202 | H33: 0.191 | I33: 0.18 | J33: =HLOOKUP(Berechnung!$F$34,$D$6:$I$33,L33,FALSE) -> 0.18 | L33: 28
B35: JAZ Luft-Wasser - Korrekturfaktor F2
B36: Heizgrenze | C36: Stadt | D36: 30 °C | E36: 35 °C | F36: 40 °C | G36: 45 °C | H36: 50 °C | I36: 55 °C | J36: Bei Vorlauftemp. | K36: bei Norm-Außentemp. | L36: Hilfsspalte
B37: 10 °C | C37: -10 | D37: 0.942 | E37: 0.903 | F37: 0.863 | G37: 0.824 | H37: 0.785 | I37: 0.745 | J37: =HLOOKUP(Berechnung!$F$34,$D$36:$I$63,L37,FALSE) -> 0.745 | K37: =VLOOKUP(Berechnung!$M$6,$C$37:$J$45,8,FALSE) -> 0.679 | L37: 2
C38: -11 | D38: =AVERAGE(D37,D39) -> 0.9155 | E38: 0.878 | F38: 0.84 | G38: 0.8025 | H38: 0.765 | I38: 0.727 | J38: =HLOOKUP(Berechnung!$F$34,$D$36:$I$63,L38,FALSE) -> 0.727 | L38: 3
C39: -12 | D39: 0.889 | E39: 0.853 | F39: 0.817 | G39: 0.781 | H39: 0.745 | I39: 0.709 | J39: =HLOOKUP(Berechnung!$F$34,$D$36:$I$63,L39,FALSE) -> 0.709 | L39: 4
C40: -13 | D40: =AVERAGE(D39,D41) -> 0.867 | E40: 0.8325 | F40: 0.798 | G40: 0.7635 | H40: 0.7285 | I40: 0.694 | J40: =HLOOKUP(Berechnung!$F$34,$D$36:$I$63,L40,FALSE) -> 0.694 | L40: 5
C41: -14 | D41: 0.845 | E41: 0.812 | F41: 0.779 | G41: 0.746 | H41: 0.712 | I41: 0.679 | J41: =HLOOKUP(Berechnung!$F$34,$D$36:$I$63,L41,FALSE) -> 0.679 | L41: 6
C42: -15 | D42: =AVERAGE(D41,D43) -> 0.7885 | E42: 0.758 | F42: 0.7275 | G42: 0.6975 | H42: 0.6665 | I42: 0.636 | J42: =HLOOKUP(Berechnung!$F$34,$D$36:$I$63,L42,FALSE) -> 0.636 | L42: 7
C43: -16 | D43: 0.732 | E43: 0.704 | F43: 0.676 | G43: 0.649 | H43: 0.621 | I43: 0.593 | J43: =HLOOKUP(Berechnung!$F$34,$D$36:$I$63,L43,FALSE) -> 0.593 | L43: 8
C44: -17 | D44: =AVERAGE(D43,D45) -> 0.732 | E44: 0.704 | F44: 0.676 | G44: 0.649 | H44: 0.621 | I44: 0.593 | J44: =HLOOKUP(Berechnung!$F$34,$D$36:$I$63,L44,FALSE) -> 0.593 | L44: 9
C45: -18 | D45: 0.732 | E45: 0.704 | F45: 0.676 | G45: 0.649 | H45: 0.621 | I45: 0.593 | J45: =HLOOKUP(Berechnung!$F$34,$D$36:$I$63,L45,FALSE) -> 0.593 | L45: 10
B46: 12 °C | C46: -10 | D46: 0.891 | E46: 0.854 | F46: 0.817 | G46: 0.781 | H46: 0.744 | I46: 0.707 | J46: =HLOOKUP(Berechnung!$F$34,$D$36:$I$63,L46,FALSE) -> 0.707 | K46: =VLOOKUP(Berechnung!$M$6,$C$46:$J$54,8,FALSE) -> 0.666 | L46: 11
C47: -11 | D47: =AVERAGE(D46,D48) -> 0.875 | E47: 0.839 | F47: 0.803 | G47: 0.768 | H47: 0.732 | I47: 0.6965 | J47: =HLOOKUP(Berechnung!$F$34,$D$36:$I$63,L47,FALSE) -> 0.6965 | L47: 12
C48: -12 | D48: 0.859 | E48: 0.824 | F48: 0.789 | G48: 0.755 | H48: 0.72 | I48: 0.686 | J48: =HLOOKUP(Berechnung!$F$34,$D$36:$I$63,L48,FALSE) -> 0.686 | L48: 13
C49: -13 | D49: =AVERAGE(D48,D50) -> 0.843 | E49: 0.8095 | F49: 0.776 | G49: 0.7425 | H49: 0.709 | I49: 0.676 | J49: =HLOOKUP(Berechnung!$F$34,$D$36:$I$63,L49,FALSE) -> 0.676 | L49: 14
C50: -14 | D50: 0.827 | E50: 0.795 | F50: 0.763 | G50: 0.73 | H50: 0.698 | I50: 0.666 | J50: =HLOOKUP(Berechnung!$F$34,$D$36:$I$63,L50,FALSE) -> 0.666 | L50: 15
C51: -15 | D51: =AVERAGE(D50,D52) -> 0.7775 | E51: 0.7475 | F51: 0.718 | G51: 0.6875 | H51: 0.658 | I51: 0.628 | J51: =HLOOKUP(Berechnung!$F$34,$D$36:$I$63,L51,FALSE) -> 0.628 | L51: 16
C52: -16 | D52: 0.728 | E52: 0.7 | F52: 0.673 | G52: 0.645 | H52: 0.618 | I52: 0.59 | J52: =HLOOKUP(Berechnung!$F$34,$D$36:$I$63,L52,FALSE) -> 0.59 | L52: 17
C53: -17 | D53: =AVERAGE(D52,D54) -> 0.728 | E53: 0.7 | F53: 0.673 | G53: 0.645 | H53: 0.618 | I53: 0.59 | J53: =HLOOKUP(Berechnung!$F$34,$D$36:$I$63,L53,FALSE) -> 0.59 | L53: 18
C54: -18 | D54: 0.728 | E54: 0.7 | F54: 0.673 | G54: 0.645 | H54: 0.618 | I54: 0.59 | J54: =HLOOKUP(Berechnung!$F$34,$D$36:$I$63,L54,FALSE) -> 0.59 | L54: 19
B55: 15 °C | C55: -10 | D55: 0.799 | E55: 0.766 | F55: 0.734 | G55: 0.701 | H55: 0.668 | I55: 0.635 | J55: =HLOOKUP(Berechnung!$F$34,$D$36:$I$63,L55,FALSE) -> 0.635 | K55: =VLOOKUP(Berechnung!$M$6,$C$55:$J$63,8,FALSE) -> 0.626 | L55: 20
C56: -11 | D56: =AVERAGE(D55,D57) -> 0.7965 | E56: 0.764 | F56: 0.732 | G56: 0.6995 | H56: 0.6675 | I56: 0.635 | J56: =HLOOKUP(Berechnung!$F$34,$D$36:$I$63,L56,FALSE) -> 0.635 | L56: 21
C57: -12 | D57: 0.794 | E57: 0.762 | F57: 0.73 | G57: 0.698 | H57: 0.667 | I57: 0.635 | J57: =HLOOKUP(Berechnung!$F$34,$D$36:$I$63,L57,FALSE) -> 0.635 | L57: 22
C58: -13 | D58: =AVERAGE(D57,D59) -> 0.785 | E58: 0.754 | F58: 0.723 | G58: 0.692 | H58: 0.6615 | I58: 0.6305 | J58: =HLOOKUP(Berechnung!$F$34,$D$36:$I$63,L58,FALSE) -> 0.6305 | L58: 23
C59: -14 | D59: 0.776 | E59: 0.746 | F59: 0.716 | G59: 0.686 | H59: 0.656 | I59: 0.626 | J59: =HLOOKUP(Berechnung!$F$34,$D$36:$I$63,L59,FALSE) -> 0.626 | L59: 24
C60: -15 | D60: =AVERAGE(D59,D61) -> 0.7355 | E60: 0.707 | F60: 0.679 | G60: 0.651 | H60: 0.623 | I60: 0.595 | J60: =HLOOKUP(Berechnung!$F$34,$D$36:$I$63,L60,FALSE) -> 0.595 | L60: 25
C61: -16 | D61: 0.695 | E61: 0.668 | F61: 0.642 | G61: 0.616 | H61: 0.59 | I61: 0.564 | J61: =HLOOKUP(Berechnung!$F$34,$D$36:$I$63,L61,FALSE) -> 0.564 | L61: 26
C62: -17 | D62: =AVERAGE(D61,D63) -> 0.695 | E62: 0.668 | F62: 0.642 | G62: 0.616 | H62: 0.59 | I62: 0.564 | J62: =HLOOKUP(Berechnung!$F$34,$D$36:$I$63,L62,FALSE) -> 0.564 | L62: 27
C63: -18 | D63: 0.695 | E63: 0.668 | F63: 0.642 | G63: 0.616 | H63: 0.59 | I63: 0.564 | J63: =HLOOKUP(Berechnung!$F$34,$D$36:$I$63,L63,FALSE) -> 0.564 | L63: 28
B65: JAZ Luft-Wasser - Korrekturfaktor F3
B66: Heizgrenze | C66: Stadt | D66: 30 °C | E66: 35 °C | F66: 40 °C | G66: 45 °C | H66: 50 °C | I66: 55 °C | J66: Bei Vorlauftemp. | K66: bei Norm-Außentemp.
B67: 10 °C | C67: -10 | D67: 0.063 | E67: 0.061 | F67: 0.059 | G67: 0.057 | H67: 0.055 | I67: 0.053 | J67: =HLOOKUP(Berechnung!$F$34,$D$66:$I$93,L67,FALSE) -> 0.053 | K67: =VLOOKUP(Berechnung!$M$6,$C$67:$J$75,8,FALSE) -> 0.036 | L67: 2
C68: -11 | D68: =AVERAGE(D67,D69) -> 0.057 | E68: 0.055 | F68: 0.053 | G68: 0.0515 | H68: 0.0495 | I68: 0.0475 | J68: =HLOOKUP(Berechnung!$F$34,$D$66:$I$93,L68,FALSE) -> 0.0475 | L68: 3
C69: -12 | D69: 0.051 | E69: 0.049 | F69: 0.047 | G69: 0.046 | H69: 0.044 | I69: 0.042 | J69: =HLOOKUP(Berechnung!$F$34,$D$66:$I$93,L69,FALSE) -> 0.042 | L69: 4
C70: -13 | D70: =AVERAGE(D69,D71) -> 0.047 | E70: 0.0455 | F70: 0.0435 | G70: 0.0425 | H70: 0.041 | I70: 0.039 | J70: =HLOOKUP(Berechnung!$F$34,$D$66:$I$93,L70,FALSE) -> 0.039 | L70: 5
C71: -14 | D71: 0.043 | E71: 0.042 | F71: 0.04 | G71: 0.039 | H71: 0.038 | I71: 0.036 | J71: =HLOOKUP(Berechnung!$F$34,$D$66:$I$93,L71,FALSE) -> 0.036 | L71: 6
C72: -15 | D72: =AVERAGE(D71,D73) -> 0.0395 | E72: 0.0385 | F72: 0.037 | G72: 0.036 | H72: 0.035 | I72: 0.0335 | J72: =HLOOKUP(Berechnung!$F$34,$D$66:$I$93,L72,FALSE) -> 0.0335 | L72: 7
C73: -16 | D73: 0.036 | E73: 0.035 | F73: 0.034 | G73: 0.033 | H73: 0.032 | I73: 0.031 | J73: =HLOOKUP(Berechnung!$F$34,$D$66:$I$93,L73,FALSE) -> 0.031 | L73: 8
C74: -17 | D74: =AVERAGE(D73,D75) -> 0.036 | E74: 0.035 | F74: 0.034 | G74: 0.033 | H74: 0.032 | I74: 0.031 | J74: =HLOOKUP(Berechnung!$F$34,$D$66:$I$93,L74,FALSE) -> 0.031 | L74: 9
C75: -18 | D75: 0.036 | E75: 0.035 | F75: 0.034 | G75: 0.033 | H75: 0.032 | I75: 0.031 | J75: =HLOOKUP(Berechnung!$F$34,$D$66:$I$93,L75,FALSE) -> 0.031 | L75: 10
B76: 12 °C | C76: -10 | D76: 0.139 | E76: 0.134 | F76: 0.13 | G76: 0.125 | H76: 0.121 | I76: 0.116 | J76: =HLOOKUP(Berechnung!$F$34,$D$66:$I$93,L76,FALSE) -> 0.116 | K76: =VLOOKUP(Berechnung!$M$6,$C$76:$J$84,8,FALSE) -> 0.082 | L76: 11
C77: -11 | D77: =AVERAGE(D76,D78) -> 0.1255 | E77: 0.121 | F77: 0.1175 | G77: 0.113 | H77: 0.1095 | I77: 0.105 | J77: =HLOOKUP(Berechnung!$F$34,$D$66:$I$93,L77,FALSE) -> 0.105 | L77: 12
C78: -12 | D78: 0.112 | E78: 0.108 | F78: 0.105 | G78: 0.101 | H78: 0.098 | I78: 0.094 | J78: =HLOOKUP(Berechnung!$F$34,$D$66:$I$93,L78,FALSE) -> 0.094 | L78: 13
C79: -13 | D79: =AVERAGE(D78,D80) -> 0.1045 | E79: 0.101 | F79: 0.098 | G79: 0.0945 | H79: 0.0915 | I79: 0.088 | J79: =HLOOKUP(Berechnung!$F$34,$D$66:$I$93,L79,FALSE) -> 0.088 | L79: 14
C80: -14 | D80: 0.097 | E80: 0.094 | F80: 0.091 | G80: 0.088 | H80: 0.085 | I80: 0.082 | J80: =HLOOKUP(Berechnung!$F$34,$D$66:$I$93,L80,FALSE) -> 0.082 | L80: 15
C81: -15 | D81: =AVERAGE(D80,D82) -> 0.0915 | E81: 0.0885 | F81: 0.086 | G81: 0.083 | H81: 0.0805 | I81: 0.0775 | J81: =HLOOKUP(Berechnung!$F$34,$D$66:$I$93,L81,FALSE) -> 0.0775 | L81: 16
C82: -16 | D82: 0.086 | E82: 0.083 | F82: 0.081 | G82: 0.078 | H82: 0.076 | I82: 0.073 | J82: =HLOOKUP(Berechnung!$F$34,$D$66:$I$93,L82,FALSE) -> 0.073 | L82: 17
C83: -17 | D83: =AVERAGE(D82,D84) -> 0.086 | E83: 0.083 | F83: 0.081 | G83: 0.078 | H83: 0.076 | I83: 0.073 | J83: =HLOOKUP(Berechnung!$F$34,$D$66:$I$93,L83,FALSE) -> 0.073 | L83: 18
C84: -18 | D84: 0.086 | E84: 0.083 | F84: 0.081 | G84: 0.078 | H84: 0.076 | I84: 0.073 | J84: =HLOOKUP(Berechnung!$F$34,$D$66:$I$93,L84,FALSE) -> 0.073 | L84: 19
B85: 15 °C | C85: -10 | D85: 0.258 | E85: 0.25 | F85: 0.242 | G85: 0.233 | H85: 0.225 | I85: 0.217 | J85: =HLOOKUP(Berechnung!$F$34,$D$66:$I$93,L85,FALSE) -> 0.217 | K85: =VLOOKUP(Berechnung!$M$6,$C$85:$J$93,8,FALSE) -> 0.16 | L85: 20
C86: -11 | D86: =AVERAGE(D85,D87) -> 0.235 | E86: 0.2275 | F86: 0.22 | G86: 0.2125 | H86: 0.205 | I86: 0.198 | J86: =HLOOKUP(Berechnung!$F$34,$D$66:$I$93,L86,FALSE) -> 0.198 | L86: 21
C87: -12 | D87: 0.212 | E87: 0.205 | F87: 0.198 | G87: 0.192 | H87: 0.185 | I87: 0.179 | J87: =HLOOKUP(Berechnung!$F$34,$D$66:$I$93,L87,FALSE) -> 0.179 | L87: 22
C88: -13 | D88: =AVERAGE(D87,D89) -> 0.2 | E88: 0.1935 | F88: 0.1875 | G88: 0.1815 | H88: 0.175 | I88: 0.1695 | J88: =HLOOKUP(Berechnung!$F$34,$D$66:$I$93,L88,FALSE) -> 0.1695 | L88: 23
C89: -14 | D89: 0.188 | E89: 0.182 | F89: 0.177 | G89: 0.171 | H89: 0.165 | I89: 0.16 | J89: =HLOOKUP(Berechnung!$F$34,$D$66:$I$93,L89,FALSE) -> 0.16 | L89: 24
C90: -15 | D90: =AVERAGE(D89,D91) -> 0.1805 | E90: 0.175 | F90: 0.17 | G90: 0.1645 | H90: 0.159 | I90: 0.1535 | J90: =HLOOKUP(Berechnung!$F$34,$D$66:$I$93,L90,FALSE) -> 0.1535 | L90: 25
C91: -16 | D91: 0.173 | E91: 0.168 | F91: 0.163 | G91: 0.158 | H91: 0.153 | I91: 0.147 | J91: =HLOOKUP(Berechnung!$F$34,$D$66:$I$93,L91,FALSE) -> 0.147 | L91: 26
C92: -17 | D92: =AVERAGE(D91,D93) -> 0.173 | E92: 0.168 | F92: 0.163 | G92: 0.158 | H92: 0.153 | I92: 0.147 | J92: =HLOOKUP(Berechnung!$F$34,$D$66:$I$93,L92,FALSE) -> 0.147 | L92: 27
C93: -18 | D93: 0.173 | E93: 0.168 | F93: 0.163 | G93: 0.158 | H93: 0.153 | I93: 0.147 | J93: =HLOOKUP(Berechnung!$F$34,$D$66:$I$93,L93,FALSE) -> 0.147 | L93: 28
B110: Korrekturfaktor Verdampfer Sole
B111: Soletemperatur | D111: 30 °C | E111: 35 °C | F111: 40 °C | G111: 45 °C | H111: 50 °C | I111: 55 °C | J111: Auswahl
B112: 0 | D112: 1.135 | E112: 1.087 | F112: 1.039 | G112: 0.99 | H112: 0.94 | I112: 0.89 | J112: =INDEX(D112:I137,MATCH(Berechnung!$P$34,B112:B137,0),MATCH(Berechnung!$F$34,$D$111:$I$111,0)) -> 0.917
B113: 1 | D113: 1.148 | E113: 1.1 | F113: 1.052 | G113: 1.003 | H113: 0.954 | I113: 0.904
B114: 2 | D114: 1.161 | E114: 1.113 | F114: 1.065 | G114: 1.016 | H114: 0.967 | I114: 0.917
B115: 3 | D115: 1.173 | E115: 1.125 | F115: 1.077 | G115: 1.028 | H115: 0.979 | I115: 0.93
B116: 4 | D116: 1.185 | E116: 1.137 | F116: 1.09 | G116: 1.041 | H116: 0.992 | I116: 0.943
B117: 5 | D117: 1.198 | E117: 1.15 | F117: 1.102 | G117: 1.053 | H117: 1.005 | I117: 0.956
B118: 6 | D118: 1.21 | E118: 1.162 | F118: 1.115 | G118: 1.065 | H118: 1.018 | I118: 0.969
B119: 7 | D119: 1.223 | E119: 1.175 | F119: 1.127 | G119: 1.078 | H119: 1.031 | I119: 0.982
B120: 8 | D120: 1.235 | E120: 1.187 | F120: 1.14 | G120: 1.09 | H120: 1.043 | I120: 0.995
B121: 9 | D121: 1.248 | E121: 1.2 | F121: 1.153 | G121: 1.102 | H121: 1.056 | I121: 1.008
B122: 10 | D122: 1.26 | E122: 1.212 | F122: 1.165 | G122: 1.115 | H122: 1.069 | I122: 1.022
B123: 11 | D123: 1.273 | E123: 1.225 | F123: 1.178 | G123: 1.127 | H123: 1.082 | I123: 1.035
B124: 12 | D124: 1.285 | E124: 1.237 | F124: 1.19 | G124: 1.14 | H124: 1.095 | I124: 1.048
B125: 13 | D125: 1.298 | E125: 1.25 | F125: 1.203 | G125: 1.152 | H125: 1.108 | I125: 1.061
B126: 14 | D126: 1.31 | E126: 1.262 | F126: 1.216 | G126: 1.165 | H126: 1.12 | I126: 1.074
B127: 15 | D127: 1.323 | E127: 1.275 | F127: 1.228 | G127: 1.177 | H127: 1.133 | I127: 1.087
B128: 16 | D128: 1.335 | E128: 1.287 | F128: 1.241 | G128: 1.189 | H128: 1.146 | I128: 1.1
B129: 17 | D129: 1.348 | E129: 1.3 | F129: 1.253 | G129: 1.202 | H129: 1.159 | I129: 1.113
B130: 18 | D130: 1.36 | E130: 1.312 | F130: 1.266 | G130: 1.214 | H130: 1.172 | I130: 1.126
B131: 19 | D131: 1.373 | E131: 1.325 | F131: 1.279 | G131: 1.227 | H131: 1.185 | I131: 1.139
B132: 20 | D132: 1.385 | E132: 1.337 | F132: 1.291 | G132: 1.239 | H132: 1.197 | I132: 1.153
B148: Korrekturfaktor Verdampfer Wasser
B149: Temp. Wasser | D149: 30 °C | E149: 35 °C | F149: 40 °C | G149: 45 °C | H149: 50 °C | I149: 55 °C | J149: Auswahl
B150: 2 | D150: 0.968 | E150: 0.916 | F150: 0.864 | G150: 0.81 | H150: 0.7537272727 | I150: 0.6981636364 | J150: =INDEX(D150:I163,MATCH(Berechnung!$P$34,B150:B163,0),MATCH(Berechnung!$F$34,$D$149:$I$149,0)) -> 0.6981636364
B151: 3 | D151: 0.987 | E151: 0.935 | F151: 0.883 | G151: 0.829 | H151: 0.7730454545 | I151: 0.7175636364
B152: 4 | D152: 1.006 | E152: 0.954 | F152: 0.902 | G152: 0.848 | H152: 0.7923636364 | I152: 0.7369636364
B153: 5 | D153: 1.025 | E153: 0.973 | F153: 0.921 | G153: 0.867 | H153: 0.812 | I153: 0.756
B154: 6 | D154: 1.044 | E154: 0.992 | F154: 0.94 | G154: 0.886 | H154: 0.831 | I154: 0.776
B155: 7 | D155: 1.063 | E155: 1.011 | F155: 0.959 | G155: 0.905 | H155: 0.85 | I155: 0.795
B156: 8 | D156: 1.082 | E156: 1.03 | F156: 0.978 | G156: 0.924 | H156: 0.87 | I156: 0.815
B157: 9 | D157: 1.101 | E157: 1.049 | F157: 0.997 | G157: 0.943 | H157: 0.889 | I157: 0.834
B158: 10 | D158: 1.12 | E158: 1.068 | F158: 1.016 | G158: 0.962 | H158: 0.908 | I158: 0.853
B159: 11 | D159: 1.139 | E159: 1.087 | F159: 1.035 | G159: 0.981 | H159: 0.927 | I159: 0.873
B160: 12 | D160: 1.158 | E160: 1.106 | F160: 1.054 | G160: 1 | H160: 0.947 | I160: 0.892
B161: 13 | D161: 1.177 | E161: 1.125 | F161: 1.073 | G161: 1.019 | H161: 0.966 | I161: 0.912
B162: 14 | D162: 1.196 | E162: 1.144 | F162: 1.092 | G162: 1.038 | H162: 0.986 | I162: 0.931
B163: 15 | D163: 1.215 | E163: 1.163 | F163: 1.111 | G163: 1.057 | H163: 1.005 | I163: 0.95

Sheet Linksammlung (hidden)
C2: Linksammlung
C3: Förderanträge | F3: Weiterführende Informationen
C5: Basisförderung Wärmepumpe | F5: BAFA-Förderrichtlinie 2016
C7: Innovationsförderung Wärmepumpe | F7: Übersicht Wärmepumpenförderung
C9: Basisförderung Solarthermie | F9: Übersicht Solarförderung
C11: Innovationsförderung Solarthermie | F11: Liste förderfähiger Wärmepumpen
C13: Qualitätscheck Wärmepumpe | F13: Liste förderfähiger Solarkollektoren
C15: Weitere Anträge auf der Bafa-Webseite
